Workbook

Sheet DatationSeule
H1: AVANT D'IMPRIMER
H3: Si besoin : ADAPTER manuellement l'échelle des dates
H4: MODIFIER LE TITRE DU GRAPHIQUE AVEC LE NOM DU SITE
A5: ATTENTION : NE PAS MODIFIER LES CELLULES ENCADREES ! | H5: puis sortir du graphique par Echap. C'est prêt pour l'impression
Q6: 0 | R6: 0.05
B7: Id | C7: Dd | D7: Kd | E7: Nd | G7: ='A dater'!O6 -> [865<->982] | Q7: 2000 | R7: 0.05
B8: =Id -> 67 | C8: =Dd -> 16 | D8: =Kd -> 2000 | E8: =Nd -> 21 | G8: ='A dater'!O7 -> [885<->945]

Sheet A dater
A2: ATTENTION, LES DIRECTIONS DOIVENT ETRE REDUITES A PARIS (Latitude 48.9N ; Longitude 2.3E)
A3: 3° -> 620 et 5 | C3: Alph95 Kd Nd
A4: 1.5°->2500 et 5 | C4: =[0]!Alpha95(Kd,Nd) -> 0.7109458641
O6: =Plage_Dates(2, idkn) -> [865<->982]
A7: Id | B7: Dd | C7: Kd | D7: Nd | O7: =Plage_Dates(1, idkn) -> [885<->945]
A8: 67 | B8: 16 | C8: 2000 | D8: 21 | J8: FVar W_nSites ; pds min = 8 ; Fen. Min/Max = 20/300; calcul du 14 02 2022 ; New Programme
C9: .
Q19: 358.4 | R19: 56.2 | S19: 22 | T19: 40 | U19: -3.32 | V19: 64.414
Q20: 356.3 | R20: 53.1 | U20: -6.956 | V20: 62.467
A42: =[0]!CercleDIKN_MatrLigne2x19(B8,A8,C8,D8) -> 0.1097723443 | B42: 0.1139339079 | C42: 0.1176081996 | D42: 0.1203507771 | E42: 0.1218306556 | F42: 0.1218703169 | G42: 0.1204666603 | H42: 0.1177905874 | I42: 0.1141656419 | J42: 0.1100286279 | K42: 0.1058771227 | L42: 0.1022101183 | M42: 0.09946864729 | N42: 0.09798317664 | O42: 0.09793384122 | P42: 0.09932826837 | Q42: 0.101999875 | R42: 0.1056272074 | S42: 0.1097723443
A43: 0.3950028856 | B43: 0.3942518761 | C43: 0.3921746869 | D43: 0.3890230643 | E43: 0.385178858 | F43: 0.3811071576 | G43: 0.3772995306 | H43: 0.3742145196 | I43: 0.3722226717 | J43: 0.3715625708 | K43: 0.3723128359 | L43: 0.3743831035 | M43: 0.3775248657 | N43: 0.3813608867 | O43: 0.385429907 | P43: 0.3892416129 | Q43: 0.3923355534 | R43: 0.3943370032 | S43: 0.3950028856

Sheet Liste
A1: Aiguillon F1 F2 F3 | B1: 1825 | C1: 0.498 | D1: 20 | E1: -100 | F1: -2.55 | G1: 65.94 | H1: =diff_ang((G1),(F1),Id,Dd,(-1)) -> 7.452493547 | I1: 45
A2: Aiguillon F4 | B2: 1607 | C2: 0.837 | D2: 20 | E2: -100 | F2: 2.73 | G2: 67.61 | H2: =diff_ang((G2),(F2),Id,Dd,(-1)) -> 5.146006631 | I2: 19
A3: Montans-4 | B3: 1696 | C3: 1.109 | D3: 10 | E3: -90 | F3: -2.88 | G3: 67.27 | H3: =diff_ang((G3),(F3),Id,Dd,(-1)) -> 7.31270721 | I3: 11
A4: Lezat | B4: 931 | C4: 1.584 | D4: 25 | E4: -75 | F4: -8.35 | G4: 67.83 | H4: =diff_ang((G4),(F4),Id,Dd,(-1)) -> 9.32717529 | I4: 10
A5: Lagruere | B5: 1797 | C5: 0.938 | D5: 20 | E5: -60 | F5: -4 | G5: 66.29 | H5: =diff_ang((G5),(F5),Id,Dd,(-1)) -> 7.925592759 | I5: 14
A6: Frejus PL VIII | B6: 1629 | C6: 1.373 | D6: 1 | E6: -40 | F6: -6.95 | G6: 68.5 | H6: =diff_ang((G6),(F6),Id,Dd,(-1)) -> 8.764821467 | I6: 8
A7: Limoux II F2 | B7: 625 | C7: 2.417 | D7: 7.5 | E7: -12.5 | F7: -0.33 | G7: 66.54 | H7: =diff_ang((G7),(F7),Id,Dd,(-1)) -> 6.438667672 | I7: 7
A8: Marseille | B8: 1215 | C8: 0.603 | D8: 35 | E8: 5 | F8: -2.53 | G8: 67.96 | H8: =diff_ang((G8),(F8),Id,Dd,(-1)) -> 7.13405462 | I8: 46
A9: Lezoux F3 | B9: 1243 | C9: 1.128 | D9: 37.5 | E9: 12.5 | F9: -2.53 | G9: 66.85 | H9: =diff_ang((G9),(F9),Id,Dd,(-1)) -> 7.237285417 | I9: 14
A10: Lezoux LAS65 | B10: 684 | C10: 1.186 | D10: 2.5 | E10: 17.5 | F10: -1.38 | G10: 65.9 | H10: =diff_ang((G10),(F10),Id,Dd,(-1)) -> 7.006875766 | I10: 22
A11: Coulanges II | B11: 455 | C11: 1.674 | D11: 1 | E11: 20 | F11: -4.54 | G11: 64.45 | H11: =diff_ang((G11),(F11),Id,Dd,(-1)) -> 8.77448172 | I11: 17
A12: Gournay | B12: 4230 | C12: 0.667 | D12: 25 | E12: 25 | F12: -1.86 | G12: 65.14 | H12: =diff_ang((G12),(F12),Id,Dd,(-1)) -> 7.450607291 | I12: 12
A13: Montans-6 | B13: 2054 | C13: 1.332 | D13: 5 | E13: 25 | F13: -1.29 | G13: 66.2 | H13: =diff_ang((G13),(F13),Id,Dd,(-1)) -> 6.890383356 | I13: 7
A14: Pierrefonds P10 | B14: 1154 | C14: 1.778 | D14: 20 | E14: 40 | F14: 0.29 | G14: 65.12 | H14: =diff_ang((G14),(F14),Id,Dd,(-1)) -> 6.625789644 | I14: 7
A15: Gièvres | B15: 760 | C15: 1.575 | D15: 1 | E15: 40 | F15: -2.93 | G15: 67.44 | H15: =diff_ang((G15),(F15),Id,Dd,(-1)) -> 7.314148878 | I15: 12
A16: Gièvres II | B16: 5047 | C16: 0.943 | D16: 1 | E16: 40 | F16: -0.46 | G16: 65.33 | H16: =diff_ang((G16),(F16),Id,Dd,(-1)) -> 6.835691709 | I16: 6
A17: Epone | B17: 2084 | C17: 0.808 | D17: 10 | E17: 50 | F17: -2.79 | G17: 63.89 | H17: =diff_ang((G17),(F17),Id,Dd,(-1)) -> 8.364467548 | I17: 16
A18: Mougon II | B18: 1698 | C18: 0.792 | D18: 10 | E18: 50 | F18: -3.12 | G18: 62.81 | H18: =diff_ang((G18),(F18),Id,Dd,(-1)) -> 9.076742644 | I18: 20
A19: Abbaye Vauclair | B19: 420 | C19: 2.12 | D19: 15 | E19: 55 | F19: -3.31 | G19: 64.66 | H19: =diff_ang((G19),(F19),Id,Dd,(-1)) -> 8.207160895 | I19: 12
A20: Strasbourg (K) | B20: 254 | C20: 2.052 | D20: 15 | E20: 55 | F20: -7.38 | G20: 63.14 | H20: =diff_ang((G20),(F20),Id,Dd,(-1)) -> 10.505745 | I20: 20
A21: Brionne | B21: 2776 | C21: 0.55 | D21: 12.5 | E21: 62.5 | F21: -1.85 | G21: 64.73 | H21: =diff_ang((G21),(F21),Id,Dd,(-1)) -> 7.612769813 | I21: 25
A22: Aoste | B22: 1478 | C22: 0.96 | D22: 25 | E22: 75 | F22: -4.3 | G22: 59.46 | H22: =diff_ang((G22),(F22),Id,Dd,(-1)) -> 11.75671755 | I22: 16
A23: Coutelan | B23: 1452 | C23: 2.009 | D23: 25 | E23: 75 | F23: -1.45 | G23: 62.31 | H23: =diff_ang((G23),(F23),Id,Dd,(-1)) -> 8.774737867 | I23: 5
A24: Florange F9 F18 | B24: 2758 | C24: 0.492 | D24: 25 | E24: 75 | F24: -3.47 | G24: 63.6 | H24: =diff_ang((G24),(F24),Id,Dd,(-1)) -> 8.771214912 | I24: 31
A25: Chartres 1 | B25: 1830 | C25: 1.068 | D25: 10 | E25: 80 | F25: -0.15 | G25: 63.32 | H25: =diff_ang((G25),(F25),Id,Dd,(-1)) -> 7.686554253 | I25: 11
A26: Yzeure | B26: 2265 | C26: 0.75 | D26: 1 | E26: 80 | F26: -1.6 | G26: 62.92 | H26: =diff_ang((G26),(F26),Id,Dd,(-1)) -> 8.451935839 | I26: 17
A27: Villeneuve Chatelot | B27: 2497 | C27: 1.109 | D27: 20 | E27: 90 | F27: -2.38 | G27: 62.76 | H27: =diff_ang((G27),(F27),Id,Dd,(-1)) -> 8.833213532 | I27: 8
A28: Amboise | B28: 474 | C28: 1.828 | D28: 25 | E28: 100 | F28: -5.2 | G28: 61.4 | H28: =diff_ang((G28),(F28),Id,Dd,(-1)) -> 10.71342787 | I28: 14
A29: Floranges F10 | B29: 917 | C29: 1.37 | D29: 25 | E29: 100 | F29: -3.41 | G29: 62.09 | H29: =diff_ang((G29),(F29),Id,Dd,(-1)) -> 9.62078475 | I29: 13
A30: Labuissière II | B30: 6055 | C30: 0.662 | D30: 25 | E30: 100 | F30: -4.62 | G30: 61.16 | H30: =diff_ang((G30),(F30),Id,Dd,(-1)) -> 10.66204663 | I30: 9
A31: Beaumont | B31: 1309 | C31: 1.146 | D31: 40 | E31: 110 | F31: -2.41 | G31: 62.72 | H31: =diff_ang((G31),(F31),Id,Dd,(-1)) -> 8.868151004 | I31: 13
A32: Pouillé Les Bordes F5 | B32: 771 | C32: 1.996 | D32: 37.5 | E32: 112.5 | F32: -6.44 | G32: 65.73 | H32: =diff_ang((G32),(F32),Id,Dd,(-1)) -> 9.034741314 | I32: 8
A33: Pouillé Les Bordes F6 | B33: 1248 | C33: 1.709 | D33: 37.5 | E33: 112.5 | F33: -0.79 | G33: 61.75 | H33: =diff_ang((G33),(F33),Id,Dd,(-1)) -> 8.91442236 | I33: 7
A34: Famars FA | B34: 1288 | C34: 1.21 | D34: 50 | E34: 150 | F34: -1.65 | G34: 61.14 | H34: =diff_ang((G34),(F34),Id,Dd,(-1)) -> 9.634131416 | I34: 12
A35: Orléans 210 | B35: 1017 | C35: 1.432 | D35: 25 | E35: 150 | F35: 1.6 | G35: 62.5 | H35: =diff_ang((G35),(F35),Id,Dd,(-1)) -> 7.585438108 | I35: 11
A36: Montans-1 | B36: 673 | C36: 1.674 | D36: 10 | E36: 150 | F36: 0.08 | G36: 60.57 | H36: =diff_ang((G36),(F36),Id,Dd,(-1)) -> 9.479087643 | I36: 12
A37: Evreux | B37: 3187 | C37: 1.187 | D37: 27.5 | E37: 152.5 | F37: 3.75 | G37: 61.78 | H37: =diff_ang((G37),(F37),Id,Dd,(-1)) -> 7.411225525 | I37: 6
A38: Famars1355 A | B38: 1370 | C38: 1.074 | D38: 35 | E38: 155 | F38: -1.8 | G38: 61 | H38: =diff_ang((G38),(F38),Id,Dd,(-1)) -> 9.784551362 | I38: 14
A39: Famars1355 B | B39: 1045 | C39: 2.074 | D39: 30 | E39: 160 | F39: 1 | G39: 62.7 | H39: =diff_ang((G39),(F39),Id,Dd,(-1)) -> 7.659033492 | I39: 6
A40: Villeneuve Chatelot II | B40: 2781 | C40: 1.451 | D40: 15 | E40: 165 | F40: -3.09 | G40: 62.47 | H40: =diff_ang((G40),(F40),Id,Dd,(-1)) -> 9.268595221 | I40: 5
A41: Coulanges | B41: 505 | C41: 2.689 | D41: 5 | E41: 165 | F41: -3.56 | G41: 61.6 | H41: =diff_ang((G41),(F41),Id,Dd,(-1)) -> 9.990235469 | I41: 7
A42: Boucheporn F9 | B42: 1229 | C42: 1.723 | D42: 10 | E42: 170 | F42: -0.89 | G42: 57.24 | H42: =diff_ang((G42),(F42),Id,Dd,(-1)) -> 12.47080114 | I42: 7
A43: La Croisille | B43: 372 | C43: 2.508 | D43: 25 | E43: 175 | F43: 1.4 | G43: 59.92 | H43: =diff_ang((G43),(F43),Id,Dd,(-1)) -> 9.581010144 | I43: 10
A44: Varennes Sur Allier | B44: 749 | C44: 2.025 | D44: 30 | E44: 180 | F44: -1.63 | G44: 61.09 | H44: =diff_ang((G44),(F44),Id,Dd,(-1)) -> 9.662693292 | I44: 8
A45: Lezoux Hopital | B45: 548 | C45: 1.952 | D45: 20 | E45: 180 | F45: -2.72 | G45: 56.77 | H45: =diff_ang((G45),(F45),Id,Dd,(-1)) -> 13.40012329 | I45: 11
A46: Toulon Sur Allier | B46: 4012 | C46: 0.563 | D46: 1 | E46: 180 | F46: -2.65 | G46: 59.98 | H46: =diff_ang((G46),(F46),Id,Dd,(-1)) -> 10.81485199 | I46: 17
A47: Lezoux-85 | B47: 3206 | C47: 0.675 | D47: 7.5 | E47: 182.5 | F47: -5.62 | G47: 60.96 | H47: =diff_ang((G47),(F47),Id,Dd,(-1)) -> 11.15568545 | I47: 15
A48: Gueugnon F6 | B48: 2291 | C48: 1.599 | D48: 37.5 | E48: 187.5 | F48: -1.04 | G48: 59.79 | H48: =diff_ang((G48),(F48),Id,Dd,(-1)) -> 10.43470252 | I48: 5
A49: Rue Des Vignes | B49: 1578 | C49: 1.15 | D49: 37.5 | E49: 187.5 | F49: -3.67 | G49: 60.61 | H49: =diff_ang((G49),(F49),Id,Dd,(-1)) -> 10.70455248 | I49: 11
A50: Lezoux LAS4 | B50: 673 | C50: 2.329 | D50: 10 | E50: 190 | F50: -3 | G50: 61.89 | H50: =diff_ang((G50),(F50),Id,Dd,(-1)) -> 9.600167032 | I50: 7
A51: Autun F05 | B51: 2684 | C51: 0.738 | D51: 50 | E51: 200 | F51: -6.5 | G51: 59.7 | H51: =diff_ang((G51),(F51),Id,Dd,(-1)) -> 12.34218535 | I51: 15
A52: Autun F10 | B52: 957 | C52: 1.286 | D52: 50 | E52: 200 | F52: -4 | G52: 60.4 | H52: =diff_ang((G52),(F52),Id,Dd,(-1)) -> 10.9680193 | I52: 14
A53: Autun F664 | B53: 1079 | C53: 1.322 | D53: 50 | E53: 200 | F53: -5.2 | G53: 62.5 | H53: =diff_ang((G53),(F53),Id,Dd,(-1)) -> 10.03311562 | I53: 12
A54: Abrens | B54: 1031 | C54: 1.149 | D54: 25 | E54: 200 | F54: -0.26 | G54: 61.78 | H54: =diff_ang((G54),(F54),Id,Dd,(-1)) -> 8.711893503 | I54: 16
A55: Gueugnon F43-85 | B55: 1639 | C55: 1.128 | D55: 25 | E55: 200 | F55: -4.09 | G55: 57.55 | H55: =diff_ang((G55),(F55),Id,Dd,(-1)) -> 13.17641553 | I55: 11
A56: Broin4 | B56: 760 | C56: 1.185 | D56: 32.5 | E56: 202.5 | F56: -1.9 | G56: 61 | H56: =diff_ang((G56),(F56),Id,Dd,(-1)) -> 9.818659843 | I56: 20
A57: Autun F02 | B57: 787 | C57: 1.316 | D57: 25 | E57: 205 | F57: -8 | G57: 60.2 | H57: =diff_ang((G57),(F57),Id,Dd,(-1)) -> 12.53133548 | I57: 16
A58: Autun F09 | B58: 202 | C58: 2.516 | D58: 25 | E58: 205 | F58: -1.5 | G58: 57.6 | H58: =diff_ang((G58),(F58),Id,Dd,(-1)) -> 12.34387755 | I58: 17
A59: Vrigny F1 | B59: 279 | C59: 4.018 | D59: 25 | E59: 205 | F59: -2.25 | G59: 59 | H59: =diff_ang((G59),(F59),Id,Dd,(-1)) -> 11.43638702 | I59: 6
A60: Vrigny F2 | B60: 512 | C60: 2.137 | D60: 25 | E60: 205 | F60: -3.75 | G60: 61.36 | H60: =diff_ang((G60),(F60),Id,Dd,(-1)) -> 10.21716256 | I60: 10
A61: Vrigny F3 | B61: 1393 | C61: 1.295 | D61: 25 | E61: 205 | F61: 0.2 | G61: 62.5 | H61: =diff_ang((G61),(F61),Id,Dd,(-1)) -> 8.068602754 | I61: 10
A62: Vrigny F5 | B62: 1098 | C62: 1.554 | D62: 25 | E62: 205 | F62: -1.7 | G62: 62 | H62: =diff_ang((G62),(F62),Id,Dd,(-1)) -> 9.064702095 | I62: 9
A63: Vrigny F6inf | B63: 1792 | C63: 1.426 | D63: 25 | E63: 205 | F63: -2.5 | G63: 63 | H63: =diff_ang((G63),(F63),Id,Dd,(-1)) -> 8.736519176 | I63: 7
A64: Vrigny F6sup | B64: 1237 | C64: 1.299 | D64: 25 | E64: 205 | F64: -2.7 | G64: 61.5 | H64: =diff_ang((G64),(F64),Id,Dd,(-1)) -> 9.750682632 | I64: 11
A65: Vrigny F7 | B65: 1159 | C65: 1.969 | D65: 25 | E65: 205 | F65: 4.46 | G65: 60.23 | H65: =diff_ang((G65),(F65),Id,Dd,(-1)) -> 8.465144705 | I65: 6
A66: Boissière Ecole | B66: 2583 | C66: 0.642 | D66: 35 | E66: 225 | F66: -2.45 | G66: 58.95 | H66: =diff_ang((G66),(F66),Id,Dd,(-1)) -> 11.5393781 | I66: 20
A67: Famars5134 | B67: 1576 | C67: 1.15 | D67: 25 | E67: 225 | F67: -2.8 | G67: 61.5 | H67: =diff_ang((G67),(F67),Id,Dd,(-1)) -> 9.78600483 | I67: 11
A68: Beauvais Cathédrale | B68: 1830 | C68: 1.412 | D68: 50 | E68: 250 | F68: -1.61 | G68: 59.04 | H68: =diff_ang((G68),(F68),Id,Dd,(-1)) -> 11.20289231 | I68: 7
A69: Broin1 N | B69: 3340 | C69: 0.662 | D69: 50 | E69: 250 | F69: -3 | G69: 60.7 | H69: =diff_ang((G69),(F69),Id,Dd,(-1)) -> 10.40897449 | I69: 15
A70: Broin1 S | B70: 3536 | C70: 0.643 | D70: 50 | E70: 250 | F70: -3.1 | G70: 60 | H70: =diff_ang((G70),(F70),Id,Dd,(-1)) -> 10.9506808 | I70: 15
A71: Broin2 | B71: 352 | C71: 1.655 | D71: 50 | E71: 250 | F71: -3.9 | G71: 60.7 | H71: =diff_ang((G71),(F71),Id,Dd,(-1)) -> 10.72150739 | I71: 22
A72: Broin3 | B72: 531 | C72: 1.458 | D72: 50 | E72: 250 | F72: -3.5 | G72: 60.8 | H72: =diff_ang((G72),(F72),Id,Dd,(-1)) -> 10.51185736 | I72: 19
A73: Gueugnon F33 | B73: 2816 | C73: 0.781 | D73: 2.5 | E73: 270.5 | F73: -3.19 | G73: 60.67 | H73: =diff_ang((G73),(F73),Id,Dd,(-1)) -> 10.49580688 | I73: 13
A74: Beaumont | B74: 805 | C74: 1.258 | D74: 25 | E74: 275 | F74: -1.2 | G74: 61.42 | H74: =diff_ang((G74),(F74),Id,Dd,(-1)) -> 9.283564856 | I74: 17
A75: Rainvillers065 | B75: 4071 | C75: 0.65 | D75: 35 | E75: 285 | F75: -2.2 | G75: 61.4 | H75: =diff_ang((G75),(F75),Id,Dd,(-1)) -> 9.643143267 | I75: 13
A76: Rainvillers141 | B76: 1527 | C76: 1.318 | D76: 35 | E76: 285 | F76: -2.2 | G76: 62.1 | H76: =diff_ang((G76),(F76),Id,Dd,(-1)) -> 9.177688645 | I76: 9
A77: Famars2159 | B77: 2236 | C77: 1.022 | D77: 32.5 | E77: 292.5 | F77: -2 | G77: 58.2 | H77: =diff_ang((G77),(F77),Id,Dd,(-1)) -> 11.99905922 | I77: 10
A78: Famars2995 | B78: 1396 | C78: 0.988 | D78: 25 | E78: 300 | F78: -2.2 | G78: 60.5 | H78: =diff_ang((G78),(F78),Id,Dd,(-1)) -> 10.28037697 | I78: 16
A79: Famars7180 | B79: 1603 | C79: 0.993 | D79: 25 | E79: 300 | F79: -3 | G79: 60.6 | H79: =diff_ang((G79),(F79),Id,Dd,(-1)) -> 10.48021979 | I79: 14
A80: Famars9705 | B80: 4836 | C80: 0.596 | D80: 25 | E80: 300 | F80: -2.9 | G80: 60.7 | H80: =diff_ang((G80),(F80),Id,Dd,(-1)) -> 10.37454876 | I80: 13
A81: St Cheron | B81: 1418 | C81: 1.101 | D81: 20 | E81: 300 | F81: -3.63 | G81: 59.02 | H81: =diff_ang((G81),(F81),Id,Dd,(-1)) -> 11.86700441 | I81: 13
A82: Roissy321 | B82: 4540 | C82: 1.136 | D82: 50 | E82: 350 | F82: -1.9 | G82: 62 | H82: =diff_ang((G82),(F82),Id,Dd,(-1)) -> 9.135612031 | I82: 5
A83: Saint Pathus4874 | B83: 4045 | C83: 0.81 | D83: 50 | E83: 350 | F83: -0.7 | G83: 59.8 | H83: =diff_ang((G83),(F83),Id,Dd,(-1)) -> 10.31925284 | I83: 9
A84: Epiais Rhus | B84: 728 | C84: 1.792 | D84: 10 | E84: 350 | F84: -0.19 | G84: 62.53 | H84: =diff_ang((G84),(F84),Id,Dd,(-1)) -> 8.186237181 | I84: 10
A85: Meaux1 | B85: 5885 | C85: 0.998 | D85: 15 | E85: 365 | F85: -0.5 | G85: 61.1 | H85: =diff_ang((G85),(F85),Id,Dd,(-1)) -> 9.274833172 | I85: 5
A86: Meaux2 | B86: 11364 | C86: 0.453 | D86: 15 | E86: 365 | F86: -4.2 | G86: 60.9 | H86: =diff_ang((G86),(F86),Id,Dd,(-1)) -> 10.68851422 | I86: 10
A87: Meaux3 | B87: 6977 | C87: 0.496 | D87: 15 | E87: 365 | F87: -1.8 | G87: 61.1 | H87: =diff_ang((G87),(F87),Id,Dd,(-1)) -> 9.713669168 | I87: 13
A88: Meaux4 | B88: 13621 | C88: 0.372 | D88: 15 | E88: 365 | F88: -3.5 | G88: 62.9 | H88: =diff_ang((G88),(F88),Id,Dd,(-1)) -> 9.165908119 | I88: 12
A89: Longjumeau47 | B89: 2466 | C89: 0.835 | D89: 37.5 | E89: 387.5 | F89: -2.6 | G89: 61.2 | H89: =diff_ang((G89),(F89),Id,Dd,(-1)) -> 9.920138519 | I89: 13
A90: Lectoure | B90: 311 | C90: 1.854 | D90: 25 | E90: 400 | F90: -4.3 | G90: 61.79 | H90: =diff_ang((G90),(F90),Id,Dd,(-1)) -> 10.1347538 | I90: 20
A91: Villeparisis2032 | B91: 2499 | C91: 0.967 | D91: 25 | E91: 400 | F91: -1.9 | G91: 62.8 | H91: =diff_ang((G91),(F91),Id,Dd,(-1)) -> 8.633369771 | I91: 10
A92: Barat De Vin | B92: 1079 | C92: 1.687 | D92: 1 | E92: 400 | F92: -0.78 | G92: 64.07 | H92: =diff_ang((G92),(F92),Id,Dd,(-1)) -> 7.511898062 | I92: 8
A93: Lezoux III Hospice | B93: 1622 | C93: 1.499 | D93: 32.5 | E93: 417.5 | F93: -2.14 | G93: 63.66 | H93: =diff_ang((G93),(F93),Id,Dd,(-1)) -> 8.236630004 | I93: 7
A94: Le Thoronet | B94: 1333 | C94: 1.654 | D94: 50 | E94: 450 | F94: 1.81 | G94: 63.06 | H94: =diff_ang((G94),(F94),Id,Dd,(-1)) -> 7.144686489 | I94: 7
A95: Saint Pathus6356 | B95: 2430 | C95: 0.807 | D95: 50 | E95: 450 | F95: -1 | G95: 65.6 | H95: =diff_ang((G95),(F95),Id,Dd,(-1)) -> 6.951706744 | I95: 14
A96: Courdimanche | B96: 1642 | C96: 1.367 | D96: 25 | E96: 475 | F96: -0.37 | G96: 62.31 | H96: =diff_ang((G96),(F96),Id,Dd,(-1)) -> 8.392590802 | I96: 8
A97: Saint Pathus4056 | B97: 1552 | C97: 1.053 | D97: 25 | E97: 475 | F97: -1.3 | G97: 70 | H97: =diff_ang((G97),(F97),Id,Dd,(-1)) -> 6.982248297 | I97: 13
A98: Toulouse Pl St Etienne | B98: 5769 | C98: 0.678 | D98: 50 | E98: 500 | F98: 1.05 | G98: 67.44 | H98: =diff_ang((G98),(F98),Id,Dd,(-1)) -> 5.791067543 | I98: 9
A99: Saint Pathus3201 | B99: 3499 | C99: 0.672 | D99: 25 | E99: 500 | F99: 0.6 | G99: 66.3 | H99: =diff_ang((G99),(F99),Id,Dd,(-1)) -> 6.127714481 | I99: 14
A100: Saint Pathus4676 | B100: 6745 | C100: 0.588 | D100: 25 | E100: 500 | F100: 4 | G100: 66.6 | H100: =diff_ang((G100),(F100),Id,Dd,(-1)) -> 4.736755282 | I100: 10
A101: Saint Pathus4679 | B101: 3353 | C101: 0.75 | D101: 25 | E101: 500 | F101: 4.8 | G101: 66.8 | H101: =diff_ang((G101),(F101),Id,Dd,(-1)) -> 4.39277172 | I101: 12
A102: Saint Pathus3917 | B102: 5012 | C102: 0.562 | D102: 25 | E102: 525 | F102: -0.3 | G102: 64.8 | H102: =diff_ang((G102),(F102),Id,Dd,(-1)) -> 6.985993153 | I102: 14
A103: Louvres056 | B103: 3643 | C103: 0.918 | D103: 50 | E103: 550 | F103: 3.6 | G103: 68.9 | H103: =diff_ang((G103),(F103),Id,Dd,(-1)) -> 5.016935597 | I103: 8
A104: Masmolene I | B104: 4360 | C104: 0.692 | D104: 50 | E104: 550 | F104: 4.83 | G104: 66.61 | H104: =diff_ang((G104),(F104),Id,Dd,(-1)) -> 4.410676774 | I104: 11
A105: Richebourg1069 | B105: 4536 | C105: 0.645 | D105: 50 | E105: 550 | F105: 5.1 | G105: 68.9 | H105: =diff_ang((G105),(F105),Id,Dd,(-1)) -> 4.503533533 | I105: 12
A106: Richebourg1072 | B106: 7450 | C106: 0.503 | D106: 50 | E106: 550 | F106: 5.2 | G106: 69.6 | H106: =diff_ang((G106),(F106),Id,Dd,(-1)) -> 4.755098605 | I106: 12
A107: Saint Pathus6128 | B107: 3280 | C107: 0.844 | D107: 50 | E107: 550 | F107: 4.5 | G107: 70.3 | H107: =diff_ang((G107),(F107),Id,Dd,(-1)) -> 5.316765335 | I107: 10
A108: Esvres226 | B108: 8675 | C108: 0.411 | D108: 50 | E108: 600 | F108: 7.8 | G108: 70.1 | H108: =diff_ang((G108),(F108),Id,Dd,(-1)) -> 4.306255956 | I108: 15
A109: Villevaudé-6897 | B109: 4045 | C109: 0.76 | D109: 50 | E109: 600 | F109: 5.7 | G109: 68.5 | H109: =diff_ang((G109),(F109),Id,Dd,(-1)) -> 4.172426886 | I109: 10
A110: Villiers le Sec 2514 | B110: 1444 | C110: 1.202 | D110: 37.5 | E110: 612.5 | F110: 3.7 | G110: 70.7 | H110: =diff_ang((G110),(F110),Id,Dd,(-1)) -> 5.759877337 | I110: 11
A111: Gondreville1069 | B111: 3280 | C111: 1.17 | D111: 41 | E111: 616 | F111: 7.3 | G111: 69.6 | H111: =diff_ang((G111),(F111),Id,Dd,(-1)) -> 4.129800679 | I111: 6
A112: Dreux2077 | B112: 3831 | C112: 0.895 | D112: 50 | E112: 650 | F112: 3.3 | G112: 69.1 | H112: =diff_ang((G112),(F112),Id,Dd,(-1)) -> 5.178595782 | I112: 8
A113: Honguemare1003 | B113: 3886 | C113: 0.733 | D113: 50 | E113: 650 | F113: 4.1 | G113: 68.4 | H113: =diff_ang((G113),(F113),Id,Dd,(-1)) -> 4.718922711 | I113: 11
A114: Moussy La Nouvelle 608 | B114: 5961 | C114: 0.782 | D114: 50 | E114: 650 | F114: 3.5 | G114: 69.2 | H114: =diff_ang((G114),(F114),Id,Dd,(-1)) -> 5.143073475 | I114: 7
A115: Neuville1314 | B115: 3386 | C115: 0.83 | D115: 50 | E115: 650 | F115: 2.7 | G115: 70.7 | H115: =diff_ang((G115),(F115),Id,Dd,(-1)) -> 6.038257909 | I115: 10
A116: Saint Pathus3043 | B116: 5249 | C116: 0.528 | D116: 50 | E116: 650 | F116: 6.3 | G116: 69.1 | H116: =diff_ang((G116),(F116),Id,Dd,(-1)) -> 4.183427109 | I116: 15
A117: Saint Pathus3619 | B117: 4426 | C117: 0.726 | D117: 50 | E117: 650 | F117: 1.6 | G117: 70.9 | H117: =diff_ang((G117),(F117),Id,Dd,(-1)) -> 6.451408747 | I117: 10
A118: Saint Pathus5409 | B118: 8452 | C118: 0.432 | D118: 50 | E118: 650 | F118: 1 | G118: 70.1 | H118: =diff_ang((G118),(F118),Id,Dd,(-1)) -> 6.277007445 | I118: 14
A119: Saint Pathus6320 | B119: 3934 | C119: 0.821 | D119: 50 | E119: 650 | F119: 3.7 | G119: 69.3 | H119: =diff_ang((G119),(F119),Id,Dd,(-1)) -> 5.110938498 | I119: 9
A120: Villiers le Sec 2170 | B120: 2532 | C120: 1.023 | D120: 50 | E120: 650 | F120: 7.4 | G120: 70.4 | H120: =diff_ang((G120),(F120),Id,Dd,(-1)) -> 4.60911206 | I120: 9
A121: Villiers le Sec 4293 | B121: 6035 | C121: 0.534 | D121: 50 | E121: 650 | F121: 3.5 | G121: 69.4 | H121: =diff_ang((G121),(F121),Id,Dd,(-1)) -> 5.212808863 | I121: 13
A122: Villiers le Sec 4461 | B122: 1691 | C122: 0.93 | D122: 50 | E122: 650 | F122: -1.3 | G122: 69.8 | H122: =diff_ang((G122),(F122),Id,Dd,(-1)) -> 6.926096269 | I122: 15
A123: Belloy En France F1 | B123: 18337 | C123: 0.321 | D123: 25 | E123: 675 | F123: 1.5 | G123: 70.5 | H123: =diff_ang((G123),(F123),Id,Dd,(-1)) -> 6.289872911 | I123: 12
A124: Belloy En France F2 | B124: 3328 | C124: 0.792 | D124: 25 | E124: 675 | F124: 2 | G124: 70.1 | H124: =diff_ang((G124),(F124),Id,Dd,(-1)) -> 5.964706782 | I124: 11
A125: Belloy En France F3 | B125: 3840 | C125: 0.701 | D125: 25 | E125: 675 | F125: 1.4 | G125: 70.3 | H125: =diff_ang((G125),(F125),Id,Dd,(-1)) -> 6.232958338 | I125: 12
A126: Léry0901 | B126: 6798 | C126: 0.503 | D126: 25 | E126: 675 | F126: 1.5 | G126: 70.5 | H126: =diff_ang((G126),(F126),Id,Dd,(-1)) -> 6.289872911 | I126: 13
A127: Léry0902 | B127: 2881 | C127: 0.687 | D127: 25 | E127: 675 | F127: 4.1 | G127: 69.2 | H127: =diff_ang((G127),(F127),Id,Dd,(-1)) -> 4.942934647 | I127: 16
A128: Saint Pathus6305 | B128: 7306 | C128: 0.465 | D128: 25 | E128: 675 | F128: -0.1 | G128: 69.6 | H128: =diff_ang((G128),(F128),Id,Dd,(-1)) -> 6.47112948 | I128: 14
A129: Villiers le Sec II Four N | B129: 1906 | C129: 1.107 | D129: 25 | E129: 675 | F129: -4.1 | G129: 68.2 | H129: =diff_ang((G129),(F129),Id,Dd,(-1)) -> 7.717189896 | I129: 10
A130: Villiers le Sec II Four S | B130: 1990 | C130: 1.024 | D130: 25 | E130: 675 | F130: -4.1 | G130: 69.8 | H130: =diff_ang((G130),(F130),Id,Dd,(-1)) -> 7.866854181 | I130: 11
A131: Villiers le Sec II Four W | B131: 3684 | C131: 0.752 | D131: 25 | E131: 675 | F131: -2.9 | G131: 70 | H131: =diff_ang((G131),(F131),Id,Dd,(-1)) -> 7.50893498 | I131: 11
A132: Villiers le Sec III Fs39nr1 | B132: 2457 | C132: 0.677 | D132: 25 | E132: 675 | F132: 0.2 | G132: 68.9 | H132: =diff_ang((G132),(F132),Id,Dd,(-1)) -> 6.208079387 | I132: 19
A133: Villiers le Sec IV F5 | B133: 2238 | C133: 0.965 | D133: 25 | E133: 675 | F133: -5 | G133: 69.2 | H133: =diff_ang((G133),(F133),Id,Dd,(-1)) -> 8.090457297 | I133: 11
A134: Léry0063 | B134: 3818 | C134: 0.897 | D134: 50 | E134: 700 | F134: 5 | G134: 69.4 | H134: =diff_ang((G134),(F134),Id,Dd,(-1)) -> 4.728143789 | I134: 8
A135: Léry0146 | B135: 2320 | C135: 0.794 | D135: 50 | E135: 700 | F135: 3 | G135: 71.1 | H135: =diff_ang((G135),(F135),Id,Dd,(-1)) -> 6.175560855 | I135: 15
A136: Léry0910 | B136: 2470 | C136: 1.348 | D136: 50 | E136: 700 | F136: 11.2 | G136: 71 | H136: =diff_ang((G136),(F136),Id,Dd,(-1)) -> 4.351068227 | I136: 6
A137: Saint Pathus3597 | B137: 2752 | C137: 0.828 | D137: 50 | E137: 700 | F137: 1.11 | G137: 69.8 | H137: =diff_ang((G137),(F137),Id,Dd,(-1)) -> 6.133473398 | I137: 12
A138: Villiers le Sec 4272 | B138: 4223 | C138: 0.638 | D138: 25 | E138: 700 | F138: -0.3 | G138: 71.3 | H138: =diff_ang((G138),(F138),Id,Dd,(-1)) -> 7.183935639 | I138: 13
A139: Bourlon1474 | B139: 6690 | C139: 0.486 | D139: 25 | E139: 725 | F139: -0.1 | G139: 70.9 | H139: =diff_ang((G139),(F139),Id,Dd,(-1)) -> 6.941659664 | I139: 14
A140: Léry0992 | B140: 2147 | C140: 0.937 | D140: 25 | E140: 725 | F140: 7.9 | G140: 72.9 | H140: =diff_ang((G140),(F140),Id,Dd,(-1)) -> 6.507702627 | I140: 12
A141: Bourlon2335 | B141: 6234 | C141: 0.702 | D141: 50 | E141: 750 | F141: 5 | G141: 71.5 | H141: =diff_ang((G141),(F141),Id,Dd,(-1)) -> 5.935211682 | I141: 8
A142: Jossigny1786 | B142: 4340 | C142: 0.782 | D142: 50 | E142: 750 | F142: -2.2 | G142: 71 | H142: =diff_ang((G142),(F142),Id,Dd,(-1)) -> 7.606723146 | I142: 9
A143: Jossigny1862 | B143: 2403 | C143: 0.986 | D143: 50 | E143: 750 | F143: 11 | G143: 67.6 | H143: =diff_ang((G143),(F143),Id,Dd,(-1)) -> 2.020014628 | I143: 10
A144: Jossigny2498 | B144: 5651 | C144: 0.577 | D144: 50 | E144: 750 | F144: 8.4 | G144: 70.1 | H144: =diff_ang((G144),(F144),Id,Dd,(-1)) -> 4.157629482 | I144: 12
A145: Léry1047 | B145: 2964 | C145: 1.018 | D145: 50 | E145: 750 | F145: 8.7 | G145: 70.1 | H145: =diff_ang((G145),(F145),Id,Dd,(-1)) -> 4.085651679 | I145: 8
A146: Léry2-134 | B146: 2364 | C146: 1.059 | D146: 50 | E146: 750 | F146: 12.3 | G146: 71 | H146: =diff_ang((G146),(F146),Id,Dd,(-1)) -> 4.212171236 | I146: 9
A147: Léry2-142 | B147: 2473 | C147: 0.918 | D147: 50 | E147: 750 | F147: 2.5 | G147: 71.3 | H147: =diff_ang((G147),(F147),Id,Dd,(-1)) -> 6.422628752 | I147: 11
A148: Léry2-169 | B148: 1760 | C148: 1.598 | D148: 50 | E148: 750 | F148: 8.8 | G148: 71.3 | H148: =diff_ang((G148),(F148),Id,Dd,(-1)) -> 4.998279524 | I148: 6
A149: Léry2-184 | B149: 5984 | C149: 0.625 | D149: 50 | E149: 750 | F149: 6.1 | G149: 70.7 | H149: =diff_ang((G149),(F149),Id,Dd,(-1)) -> 5.131141074 | I149: 10
A150: Villiers le Sec 1943 | B150: 2686 | C150: 0.994 | D150: 50 | E150: 750 | F150: 6.9 | G150: 71.6 | H150: =diff_ang((G150),(F150),Id,Dd,(-1)) -> 5.600484895 | I150: 9
A151: Villiers le Sec 2435 | B151: 3976 | C151: 0.817 | D151: 50 | E151: 750 | F151: 3 | G151: 69.9 | H151: =diff_ang((G151),(F151),Id,Dd,(-1)) -> 5.570325216 | I151: 9
A152: Villiers le Sec 3344 | B152: 2254 | C152: 0.873 | D152: 50 | E152: 750 | F152: 3.7 | G152: 69.3 | H152: =diff_ang((G152),(F152),Id,Dd,(-1)) -> 5.110938498 | I152: 13
A153: Jossigny1214 | B153: 3773 | C153: 0.601 | D153: 12.5 | E153: 787.5 | F153: 7.9 | G153: 69.2 | H153: =diff_ang((G153),(F153),Id,Dd,(-1)) -> 3.732647362 | I153: 16
A154: Villiers le Sec 1733 | B154: 32335 | C154: 0.269 | D154: 12.5 | E154: 787.5 | F154: 11.3 | G154: 70.8 | H154: =diff_ang((G154),(F154),Id,Dd,(-1)) -> 4.156828677 | I154: 10
A155: Léry0740 | B155: 2387 | C155: 0.889 | D155: 50 | E155: 800 | F155: 16.8 | G155: 68.7 | H155: =diff_ang((G155),(F155),Id,Dd,(-1)) -> 1.726513696 | I155: 12
A156: Saran FB | B156: 864 | C156: 1.007 | D156: 50 | E156: 800 | F156: 5.24 | G156: 70.64 | H156: =diff_ang((G156),(F156),Id,Dd,(-1)) -> 5.312044038 | I156: 24
A157: Bourlon2432 | B157: 6850 | C157: 0.552 | D157: 50 | E157: 850 | F157: 9.6 | G157: 71.3 | H157: =diff_ang((G157),(F157),Id,Dd,(-1)) -> 4.860180258 | I157: 11
A158: Léry0953 | B158: 2503 | C158: 1.029 | D158: 50 | E158: 850 | F158: 7.1 | G158: 70.9 | H158: =diff_ang((G158),(F158),Id,Dd,(-1)) -> 5.032632868 | I158: 9
A159: Léry1036 | B159: 4570 | C159: 0.546 | D159: 50 | E159: 850 | F159: 20.1 | G159: 70.4 | H159: =diff_ang((G159),(F159),Id,Dd,(-1)) -> 3.709957697 | I159: 16
A160: Lieusaint52 | B160: 3667 | C160: 0.717 | D160: 50 | E160: 850 | F160: 12.8 | G160: 70 | H160: =diff_ang((G160),(F160),Id,Dd,(-1)) -> 3.220057371 | I160: 12
A161: Villevaudé-6405 | B161: 1111 | C161: 1.244 | D161: 50 | E161: 850 | F161: 12.2 | G161: 70.3 | H161: =diff_ang((G161),(F161),Id,Dd,(-1)) -> 3.576645206 | I161: 13
A162: Villiers le Bel 0726 | B162: 7902 | C162: 0.466 | D162: 50 | E162: 850 | F162: 12.6 | G162: 70.3 | H162: =diff_ang((G162),(F162),Id,Dd,(-1)) -> 3.52321776 | I162: 13
A163: Villiers le Bel 0778 | B163: 3144 | C163: 0.814 | D163: 50 | E163: 850 | F163: 11.9 | G163: 70.8 | H163: =diff_ang((G163),(F163),Id,Dd,(-1)) -> 4.074412767 | I163: 11
A164: Villiers le Bel 1726 | B164: 3095 | C164: 0.996 | D164: 50 | E164: 850 | F164: 11.8 | G164: 70.6 | H164: =diff_ang((G164),(F164),Id,Dd,(-1)) -> 3.905129217 | I164: 8
A165: Villiers le Sec 1941 | B165: 844 | C165: 1.495 | D165: 50 | E165: 850 | F165: 13.4 | G165: 68.5 | H165: =diff_ang((G165),(F165),Id,Dd,(-1)) -> 1.793885028 | I165: 12
A166: Léry0474 | B166: 8325 | C166: 0.662 | D166: 25 | E166: 850 | F166: 15.6 | G166: 70.8 | H166: =diff_ang((G166),(F166),Id,Dd,(-1)) -> 3.802706241 | I166: 7
A167: Léry0475 | B167: 1960 | C167: 1.091 | D167: 25 | E167: 850 | F167: 15.7 | G167: 69.9 | H167: =diff_ang((G167),(F167),Id,Dd,(-1)) -> 2.90208377 | I167: 10
A168: Sevrey400 | B168: 4429 | C168: 0.519 | D168: 19.5 | E168: 881.5 | F168: 12.6 | G168: 70.7 | H168: =diff_ang((G168),(F168),Id,Dd,(-1)) -> 3.896606339 | I168: 18
A169: Léry2-108 | B169: 3260 | C169: 1.057 | D169: 37.5 | E169: 887.5 | F169: 16.1 | G169: 69.4 | H169: =diff_ang((G169),(F169),Id,Dd,(-1)) -> 2.400286474 | I169: 7
A170: Léry2-110 | B170: 4486 | C170: 0.827 | D170: 37.5 | E170: 887.5 | F170: 22.1 | G170: 68 | H170: =diff_ang((G170),(F170),Id,Dd,(-1)) -> 2.538174584 | I170: 8
A171: Léry2-112 | B171: 8285 | C171: 0.477 | D171: 37.5 | E171: 887.5 | F171: 18.6 | G171: 69.5 | H171: =diff_ang((G171),(F171),Id,Dd,(-1)) -> 2.678651555 | I171: 12
A172: Villevaudé-4347 | B172: 1897 | C172: 0.997 | D172: 37.5 | E172: 887.5 | F172: 13.3 | G172: 70.1 | H172: =diff_ang((G172),(F172),Id,Dd,(-1)) -> 3.252670424 | I172: 12
A173: Hermé3160 | B173: 5498 | C173: 0.694 | D173: 12.5 | E173: 912.5 | F173: 21.5 | G173: 69.4 | H173: =diff_ang((G173),(F173),Id,Dd,(-1)) -> 3.149141973 | I173: 9
A174: Jossigny1225 | B174: 1875 | C174: 0.799 | D174: 12.5 | E174: 912.5 | F174: 11.6 | G174: 67.9 | H174: =diff_ang((G174),(F174),Id,Dd,(-1)) -> 1.911777459 | I174: 18
A175: Peran En Pledran | B175: 1776 | C175: 1.03 | D175: 10 | E175: 920 | F175: 23.84 | G175: 66.99 | H175: =diff_ang((G175),(F175),Id,Dd,(-1)) -> 3.061952649 | I175: 12
A176: Doué La Fontaine CII | B176: 607 | C176: 1.962 | D176: 50 | E176: 950 | F176: 21.25 | G176: 64.95 | H176: =diff_ang((G176),(F176),Id,Dd,(-1)) -> 2.959852169 | I176: 10
A177: Doué La Fontaine CIV | B177: 214 | C177: 2.84 | D177: 50 | E177: 950 | F177: 16.7 | G177: 61 | H177: =diff_ang((G177),(F177),Id,Dd,(-1)) -> 6.007744147 | I177: 13
A178: Goincourt | B178: 3864 | C178: 0.698 | D178: 50 | E178: 950 | F178: 19.79 | G178: 65.39 | H178: =diff_ang((G178),(F178),Id,Dd,(-1)) -> 2.220126348 | I178: 12
A179: Hermies1036 | B179: 2348 | C179: 0.997 | D179: 50 | E179: 950 | F179: 17.5 | G179: 63.4 | H179: =diff_ang((G179),(F179),Id,Dd,(-1)) -> 3.654296889 | I179: 10
A180: Hermies1037 | B180: 3205 | C180: 0.853 | D180: 50 | E180: 950 | F180: 18.9 | G180: 63.1 | H180: =diff_ang((G180),(F180),Id,Dd,(-1)) -> 4.08627089 | I180: 10
A181: Hermies1060 | B181: 3684 | C181: 0.715 | D181: 50 | E181: 950 | F181: 22.2 | G181: 64 | H181: =diff_ang((G181),(F181),Id,Dd,(-1)) -> 3.947390172 | I181: 12
A182: Lassy01 | B182: 1130 | C182: 1.292 | D182: 50 | E182: 950 | F182: 19.7 | G182: 65.5 | H182: =diff_ang((G182),(F182),Id,Dd,(-1)) -> 2.113728185 | I182: 12
A183: Pince Vent F101 | B183: 3745 | C183: 0.603 | D183: 50 | E183: 975 | F183: 20.27 | G183: 64.55 | H183: =diff_ang((G183),(F183),Id,Dd,(-1)) -> 3.010593299 | I183: 16
A184: Lassy03 | B184: 1367 | C184: 0.737 | D184: 25 | E184: 975 | F184: 16.4 | G184: 64.5 | H184: =diff_ang((G184),(F184),Id,Dd,(-1)) -> 2.505378755 | I184: 28
A185: Léry0071 | B185: 7660 | C185: 0.408 | D185: 25 | E185: 975 | F185: 18.6 | G185: 63.6 | H185: =diff_ang((G185),(F185),Id,Dd,(-1)) -> 3.568607114 | I185: 17
A186: Hermé3060 | B186: 3975 | C186: 0.879 | D186: 12.5 | E186: 987.5 | F186: 20.5 | G186: 64.4 | H186: =diff_ang((G186),(F186),Id,Dd,(-1)) -> 3.190377257 | I186: 8
A187: Cesson00589 | B187: 1362 | C187: 1.636 | D187: 42.5 | E187: 1004.5 | F187: 18.5 | G187: 63.3 | H187: =diff_ang((G187),(F187),Id,Dd,(-1)) -> 3.845502265 | I187: 7
A188: Acquigny 67 | B188: 2013 | C188: 0.728 | D188: 30 | E188: 1030 | F188: 18.2 | G188: 63 | H188: =diff_ang((G188),(F188),Id,Dd,(-1)) -> 4.105991961 | I188: 20
A189: Fecamp | B189: 1402 | C189: 1.48 | D189: 10 | E189: 1040 | F189: 17.31 | G189: 62.8 | H189: =diff_ang((G189),(F189),Id,Dd,(-1)) -> 4.23636203 | I189: 8
A190: Roche Guyon10520 | B190: 845 | C190: 1.663 | D190: 50 | E190: 1050 | F190: 21.9 | G190: 65.2 | H190: =diff_ang((G190),(F190),Id,Dd,(-1)) -> 2.990290678 | I190: 10
A191: Rungis1275 | B191: 3199 | C191: 0.733 | D191: 50 | E191: 1050 | F191: 20.2 | G191: 63.3 | H191: =diff_ang((G191),(F191),Id,Dd,(-1)) -> 4.097308827 | I191: 13
A192: St Etienne Cloitre | B192: 3251 | C192: 1.059 | D192: 50 | E192: 1050 | F192: 21.87 | G192: 63.72 | H192: =diff_ang((G192),(F192),Id,Dd,(-1)) -> 4.088810072 | I192: 7
A193: Villiers le Sec 1042 | B193: 2994 | C193: 0.793 | D193: 50 | E193: 1050 | F193: 20.1 | G193: 59.9 | H193: =diff_ang((G193),(F193),Id,Dd,(-1)) -> 7.328801497 | I193: 12
A194: Moulins Cephons | B194: 1138 | C194: 1.134 | D194: 18 | E194: 1050 | F194: 16.39 | G194: 61.1 | H194: =diff_ang((G194),(F194),Id,Dd,(-1)) -> 5.902437827 | I194: 15
A195: Rungis1277 | B195: 10860 | C195: 0.354 | D195: 25 | E195: 1075 | F195: 18.6 | G195: 64.8 | H195: =diff_ang((G195),(F195),Id,Dd,(-1)) -> 2.442282621 | I195: 16
A196: Méru04 | B196: 1714 | C196: 1.049 | D196: 50 | E196: 1100 | F196: 18.5 | G196: 60.1 | H196: =diff_ang((G196),(F196),Id,Dd,(-1)) -> 6.98785614 | I196: 12
A197: Lectoure F1 | B197: 4027 | C197: 0.811 | D197: 25 | E197: 1100 | F197: 19.84 | G197: 59.52 | H197: =diff_ang((G197),(F197),Id,Dd,(-1)) -> 7.673351388 | I197: 9
A198: Lectoure F71 | B198: 1930 | C198: 1.1 | D198: 25 | E198: 1100 | F198: 24.18 | G198: 61.8 | H198: =diff_ang((G198),(F198),Id,Dd,(-1)) -> 6.276510071 | I198: 10
A199: Fosses 1021 | B199: 4816 | C199: 0.498 | D199: 12.5 | E199: 1112.5 | F199: 15.8 | G199: 60.8 | H199: =diff_ang((G199),(F199),Id,Dd,(-1)) -> 6.20061608 | I199: 18
A200: Acquigny 69 | B200: 2113 | C200: 1.12 | D200: 25 | E200: 1125 | F200: 13.5 | G200: 60.4 | H200: =diff_ang((G200),(F200),Id,Dd,(-1)) -> 6.690945934 | I200: 9
... 86 more rows

Sheet CalculsBis
A1: Feuille de résultats du calcul par fenêtres de largeur variable
A3: nom du bloc : bloc_F_var
A5: Date | B5: Nb form. | C5: Pds Tot | D5: Pds Ov | E5: Dparis | F5: Iparis | G5: Alph.Fi | H5: Alpha x | I5: Omega2 | J5: Omega | K5: kx | L5: ky | M5: kF | N5: 1/2 fen | O5: xt | P5: yt | Q5: delta | R5: K bis | S5: FVAng crt95_KxKy | T5: prob_croix | U5: Marque | V5: FVPro_Criti | Y5: =MAX(T6:T155) -> 0.4928117003
A6: 540 | B6: 18 | C6: 8.855000198 | D6: 99.69499207 | E6: 3.5 | F6: 67.80000305 | I6: 160.5 | J6: 160.5 | K6: 693 | L6: 2750.600098 | M6: 1380.599976 | N6: 45 | O6: 0.0232 | P6: 0.3839 | Q6: =diff_ang((F6),(E6),Id,Dd,(-1)) -> 4.861136655 | R6: =K_dansDir(L6,K6,E6,F6,J6,'A dater'!$B$8,'A dater'!$A$8) -> 2597.014621 | S6: =Q6-AngCritDbl95(R6,D6,'A dater'!$C$8,Nd) -> 4.179496771 | T6: =Prob_crois_fish(Q6,R6,'A dater'!$C$8) -> 6.587940812e-08 | U6: =IF(S6<0,0.1,-10) -> -10 | V6: =probCritDbl(R6,D6,'A dater'!$C$8,'A dater'!$D$8,Q6) -> 1.210195793e-43 | W6: =Q6-AngCrit95_isole( R6,D6) -> 2.073945471 | Y6: =T6/$Y$5 -> 1.3368069e-07
A7: 580 | B7: 22 | C7: 8.049000181 | D7: 87.09400177 | E7: 4.599999905 | F7: 69.19999695 | I7: 169.8999939 | J7: 169.8999939 | K7: 1286.400024 | L7: 2338.699951 | M7: 1734.5 | N7: 40 | O7: 0.0286 | P7: 0.3592 | Q7: =diff_ang((F7),(E7),Id,Dd,(-1)) -> 4.777586431 | R7: =K_dansDir(L7,K7,E7,F7,J7,'A dater'!$B$8,'A dater'!$A$8) -> 2294.05904 | S7: =Q7-AngCritDbl95(R7,D7,'A dater'!$C$8,Nd) -> 4.050647397 | T7: =Prob_crois_fish(Q7,R7,'A dater'!$C$8) -> 3.315009383e-07 | U7: =IF(S7<0,0.1,-10) -> -10 | V7: =probCritDbl(R7,D7,'A dater'!$C$8,'A dater'!$D$8,Q7) -> 8.248942215e-38 | W7: =Q7-AngCrit95_isole( R7,D7) -> 1.806573861 | Y7: =T7/$Y$5 -> 6.726726215e-07
A8: 610 | B8: 20 | C8: 8.132000133 | D8: 87.19199371 | E8: 4.400000095 | F8: 69.59999847 | I8: 208 | J8: 28 | K8: 1801.900024 | L8: 2149.5 | M8: 1968 | N8: 30 | O8: 0.0269 | P8: 0.3527 | Q8: 5.003901023 | R8: =K_dansDir(L8,K8,E8,F8,J8,'A dater'!$B$8,'A dater'!$A$8) -> 1923.483612 | S8: =Q8-AngCritDbl95(R8,D8,'A dater'!$C$8,Nd) -> 4.223706898 | T8: =Prob_crois_fish(Q8,R8,'A dater'!$C$8) -> 3.205168722e-07 | U8: -10 | V8: =probCritDbl(R8,D8,'A dater'!$C$8,'A dater'!$D$8,Q8) -> 1.375130231e-36 | W8: 1.759272156 | Y8: 6.503840554e-07
A9: 635 | B9: 30 | C9: 10.00600006 | D9: 111.9009933 | E9: 3 | F9: 69.69999695 | I9: 269.9000015 | J9: 89.90000153 | K9: 1469.900024 | L9: 2140.300049 | M9: 1773.699951 | N9: 25 | O9: 0.0186 | P9: 0.3511 | Q9: 5.488437638 | R9: =K_dansDir(L9,K9,E9,F9,J9,'A dater'!$B$8,'A dater'!$A$8) -> 1573.288939 | S9: =Q9-AngCritDbl95(R9,D9,'A dater'!$C$8,Nd) -> 4.656428894 | T9: =Prob_crois_fish(Q9,R9,'A dater'!$C$8) -> 7.682989216e-08 | U9: -10 | V9: =probCritDbl(R9,D9,'A dater'!$C$8,'A dater'!$D$8,Q9) -> 2.556370758e-40 | W9: 1.912186783 | Y9: 1.559011122e-07
A10: 655 | B10: 30 | C10: 11.66800009 | D10: 136.2079926 | E10: 1.799999952 | F10: 69.80000305 | I10: 279.8000031 | J10: 99.80000305 | K10: 1286.900024 | L10: 2186.199951 | M10: 1677.400024 | N10: 20 | O10: 0.0111 | P10: 0.3511 | Q10: 5.910623932 | R10: =K_dansDir(L10,K10,E10,F10,J10,'A dater'!$B$8,'A dater'!$A$8) -> 1528.824238 | S10: =Q10-AngCritDbl95(R10,D10,'A dater'!$C$8,Nd) -> 5.07837402 | T10: =Prob_crois_fish(Q10,R10,'A dater'!$C$8) -> 7.121501189e-09 | U10: -10 | V10: =probCritDbl(R10,D10,'A dater'!$C$8,'A dater'!$D$8,Q10) -> 7.634041198e-47 | W10: 2.290010999 | Y10: 1.44507551e-08
A11: 670 | B11: 28 | C11: 11.32400044 | D11: 135.3440094 | E11: 1.200000048 | F11: 69.80000305 | I11: 284.3000031 | J11: 104.3000031 | K11: 1287.699951 | L11: 2186.600098 | M11: 1678 | N11: 15 | O11: 0.0072 | P11: 0.3506 | Q11: 6.104288141 | R11: =K_dansDir(L11,K11,E11,F11,J11,'A dater'!$B$8,'A dater'!$A$8) -> 1575.791704 | S11: =Q11-AngCritDbl95(R11,D11,'A dater'!$C$8,Nd) -> 5.282950322 | T11: =Prob_crois_fish(Q11,R11,'A dater'!$C$8) -> 1.565938122e-09 | U11: -10 | V11: =probCritDbl(R11,D11,'A dater'!$C$8,'A dater'!$D$8,Q11) -> 7.211122848e-50 | W11: 2.53784805 | Y11: 3.177558734e-09
A12: 685 | B12: 27 | C12: 11.60000044 | D12: 139.1000061 | E12: 1.100000024 | F12: 69.80000305 | I12: 284.4000015 | J12: 104.4000015 | K12: 1314 | L12: 2124.5 | M12: 1670.800049 | N12: 15 | O12: 0.0069 | P12: 0.35 | Q12: 6.136719464 | R12: =K_dansDir(L12,K12,E12,F12,J12,'A dater'!$B$8,'A dater'!$A$8) -> 1572.382696 | S12: =Q12-AngCritDbl95(R12,D12,'A dater'!$C$8,Nd) -> 5.315894741 | T12: =Prob_crois_fish(Q12,R12,'A dater'!$C$8) -> 1.286878369e-09 | U12: -10 | V12: =probCritDbl(R12,D12,'A dater'!$C$8,'A dater'!$D$8,Q12) -> 1.272130901e-50 | W12: 2.567311368 | Y12: 2.611298327e-09
A13: 700 | B13: 41 | C13: 9.150000364 | D13: 105.1499863 | E13: 2.5 | F13: 70.19999695 | I13: 289.1999969 | J13: 109.1999969 | K13: 1044.800049 | L13: 1677.300049 | M13: 1323.800049 | N13: 15 | O13: 0.0148 | P13: 0.3434 | Q13: 5.854701406 | R13: =K_dansDir(L13,K13,E13,F13,J13,'A dater'!$B$8,'A dater'!$A$8) -> 1369.808256 | S13: =Q13-AngCritDbl95(R13,D13,'A dater'!$C$8,Nd) -> 4.966690433 | T13: =Prob_crois_fish(Q13,R13,'A dater'!$C$8) -> 2.323332715e-08 | U13: -10 | V13: =probCritDbl(R13,D13,'A dater'!$C$8,'A dater'!$D$8,Q13) -> 1.032625472e-39 | W13: 2.019151531 | Y13: 4.714443089e-08
A14: 720 | B14: 19 | C14: 8.500000119 | D14: 89.29999542 | E14: 5.199999809 | F14: 70.80000305 | I14: 255.5999985 | J14: 75.59999847 | K14: 1109 | L14: 1398.599976 | M14: 1245.400024 | N14: 20 | O14: 0.0301 | P14: 0.3323 | Q14: 5.422213293 | R14: =K_dansDir(L14,K14,E14,F14,J14,'A dater'!$B$8,'A dater'!$A$8) -> 1159.996943 | S14: =Q14-AngCritDbl95(R14,D14,'A dater'!$C$8,Nd) -> 4.456127044 | T14: =Prob_crois_fish(Q14,R14,'A dater'!$C$8) -> 7.231072724e-07 | U14: -10 | V14: =probCritDbl(R14,D14,'A dater'!$C$8,'A dater'!$D$8,Q14) -> 1.72450807e-30 | W14: 1.245150057 | Y14: 1.467309465e-06
A15: 745 | B15: 21 | C15: 8.900000103 | D15: 93.40000153 | E15: 5.900000095 | F15: 70.69999695 | I15: 247.8000031 | J15: 67.80000305 | K15: 981.0999756 | L15: 1404.599976 | M15: 1173.900024 | N15: 25 | O15: 0.0346 | P15: 0.3343 | Q15: 5.181045495 | R15: =K_dansDir(L15,K15,E15,F15,J15,'A dater'!$B$8,'A dater'!$A$8) -> 1023.482267 | S15: =Q15-AngCritDbl95(R15,D15,'A dater'!$C$8,Nd) -> 4.162285226 | T15: =Prob_crois_fish(Q15,R15,'A dater'!$C$8) -> 4.316957474e-06 | U15: -10 | V15: =probCritDbl(R15,D15,'A dater'!$C$8,'A dater'!$D$8,Q15) -> 1.415602892e-26 | W15: 0.7367569522 | Y15: 8.759851829e-06
A16: 770 | B16: 22 | C16: 8.900000006 | D16: 98.65000916 | E16: 7.300000191 | F16: 70.40000153 | I16: 245.0999985 | J16: 65.09999847 | K16: 940.2999878 | L16: 1609.5 | M16: 1230.199951 | N16: 25 | O16: 0.0432 | P16: 0.3382 | Q16: 4.633579756 | R16: =K_dansDir(L16,K16,E16,F16,J16,'A dater'!$B$8,'A dater'!$A$8) -> 1004.738373 | S16: =Q16-AngCritDbl95(R16,D16,'A dater'!$C$8,Nd) -> 3.609422808 | T16: =Prob_crois_fish(Q16,R16,'A dater'!$C$8) -> 5.433331918e-05 | U16: -10 | V16: =probCritDbl(R16,D16,'A dater'!$C$8,'A dater'!$D$8,Q16) -> 2.240556141e-22 | W16: 0.1512375558 | Y16: 0.0001102516826
A17: 795 | B17: 25 | C17: 8.40000017 | D17: 99.19998932 | E17: 9 | F17: 70.30000305 | I17: 252 | J17: 72 | K17: 909.5999756 | L17: 1629.400024 | M17: 1217.400024 | N17: 25 | O17: 0.0534 | P17: 0.3382 | Q17: 4.164202679 | R17: =K_dansDir(L17,K17,E17,F17,J17,'A dater'!$B$8,'A dater'!$A$8) -> 1100.788052 | S17: =Q17-AngCritDbl95(R17,D17,'A dater'!$C$8,Nd) -> 3.181720546 | T17: =Prob_crois_fish(Q17,R17,'A dater'!$C$8) -> 0.0002785382554 | U17: -10 | V17: =probCritDbl(R17,D17,'A dater'!$C$8,'A dater'!$D$8,Q17) -> 3.473933464e-20 | W17: -0.1177211488 | Y17: 0.0005652021963
A18: 825 | B18: 31 | C18: 8.5180002 | D18: 101.2630081 | E18: 12.30000019 | F18: 70.30000305 | I18: 251.6999969 | J18: 71.69999695 | K18: 910.7999878 | L18: 1661.900024 | M18: 1230.300049 | N18: 30 | O18: 0.0732 | P18: 0.3348 | Q18: 3.562812378 | R18: =K_dansDir(L18,K18,E18,F18,J18,'A dater'!$B$8,'A dater'!$A$8) -> 1322.494885 | S18: =Q18-AngCritDbl95(R18,D18,'A dater'!$C$8,Nd) -> 2.658659778 | T18: =Prob_crois_fish(Q18,R18,'A dater'!$C$8) -> 0.001626250342 | U18: -10 | V18: =probCritDbl(R18,D18,'A dater'!$C$8,'A dater'!$D$8,Q18) -> 5.536412932e-18 | W18: -0.3425720069 | Y18: 0.003299942637
A19: 850 | B19: 18 | C19: 8.665000021 | D19: 97.48101044 | E19: 13.89999962 | F19: 70.19999695 | I19: 244.5999985 | J19: 64.59999847 | K19: 1041.900024 | L19: 1950.800049 | M19: 1425.699951 | N19: 25 | O19: 0.0829 | P19: 0.3339 | Q19: 3.289971906 | R19: =K_dansDir(L19,K19,E19,F19,J19,'A dater'!$B$8,'A dater'!$A$8) -> 1577.651725 | S19: =Q19-AngCritDbl95(R19,D19,'A dater'!$C$8,Nd) -> 2.450454059 | T19: =Prob_crois_fish(Q19,R19,'A dater'!$C$8) -> 0.002749290606 | U19: -10 | V19: =probCritDbl(R19,D19,'A dater'!$C$8,'A dater'!$D$8,Q19) -> 9.526667846e-18 | W19: -0.2872975456 | Y19: 0.005578785171
A20: 875 | B20: 16 | C20: 9.14199996 | D20: 104.5449905 | E20: 14.39999962 | F20: 70.09999847 | I20: 240.9000015 | J20: 60.90000153 | K20: 1015.299988 | L20: 2215.600098 | M20: 1499.800049 | N20: 25 | O20: 0.0858 | P20: 0.3347 | Q20: 3.154458707 | R20: =K_dansDir(L20,K20,E20,F20,J20,'A dater'!$B$8,'A dater'!$A$8) -> 1708.604644 | S20: =Q20-AngCritDbl95(R20,D20,'A dater'!$C$8,Nd) -> 2.347646365 | T20: =Prob_crois_fish(Q20,R20,'A dater'!$C$8) -> 0.003627505469 | U20: -10 | V20: =probCritDbl(R20,D20,'A dater'!$C$8,'A dater'!$D$8,Q20) -> 8.113178601e-18 | W20: -0.2799386549 | Y20: 0.007360834711
A21: 900 | B21: 24 | C21: 10.08499998 | D21: 120.0189972 | E21: 16.89999962 | F21: 68.40000153 | I21: 205.1000004 | J21: 25.10000038 | K21: 392.5 | L21: 911.5999756 | M21: 598.0999756 | N21: 25 | O21: 0.1086 | P21: 0.3579 | Q21: 1.441014318 | R21: =K_dansDir(L21,K21,E21,F21,J21,'A dater'!$B$8,'A dater'!$A$8) -> 600.088655 | S21: =Q21-AngCritDbl95(R21,D21,'A dater'!$C$8,Nd) -> 0.1494006142 | T21: =Prob_crois_fish(Q21,R21,'A dater'!$C$8) -> 0.4394229002 | U21: -10 | V21: =probCritDbl(R21,D21,'A dater'!$C$8,'A dater'!$D$8,Q21) -> 0.02425630084 | W21: -4.34673065 | Y21: 0.8916649097
A22: 925 | B22: 16 | C22: 8.108000018 | D22: 95.95500183 | E22: 19 | F22: 66.40000153 | I22: 184.1999998 | J22: 4.199999809 | K22: 358.1000061 | L22: 737.4000244 | M22: 513.9000244 | N22: 25 | O22: 0.133 | P22: 0.3863 | Q22: 1.329515684 | R22: =K_dansDir(L22,K22,E22,F22,J22,'A dater'!$B$8,'A dater'!$A$8) -> 628.5297882 | S22: =Q22-AngCritDbl95(R22,D22,'A dater'!$C$8,Nd) -> 0.05602508156 | T22: =Prob_crois_fish(Q22,R22,'A dater'!$C$8) -> 0.4928117003 | U22: -10 | V22: =probCritDbl(R22,D22,'A dater'!$C$8,'A dater'!$D$8,Q22) -> 0.03833791397 | W22: -4.340609597 | Y22: 1
A23: 960 | B23: 13 | C23: 8.83799988 | D23: 119.1160049 | E23: 19.20000076 | F23: 64.09999847 | I23: 153.1000061 | J23: 153.1000061 | K23: 707.7000122 | L23: 1041.900024 | M23: 858.7000122 | N23: 35 | O23: 0.1477 | P23: 0.4231 | Q23: 3.187171349 | R23: =K_dansDir(L23,K23,E23,F23,J23,'A dater'!$B$8,'A dater'!$A$8) -> 903.8041433 | S23: =Q23-AngCritDbl95(R23,D23,'A dater'!$C$8,Nd) -> 2.121720668 | T23: =Prob_crois_fish(Q23,R23,'A dater'!$C$8) -> 0.01120388442 | U23: -10 | V23: =probCritDbl(R23,D23,'A dater'!$C$8,'A dater'!$D$8,Q23) -> 1.802158416e-11 | W23: -1.528586036 | Y23: 0.02273461529
A24: 995 | B24: 17 | C24: 8.550000101 | D24: 114.1999969 | E24: 19.29999924 | F24: 63.79999924 | I24: 165.1000061 | J24: 165.1000061 | K24: 845.2999878 | L24: 1189.599976 | M24: 1002.799988 | N24: 35 | O24: 0.1497 | P24: 0.4275 | Q24: 3.481262124 | R24: =K_dansDir(L24,K24,E24,F24,J24,'A dater'!$B$8,'A dater'!$A$8) -> 967.9283489 | S24: =Q24-AngCritDbl95(R24,D24,'A dater'!$C$8,Nd) -> 2.447133249 | T24: =Prob_crois_fish(Q24,R24,'A dater'!$C$8) -> 0.004183161969 | U24: -10 | V24: =probCritDbl(R24,D24,'A dater'!$C$8,'A dater'!$D$8,Q24) -> 5.456241218e-14 | W24: -1.077604105 | Y24: 0.008488357656
Y25: =T25/$Y$5 -> 0
Y26: 0
Y27: 0
Y28: 0
Y29: 0
Y30: 0
Y31: 0
Y32: =T32/$Y$5 -> 0
Y33: =T33/$Y$5 -> 0
Y34: =T34/$Y$5 -> 0
Y35: =T35/$Y$5 -> 0
Y36: 0
Y37: 0
Y38: 0
Y39: 0
Y40: 0
Y41: 0
Y42: 0
Y43: =T43/$Y$5 -> 0
Y44: =T44/$Y$5 -> 0
Y45: 0
Y46: 0
Y47: 0
Y48: 0
Y49: 0
Y50: 0
Y51: 0
Y52: 0
Y53: 0
Y54: 0
Y55: 0
Y56: 0
Y57: 0
Y58: 0
Y59: 0
Y60: 0
Y61: 0
Y62: 0
Y63: 0
Y64: 0
Y65: 0
Y66: 0
Y67: 0
Y68: 0
Y69: 0
Y70: 0
Y71: =T71/$Y$5 -> 0
Y72: 0
Y73: 0
Y74: 0
Y75: 0
Y76: 0
Y77: 0
Y78: 0
Y79: 0
Y80: 0
Y81: 0
Y82: 0
Y83: 0
Y84: 0
Y85: 0
Y86: 0
Y87: 0
Y88: 0
Y89: 0
Y90: 0
Y91: =T91/$Y$5 -> 0
Y92: 0
Y93: 0
Y94: 0
Y95: 0
Y96: 0
Y97: 0
Y98: 0
Y99: 0
Y100: 0
Y101: 0
Y102: 0
Y103: 0
Y104: 0
Y105: 0
Y106: 0
Y107: =T107/$Y$5 -> 0
Y108: 0
Y109: 0
Y110: 0
Y111: 0
Y112: 0
Y113: 0
Y114: 0
Y115: 0
Y116: 0
Y117: 0
Y118: 0
Y119: 0
Y120: 0
Y121: 0
Y122: 0
Y123: 0
Y124: 0
Y125: 0
Y126: 0
Y127: 0
Y128: 0

Sheet CalculsInt10
A1: Feuille de résultats du calcul par interpolation 10 en 10 ans de la feuille CalculsBis
A2: 1 | B2: 2 | C2: 3 | D2: 4 | E2: 5 | F2: 6 | G2: 7 | H2: 8 | I2: 9 | J2: 10 | K2: 11 | L2: 12 | M2: 13 | N2: 14 | O2: 15 | P2: 16 | Q2: 17 | R2: 18 | S2: 19 | T2: 20 | U2: 21 | V2: 22 | W2: 23 | X2: 24 | Y2: 25 | Z2: 26 | AB2: 27 | AC2: 28 | AD2: 29 | AE2: 30
Y4: CroisFisher normalisé | AB4: Isolé normalisé
A5: Date | B5: Nb form | C5: Pds Tot | D5: Pds Ov | E5: Dparis | F5: I paris | G5: Alph.Fi | H5: Alpha x | I5: Alpha y | J5: Omega | K5: kx | L5: ky | M5: kF | N5: 1/2 fen | O5: xt | P5: yt | Q5: delta | R5: K bis | S5: FVAng crt95 KxKy | T5: prob croix | U5: Marque | V5: FVPro_Criti | Y5: =MAX(T6:T250) -> 0.7173868533 | Z5: 0.05 | AA5: <- seuil | AC5: =MAX(AB6:AB250) -> 0.9211641968 | AE5: =MAX(AD6:AD250) -> 0.1702375461
A6: 540 | B6: 18 | C6: 8.9 | D6: 99.7 | E6: 3.5 | F6: 67.8 | J6: 160.5 | K6: 693 | L6: 2750.6 | M6: 1380.6 | N6: 45 | O6: 0.0232 | P6: 0.3839 | Q6: =diff_ang((F6),(E6),Id,Dd,(-1)) -> 4.861136461 | R6: =K_dansDir(L6,K6,E6,F6,J6,'A dater'!$B$8,'A dater'!$A$8) -> 2597.013855 | S6: =Q6-AngCritDbl95(R6,D6,'A dater'!$C$8,Nd) -> 4.179500346 | T6: =IF((A6=""),0,Prob_crois_fish(Q6,R6,'A dater'!$C$8)) -> 6.587967661e-08 | U6: =IF(S6<0,0.1,-10) -> -10 | V6: =probCritDbl(R6,D6,'A dater'!$C$8,'A dater'!$D$8,Q6) -> 1.207729283e-43 | W6: =Q6-AngCrit95_isole( R6,D6) -> 2.07394664 | Y6: =T6/$Y$5 -> 9.183284627e-08 | Z6: =IF(Y6>$Z$5,0.05,-10) -> -10 | AB6: =IF((A6=""),0,ProbCrit_Isol(R6,C6,Q6)) -> 0.003277044373 | AC6: =AB6/$AC$5 -> 0.003557502977 | AD6: =IF((A6=""),0,V6) -> 1.207729283e-43 | AE6: =AD6/$AE$5 -> 7.094376714e-43
A7: 550 | B7: 19 | C7: 8.7 | D7: 96.5 | E7: 3.8 | F7: 68.2 | J7: 162.8 | K7: 841.4 | L7: 2647.6 | M7: 1469.1 | N7: 43.8 | O7: 0.0246 | P7: 0.3777 | Q7: =diff_ang((F7),(E7),Id,Dd,(-1)) -> 4.792628036 | R7: =K_dansDir(L7,K7,E7,F7,J7,'A dater'!$B$8,'A dater'!$A$8) -> 2608.847967 | S7: =Q7-AngCritDbl95(R7,D7,'A dater'!$C$8,Nd) -> 4.109676316 | T7: =IF((A7=""),0,Prob_crois_fish(Q7,R7,'A dater'!$C$8)) -> 1.003807109e-07 | U7: =IF(S7<0,0.1,-10) -> -10 | V7: =probCritDbl(R7,D7,'A dater'!$C$8,'A dater'!$D$8,Q7) -> 2.331949319e-42 | W7: =Q7-AngCrit95_isole( R7,D7) -> 2.010599087 | Y7: =T7/$Y$5 -> 1.399254956e-07 | Z7: =IF(Y7>$Z$5,0.05,-10) -> -10 | AB7: =IF((A7=""),0,ProbCrit_Isol(R7,C7,Q7)) -> 0.003795284665 | AC7: =AB7/$AC$5 -> 0.004120095721 | AD7: =IF((A7=""),0,V7) -> 2.331949319e-42 | AE7: =AD7/$AE$5 -> 1.369820802e-41
A8: 560 | B8: 20 | C8: 8.5 | D8: 93.4 | E8: 4 | F8: 68.5 | J8: 165.2 | K8: 989.7 | L8: 2544.7 | M8: 1557.5 | N8: 42.5 | O8: 0.0259 | P8: 0.3716 | Q8: 4.775887448 | R8: =K_dansDir(L8,K8,E8,F8,J8,'A dater'!$B$8,'A dater'!$A$8) -> 2542.510705 | S8: =Q8-AngCritDbl95(R8,D8,'A dater'!$C$8,Nd) -> 4.083377203 | T8: =IF((A8=""),0,Prob_crois_fish(Q8,R8,'A dater'!$C$8)) -> 1.414019181e-07 | U8: -10 | V8: =probCritDbl(R8,D8,'A dater'!$C$8,'A dater'!$D$8,Q8) -> 4.82749139e-41 | W8: 1.956565858 | Y8: 1.97106927e-07 | Z8: -10 | AB8: 0.004538913799 | AC8: 0.004927366712 | AD8: 4.82749139e-41 | AE8: 2.835738356e-40
A9: 570 | B9: 21 | C9: 8.3 | D9: 90.2 | E9: 4.3 | F9: 68.8 | J9: 167.5 | K9: 1138.1 | L9: 2441.7 | M9: 1646 | N9: 41.2 | O9: 0.0272 | P9: 0.3654 | Q9: 4.7463432 | R9: =K_dansDir(L9,K9,E9,F9,J9,'A dater'!$B$8,'A dater'!$A$8) -> 2434.552223 | S9: =Q9-AngCritDbl95(R9,D9,'A dater'!$C$8,Nd) -> 4.03907942 | T9: =IF((A9=""),0,Prob_crois_fish(Q9,R9,'A dater'!$C$8)) -> 2.486969993e-07 | U9: -10 | V9: =probCritDbl(R9,D9,'A dater'!$C$8,'A dater'!$D$8,Q9) -> 3.17688301e-39 | W9: 1.863791588 | Y9: 3.466706955e-07 | Z9: -10 | AB9: 0.005887668785 | AC9: 0.006391551914 | AD9: 3.17688301e-39 | AE9: 1.866147089e-38
A10: 580 | B10: 22 | C10: 8 | D10: 87.1 | E10: 4.6 | F10: 69.2 | J10: 169.9 | K10: 1286.4 | L10: 2338.7 | M10: 1734.5 | N10: 40 | O10: 0.0286 | P10: 0.3592 | Q10: 4.777587542 | R10: =K_dansDir(L10,K10,E10,F10,J10,'A dater'!$B$8,'A dater'!$A$8) -> 2294.058788 | S10: =Q10-AngCritDbl95(R10,D10,'A dater'!$C$8,Nd) -> 4.050654185 | T10: =IF((A10=""),0,Prob_crois_fish(Q10,R10,'A dater'!$C$8)) -> 3.314989293e-07 | U10: -10 | V10: =probCritDbl(R10,D10,'A dater'!$C$8,'A dater'!$D$8,Q10) -> 8.229104254e-38 | W10: 1.806577782 | Y10: 4.620922837e-07 | Z10: -10 | AB10: 0.007489350129 | AC10: 0.008130309619 | AD10: 8.229104254e-38 | AE10: 4.833895016e-37
A11: 590 | B11: 21.3 | C11: 8.1 | D11: 87.1 | E11: 4.5 | F11: 69.3 | J11: 182.6 | K11: 1458.2 | L11: 2275.6 | M11: 1812.3 | N11: 36.7 | O11: 0.028 | P11: 0.357 | Q11: 4.848464024 | R11: =K_dansDir(L11,K11,E11,F11,J11,'A dater'!$B$8,'A dater'!$A$8) -> 2124.876556 | S11: =Q11-AngCritDbl95(R11,D11,'A dater'!$C$8,Nd) -> 4.09902538 | T11: =IF((A11=""),0,Prob_crois_fish(Q11,R11,'A dater'!$C$8)) -> 3.888976449e-07 | U11: -10 | V11: =probCritDbl(R11,D11,'A dater'!$C$8,'A dater'!$D$8,Q11) -> 5.166539788e-37 | W11: 1.76141549 | Y11: 5.42103111e-07 | Z11: -10 | AB11: 0.00862453779 | AC11: 0.009362649809 | AD11: 5.166539788e-37 | AE11: 3.034900295e-36
A12: 600 | B12: 20.7 | C12: 8.1 | D12: 87.2 | E12: 4.5 | F12: 69.5 | J12: 195.3 | K12: 1630.1 | L12: 2212.6 | M12: 1890.2 | N12: 33.3 | O12: 0.0275 | P12: 0.3549 | Q12: 4.929503634 | R12: =K_dansDir(L12,K12,E12,F12,J12,'A dater'!$B$8,'A dater'!$A$8) -> 1969.239474 | S12: =Q12-AngCritDbl95(R12,D12,'A dater'!$C$8,Nd) -> 4.156763577 | T12: =IF((A12=""),0,Prob_crois_fish(Q12,R12,'A dater'!$C$8)) -> 4.206339767e-07 | U12: -10 | V12: =probCritDbl(R12,D12,'A dater'!$C$8,'A dater'!$D$8,Q12) -> 2.53874858e-36 | W12: 1.722805718 | Y12: 5.863419086e-07 | Z12: -10 | AB12: 0.009991653516 | AC12: 0.01084676711 | AD12: 2.53874858e-36 | AE12: 1.491297683e-35
A13: 610 | B13: 20 | C13: 8.1 | D13: 87.2 | E13: 4.4 | F13: 69.6 | J13: 208 | K13: 1801.9 | L13: 2149.5 | M13: 1968 | N13: 30 | O13: 0.0269 | P13: 0.3527 | Q13: 5.003901716 | R13: =K_dansDir(L13,K13,E13,F13,J13,'A dater'!$B$8,'A dater'!$A$8) -> 1923.483507 | S13: =Q13-AngCritDbl95(R13,D13,'A dater'!$C$8,Nd) -> 4.223714729 | T13: =IF((A13=""),0,Prob_crois_fish(Q13,R13,'A dater'!$C$8)) -> 3.205156747e-07 | U13: -10 | V13: =probCritDbl(R13,D13,'A dater'!$C$8,'A dater'!$D$8,Q13) -> 1.371143879e-36 | W13: 1.759277085 | Y13: 4.467821974e-07 | Z13: -10 | AB13: 0.009775939591 | AC13: 0.01061259179 | AD13: 1.371143879e-36 | AE13: 8.05429772e-36
A14: 620 | B14: 24 | C14: 8.9 | D14: 97.1 | E14: 3.8 | F14: 69.6 | J14: 232.8 | K14: 1669.1 | L14: 2145.8 | M14: 1890.3 | N14: 28 | O14: 0.0236 | P14: 0.3521 | Q14: 5.193508383 | R14: =K_dansDir(L14,K14,E14,F14,J14,'A dater'!$B$8,'A dater'!$A$8) -> 1693.25791 | S14: =Q14-AngCritDbl95(R14,D14,'A dater'!$C$8,Nd) -> 4.3787332 | T14: =IF((A14=""),0,Prob_crois_fish(Q14,R14,'A dater'!$C$8)) -> 2.601321426e-07 | U14: -10 | V14: =probCritDbl(R14,D14,'A dater'!$C$8,'A dater'!$D$8,Q14) -> 3.372734697e-37 | W14: 1.740378991 | Y14: 3.62610691e-07 | Z14: -10 | AB14: 0.01001252363 | AC14: 0.01086942335 | AD14: 3.372734697e-37 | AE14: 1.981193207e-36
A15: 630 | B15: 28 | C15: 9.6 | D15: 107 | E15: 3.3 | F15: 69.7 | J15: 257.5 | K15: 1536.3 | L15: 2142.1 | M15: 1812.6 | N15: 26 | O15: 0.0203 | P15: 0.3514 | Q15: 5.393049787 | R15: =K_dansDir(L15,K15,E15,F15,J15,'A dater'!$B$8,'A dater'!$A$8) -> 1560.138771 | S15: =Q15-AngCritDbl95(R15,D15,'A dater'!$C$8,Nd) -> 4.555338367 | T15: =IF((A15=""),0,Prob_crois_fish(Q15,R15,'A dater'!$C$8)) -> 1.43145191e-07 | U15: -10 | V15: =probCritDbl(R15,D15,'A dater'!$C$8,'A dater'!$D$8,Q15) -> 1.466780449e-38 | W15: 1.799897337 | Y15: 1.995369588e-07 | Z15: -10 | AB15: 0.009094115257 | AC15: 0.009872415025 | AD15: 1.466780449e-38 | AE15: 8.616080783e-38
A16: 640 | B16: 30 | C16: 10.4 | D16: 118 | E16: 2.7 | F16: 69.7 | J16: 272.4 | K16: 1424.2 | L16: 2151.8 | M16: 1749.6 | N16: 23.8 | O16: 0.0167 | P16: 0.3511 | Q16: 5.584335532 | R16: =K_dansDir(L16,K16,E16,F16,J16,'A dater'!$B$8,'A dater'!$A$8) -> 1553.419248 | S16: =Q16-AngCritDbl95(R16,D16,'A dater'!$C$8,Nd) -> 4.750661506 | T16: =IF((A16=""),0,Prob_crois_fish(Q16,R16,'A dater'!$C$8)) -> 4.741250249e-08 | U16: -10 | V16: =probCritDbl(R16,D16,'A dater'!$C$8,'A dater'!$D$8,Q16) -> 1.051430316e-41 | W16: 1.987375092 | Y16: 6.609056504e-08 | Z16: -10 | AB16: 0.006263254069 | AC16: 0.006799280835 | AD16: 1.051430316e-41 | AE16: 6.176253948e-41
A17: 650 | B17: 30 | C17: 11.3 | D17: 130.1 | E17: 2.1 | F17: 69.8 | J17: 277.3 | K17: 1332.7 | L17: 2174.7 | M17: 1701.5 | N17: 21.2 | O17: 0.013 | P17: 0.3511 | Q17: 5.814421319 | R17: =K_dansDir(L17,K17,E17,F17,J17,'A dater'!$B$8,'A dater'!$A$8) -> 1535.591515 | S17: =Q17-AngCritDbl95(R17,D17,'A dater'!$C$8,Nd) -> 4.981581334 | T17: =IF((A17=""),0,Prob_crois_fish(Q17,R17,'A dater'!$C$8)) -> 1.2597537e-08 | U17: -10 | V17: =probCritDbl(R17,D17,'A dater'!$C$8,'A dater'!$D$8,Q17) -> 3.118938245e-45 | W17: 2.200228271 | Y17: 1.756031205e-08 | Z17: -10 | AB17: 0.004113696364 | AC17: 0.004465757981 | AD17: 3.118938245e-45 | AE17: 1.832109495e-44
A18: 660 | B18: 29.3 | C18: 11.6 | D18: 135.9 | E18: 1.6 | F18: 69.8 | J18: 281.3 | K18: 1287.2 | L18: 2186.3 | M18: 1677.6 | N18: 18.3 | O18: 0.0098 | P18: 0.3509 | Q18: 5.974996304 | R18: =K_dansDir(L18,K18,E18,F18,J18,'A dater'!$B$8,'A dater'!$A$8) -> 1544.132443 | S18: =Q18-AngCritDbl95(R18,D18,'A dater'!$C$8,Nd) -> 5.146352929 | T18: =IF((A18=""),0,Prob_crois_fish(Q18,R18,'A dater'!$C$8)) -> 4.346933288e-09 | U18: -10 | V18: =probCritDbl(R18,D18,'A dater'!$C$8,'A dater'!$D$8,Q18) -> 7.72016049e-48 | W18: 2.372305575 | Y18: 6.059399149e-09 | Z18: -10 | AB18: 0.003024152657 | AC18: 0.003282968083 | AD18: 7.72016049e-48 | AE18: 4.534934078e-47
A19: 670 | B19: 28 | C19: 11.3 | D19: 135.3 | E19: 1.2 | F19: 69.8 | J19: 284.3 | K19: 1287.7 | L19: 2186.6 | M19: 1678 | N19: 15 | O19: 0.0072 | P19: 0.3506 | Q19: 6.104287104 | R19: =K_dansDir(L19,K19,E19,F19,J19,'A dater'!$B$8,'A dater'!$A$8) -> 1575.791268 | S19: =Q19-AngCritDbl95(R19,D19,'A dater'!$C$8,Nd) -> 5.282933408 | T19: =IF((A19=""),0,Prob_crois_fish(Q19,R19,'A dater'!$C$8)) -> 1.565952778e-09 | U19: -10 | V19: =probCritDbl(R19,D19,'A dater'!$C$8,'A dater'!$D$8,Q19) -> 7.300392662e-50 | W19: 2.537835719 | Y19: 2.18285681e-09 | Z19: -10 | AB19: 0.002390174389 | AC19: 0.002594732185 | AD19: 7.300392662e-50 | AE19: 4.288356377e-49
A20: 680 | B20: 27.3 | C20: 11.5 | D20: 137.8 | E20: 1.1 | F20: 69.8 | J20: 284.4 | K20: 1305.2 | L20: 2145.2 | M20: 1673.2 | N20: 15 | O20: 0.007 | P20: 0.3502 | Q20: 6.136718429 | R20: =K_dansDir(L20,K20,E20,F20,J20,'A dater'!$B$8,'A dater'!$A$8) -> 1572.986738 | S20: =Q20-AngCritDbl95(R20,D20,'A dater'!$C$8,Nd) -> 5.315589687 | T20: =IF((A20=""),0,Prob_crois_fish(Q20,R20,'A dater'!$C$8)) -> 1.282440536e-09 | U20: -10 | V20: =probCritDbl(R20,D20,'A dater'!$C$8,'A dater'!$D$8,Q20) -> 1.766869859e-50 | W20: 2.567691046 | Y20: 1.787655475e-09 | Z20: -10 | AB20: 0.002216664893 | AC20: 0.002406373262 | AD20: 1.766869859e-50 | AE20: 1.037884944e-49
A21: 690 | B21: 31.7 | C21: 10.8 | D21: 127.8 | E21: 1.6 | F21: 69.9 | J21: 286 | K21: 1224.3 | L21: 1975.4 | M21: 1555.1 | N21: 15 | O21: 0.0095 | P21: 0.3478 | Q21: 6.011579442 | R21: =K_dansDir(L21,K21,E21,F21,J21,'A dater'!$B$8,'A dater'!$A$8) -> 1507.741652 | S21: =Q21-AngCritDbl95(R21,D21,'A dater'!$C$8,Nd) -> 5.171001516 | T21: =IF((A21=""),0,Prob_crois_fish(Q21,R21,'A dater'!$C$8)) -> 4.192584122e-09 | U21: -10 | V21: =probCritDbl(R21,D21,'A dater'!$C$8,'A dater'!$D$8,Q21) -> 1.333178957e-46 | W21: 2.363512393 | Y21: 5.844244431e-09 | Z21: -10 | AB21: 0.003626370893 | AC21: 0.003936725836 | AD21: 1.333178957e-46 | AE21: 7.83128627e-46
A22: 700 | B22: 41 | C22: 9.2 | D22: 105.1 | E22: 2.5 | F22: 70.2 | J22: 289.2 | K22: 1044.8 | L22: 1677.3 | M22: 1323.8 | N22: 15 | O22: 0.0148 | P22: 0.3434 | Q22: 5.854702773 | R22: =K_dansDir(L22,K22,E22,F22,J22,'A dater'!$B$8,'A dater'!$A$8) -> 1369.808535 | S22: =Q22-AngCritDbl95(R22,D22,'A dater'!$C$8,Nd) -> 4.966664116 | T22: =IF((A22=""),0,Prob_crois_fish(Q22,R22,'A dater'!$C$8)) -> 2.323310297e-08 | U22: -10 | V22: =probCritDbl(R22,D22,'A dater'!$C$8,'A dater'!$D$8,Q22) -> 1.047244684e-39 | W22: 2.019131373 | Y22: 3.238573841e-08 | Z22: -10 | AB22: 0.008605752847 | AC22: 0.009342257198 | AD22: 1.047244684e-39 | AE22: 6.151666942e-39
A23: 710 | B23: 30 | C23: 8.8 | D23: 97.2 | E23: 3.8 | F23: 70.5 | J23: 272.4 | K23: 1076.9 | L23: 1538 | M23: 1284.6 | N23: 17.5 | O23: 0.0224 | P23: 0.3378 | Q23: 5.62239494 | R23: =K_dansDir(L23,K23,E23,F23,J23,'A dater'!$B$8,'A dater'!$A$8) -> 1228.313808 | S23: =Q23-AngCritDbl95(R23,D23,'A dater'!$C$8,Nd) -> 4.685686147 | T23: =IF((A23=""),0,Prob_crois_fish(Q23,R23,'A dater'!$C$8)) -> 1.799063132e-07 | U23: -10 | V23: =probCritDbl(R23,D23,'A dater'!$C$8,'A dater'!$D$8,Q23) -> 3.57500177e-34 | W23: 1.567876255 | Y23: 2.507800532e-07 | Z23: -10 | AB23: 0.01746288975 | AC23: 0.0189574126 | AD23: 3.57500177e-34 | AE23: 2.100007814e-33
A24: 720 | B24: 19 | C24: 8.5 | D24: 89.3 | E24: 5.2 | F24: 70.8 | J24: 255.6 | K24: 1109 | L24: 1398.6 | M24: 1245.4 | N24: 20 | O24: 0.0301 | P24: 0.3323 | Q24: 5.422211315 | R24: =K_dansDir(L24,K24,E24,F24,J24,'A dater'!$B$8,'A dater'!$A$8) -> 1159.99686 | S24: =Q24-AngCritDbl95(R24,D24,'A dater'!$C$8,Nd) -> 4.456125038 | T24: =IF((A24=""),0,Prob_crois_fish(Q24,R24,'A dater'!$C$8)) -> 7.231149962e-07 | U24: -10 | V24: =probCritDbl(R24,D24,'A dater'!$C$8,'A dater'!$D$8,Q24) -> 1.724575644e-30 | W24: 1.245147932 | Y24: 1.007984734e-06 | Z24: -10 | AB24: 0.02693442319 | AC24: 0.02923954631 | AD24: 1.724575644e-30 | AE24: 1.013040709e-29
A25: 730 | B25: 19.8 | C25: 8.7 | D25: 90.9 | E25: 5.5 | F25: 70.8 | J25: 252.5 | K25: 1057.8 | L25: 1401 | M25: 1216.8 | N25: 22 | O25: 0.0319 | P25: 0.3331 | Q25: 5.346287376 | R25: =K_dansDir(L25,K25,E25,F25,J25,'A dater'!$B$8,'A dater'!$A$8) -> 1108.754464 | S25: =Q25-AngCritDbl95(R25,D25,'A dater'!$C$8,Nd) -> 4.36177318 | T25: =IF((A25=""),0,Prob_crois_fish(Q25,R25,'A dater'!$C$8)) -> 1.338636786e-06 | U25: -10 | V25: =probCritDbl(R25,D25,'A dater'!$C$8,'A dater'!$D$8,Q25) -> 3.693121069e-29 | W25: 1.074811289 | Y25: 1.865990127e-06 | Z25: -10 | AB25: 0.03229349739 | AC25: 0.03505726503 | AD25: 3.693121069e-29 | AE25: 2.169392801e-28
A26: 740 | B26: 20.6 | C26: 8.8 | D26: 92.6 | E26: 5.8 | F26: 70.7 | J26: 249.4 | K26: 1006.7 | L26: 1403.4 | M26: 1188.2 | N26: 24 | O26: 0.0337 | P26: 0.3339 | Q26: 5.206188669 | R26: =K_dansDir(L26,K26,E26,F26,J26,'A dater'!$B$8,'A dater'!$A$8) -> 1051.830286 | S26: =Q26-AngCritDbl95(R26,D26,'A dater'!$C$8,Nd) -> 4.199352757 | T26: =IF((A26=""),0,Prob_crois_fish(Q26,R26,'A dater'!$C$8)) -> 3.405868908e-06 | U26: -10 | V26: =probCritDbl(R26,D26,'A dater'!$C$8,'A dater'!$D$8,Q26) -> 3.30414903e-27 | W26: 0.821715649 | Y26: 4.747604298e-06 | Z26: -10 | AB26: 0.04242444849 | AC26: 0.04605525121 | AD26: 3.30414903e-27 | AE26: 1.940904992e-26
A27: 750 | B27: 21.2 | C27: 8.9 | D27: 94.5 | E27: 6.2 | F27: 70.6 | J27: 247.3 | K27: 972.9 | L27: 1445.6 | M27: 1185.2 | N27: 25 | O27: 0.0363 | P27: 0.3351 | Q27: 5.040473948 | R27: =K_dansDir(L27,K27,E27,F27,J27,'A dater'!$B$8,'A dater'!$A$8) -> 1018.539565 | S27: =Q27-AngCritDbl95(R27,D27,'A dater'!$C$8,Nd) -> 4.0201755 | T27: =IF((A27=""),0,Prob_crois_fish(Q27,R27,'A dater'!$C$8)) -> 8.52039841e-06 | U27: -10 | V27: =probCritDbl(R27,D27,'A dater'!$C$8,'A dater'!$D$8,Q27) -> 1.761405413e-25 | W27: 0.5861117977 | Y27: 1.187699269e-05 | Z27: -10 | AB27: 0.05364093565 | AC27: 0.05823167665 | AD27: 1.761405413e-25 | AE27: 1.034675049e-24
A28: 760 | B28: 21.6 | C28: 8.9 | D28: 96.6 | E28: 6.7 | F28: 70.5 | J28: 246.2 | K28: 956.6 | L28: 1527.5 | M28: 1207.7 | N28: 25 | O28: 0.0398 | P28: 0.3366 | Q28: 4.849356797 | R28: =K_dansDir(L28,K28,E28,F28,J28,'A dater'!$B$8,'A dater'!$A$8) -> 1010.379472 | S28: =Q28-AngCritDbl95(R28,D28,'A dater'!$C$8,Nd) -> 3.826612315 | T28: =IF((A28=""),0,Prob_crois_fish(Q28,R28,'A dater'!$C$8)) -> 2.089635728e-05 | U28: -10 | V28: =probCritDbl(R28,D28,'A dater'!$C$8,'A dater'!$D$8,Q28) -> 5.271974987e-24 | W28: 0.3783353394 | Y28: 2.912843633e-05 | Z28: -10 | AB28: 0.06568020412 | AC28: 0.07130129932 | AD28: 5.271974987e-24 | AE28: 3.096834458e-23
A29: 770 | B29: 22 | C29: 8.9 | D29: 98.7 | E29: 7.3 | F29: 70.4 | J29: 245.1 | K29: 940.3 | L29: 1609.5 | M29: 1230.2 | N29: 25 | O29: 0.0432 | P29: 0.3382 | Q29: 4.633578763 | R29: =K_dansDir(L29,K29,E29,F29,J29,'A dater'!$B$8,'A dater'!$A$8) -> 1004.738295 | S29: =Q29-AngCritDbl95(R29,D29,'A dater'!$C$8,Nd) -> 3.609450003 | T29: =IF((A29=""),0,Prob_crois_fish(Q29,R29,'A dater'!$C$8)) -> 5.433356175e-05 | U29: -10 | V29: =probCritDbl(R29,D29,'A dater'!$C$8,'A dater'!$D$8,Q29) -> 2.22734607e-22 | W29: 0.1512654848 | Y29: 7.573816206e-05 | Z29: -10 | AB29: 0.08142975259 | AC29: 0.08839873811 | AD29: 2.22734607e-22 | AE29: 1.308375339e-21
A30: 780 | B30: 23.2 | C30: 8.7 | D30: 98.9 | E30: 8 | F30: 70.4 | J30: 247.9 | K30: 928 | L30: 1617.5 | M30: 1225.1 | N30: 25 | O30: 0.0473 | P30: 0.3382 | Q30: =diff_ang((F30),(E30),Id,Dd,(-1)) -> 4.465607363 | R30: =K_dansDir(L30,K30,E30,F30,J30,'A dater'!$B$8,'A dater'!$A$8) -> 1038.510952 | S30: =Q30-AngCritDbl95(R30,D30,'A dater'!$C$8,Nd) -> 3.456808349 | T30: =IF((A30=""),0,Prob_crois_fish(Q30,R30,'A dater'!$C$8)) -> 9.86276866e-05 | U30: =IF(S30<0,0.1,-10) -> -10 | V30: =probCritDbl(R30,D30,'A dater'!$C$8,'A dater'!$D$8,Q30) -> 1.262570791e-21 | W30: =Q30-AngCrit95_isole( R30,D30) -> 0.05693098229 | Y30: 0.0001374818707 | Z30: -10 | AB30: 0.0899720804 | AC30: 0.09767214219 | AD30: 1.262570791e-21 | AE30: 7.416523675e-21
A31: 790 | B31: 24.4 | C31: 8.5 | D31: 99.1 | E31: 8.7 | F31: 70.3 | J31: 250.6 | K31: 915.7 | L31: 1625.4 | M31: 1220 | N31: 25 | O31: 0.0514 | P31: 0.3382 | Q31: 4.231389208 | R31: =K_dansDir(L31,K31,E31,F31,J31,'A dater'!$B$8,'A dater'!$A$8) -> 1075.318681 | S31: =Q31-AngCritDbl95(R31,D31,'A dater'!$C$8,Nd) -> 3.238440429 | T31: =IF((A31=""),0,Prob_crois_fish(Q31,R31,'A dater'!$C$8)) -> 0.0002287936187 | U31: -10 | V31: =probCritDbl(R31,D31,'A dater'!$C$8,'A dater'!$D$8,Q31) -> 2.332573325e-20 | W31: -0.1010274922 | Y31: 0.0003189264169 | Z31: -10 | AB31: 0.1055246711 | AC31: 0.1145557671 | AD31: 2.332573325e-20 | AE31: 1.370187352e-19
A32: 800 | B32: 26 | C32: 8.4 | D32: 99.5 | E32: 9.6 | F32: 70.3 | J32: 251.9 | K32: 909.8 | L32: 1634.8 | M32: 1219.6 | N32: 25.8 | O32: 0.0567 | P32: 0.3376 | Q32: 4.035232536 | R32: =K_dansDir(L32,K32,E32,F32,J32,'A dater'!$B$8,'A dater'!$A$8) -> 1132.544482 | S32: =Q32-AngCritDbl95(R32,D32,'A dater'!$C$8,Nd) -> 3.065391858 | T32: =IF((A32=""),0,Prob_crois_fish(Q32,R32,'A dater'!$C$8)) -> 0.0004240403482 | U32: -10 | V32: =probCritDbl(R32,D32,'A dater'!$C$8,'A dater'!$D$8,Q32) -> 1.333975364e-19 | W32: -0.186041818 | Y32: 0.0005910902135 | Z32: -10 | AB32: 0.1152877407 | AC32: 0.1251543873 | AD32: 1.333975364e-19 | AE32: 7.835964482e-19
A33: 810 | B33: 28 | C33: 8.5 | D33: 100.2 | E33: 10.7 | F33: 70.3 | J33: 251.8 | K33: 910.2 | L33: 1645.7 | M33: 1223.9 | N33: 27.5 | O33: 0.0633 | P33: 0.3365 | Q33: 3.819632218 | R33: =K_dansDir(L33,K33,E33,F33,J33,'A dater'!$B$8,'A dater'!$A$8) -> 1201.416682 | S33: =Q33-AngCritDbl95(R33,D33,'A dater'!$C$8,Nd) -> 2.875467308 | T33: =IF((A33=""),0,Prob_crois_fish(Q33,R33,'A dater'!$C$8)) -> 0.0008158311774 | U33: -10 | V33: =probCritDbl(R33,D33,'A dater'!$C$8,'A dater'!$D$8,Q33) -> 9.534522037e-19 | W33: -0.2784446461 | Y33: 0.001137226273 | Z33: -10 | AB33: 0.125827731 | AC33: 0.1365964194 | AD33: 9.534522037e-19 | AE33: 5.600716327e-18
A34: 820 | B34: 30 | C34: 8.5 | D34: 100.9 | E34: 11.8 | F34: 70.3 | J34: 251.7 | K34: 910.6 | L34: 1656.5 | M34: 1228.2 | N34: 29.2 | O34: 0.0699 | P34: 0.3354 | Q34: 3.635080396 | R34: =K_dansDir(L34,K34,E34,F34,J34,'A dater'!$B$8,'A dater'!$A$8) -> 1281.851375 | S34: =Q34-AngCritDbl95(R34,D34,'A dater'!$C$8,Nd) -> 2.718137079 | T34: =IF((A34=""),0,Prob_crois_fish(Q34,R34,'A dater'!$C$8)) -> 0.001356608329 | U34: -10 | V34: =probCritDbl(R34,D34,'A dater'!$C$8,'A dater'!$D$8,Q34) -> 3.738131007e-18 | W34: -0.3319375615 | Y34: 0.001891041526 | Z34: -10 | AB34: 0.1337613097 | AC34: 0.145208976 | AD34: 3.738131007e-18 | AE34: 2.195832291e-17
A35: 830 | B35: 28.4 | C35: 8.5 | D35: 100.5 | E35: 12.6 | F35: 70.3 | J35: 250.3 | K35: 937 | L35: 1719.7 | M35: 1269.4 | N35: 29 | O35: 0.0751 | P35: 0.3346 | Q35: 3.52321776 | R35: =K_dansDir(L35,K35,E35,F35,J35,'A dater'!$B$8,'A dater'!$A$8) -> 1371.252754 | S35: =Q35-AngCritDbl95(R35,D35,'A dater'!$C$8,Nd) -> 2.632923323 | T35: =IF((A35=""),0,Prob_crois_fish(Q35,R35,'A dater'!$C$8)) -> 0.001709179425 | U35: -10 | V35: =probCritDbl(R35,D35,'A dater'!$C$8,'A dater'!$D$8,Q35) -> 4.291565761e-18 | W35: -0.3124424803 | Y35: 0.002382507314 | Z35: -10 | AB35: 0.1326002834 | AC35: 0.1439485858 | AD35: 4.291565761e-18 | AE35: 2.52092788e-17
A36: 840 | B36: 23.2 | C36: 8.6 | D36: 99 | E36: 13.3 | F36: 70.2 | J36: 247.4 | K36: 989.5 | L36: 1835.2 | M36: 1347.5 | N36: 27 | O36: 0.079 | P36: 0.3343 | Q36: 3.347419611 | R36: =K_dansDir(L36,K36,E36,F36,J36,'A dater'!$B$8,'A dater'!$A$8) -> 1471.575269 | S36: =Q36-AngCritDbl95(R36,D36,'A dater'!$C$8,Nd) -> 2.483268209 | T36: =IF((A36=""),0,Prob_crois_fish(Q36,R36,'A dater'!$C$8)) -> 0.002676924084 | U36: -10 | V36: =probCritDbl(R36,D36,'A dater'!$C$8,'A dater'!$D$8,Q36) -> 1.915739798e-17 | W36: -0.3558451323 | Y36: 0.003731493088 | Z36: -10 | AB36: 0.1394369127 | AC36: 0.1513703129 | AD36: 1.915739798e-17 | AE36: 1.125333302e-16
A37: 850 | B37: 18 | C37: 8.7 | D37: 97.5 | E37: 13.9 | F37: 70.2 | J37: 244.6 | K37: 1041.9 | L37: 1950.8 | M37: 1425.7 | N37: 25 | O37: 0.0829 | P37: 0.3339 | Q37: =diff_ang((F37),(E37),Id,Dd,(-1)) -> 3.289974829 | R37: =K_dansDir(L37,K37,E37,F37,J37,'A dater'!$B$8,'A dater'!$A$8) -> 1577.651957 | S37: =Q37-AngCritDbl95(R37,D37,'A dater'!$C$8,Nd) -> 2.450469837 | T37: =IF((A37=""),0,Prob_crois_fish(Q37,R37,'A dater'!$C$8)) -> 0.00274926076 | U37: =IF(S37<0,0.1,-10) -> -10 | V37: =probCritDbl(R37,D37,'A dater'!$C$8,'A dater'!$D$8,Q37) -> 9.5078995e-18 | W37: =Q37-AngCrit95_isole( R37,D37) -> -0.2872853252 | Y37: 0.003832326655 | Z37: -10 | AB37: 0.1304074874 | AC37: 0.1415681242 | AD37: 9.5078995e-18 | AE37: 5.585077864e-17
A38: 860 | B38: 17.2 | C38: 8.9 | D38: 100.3 | E38: 14.1 | F38: 70.2 | J38: 243.1 | K38: 1031.3 | L38: 2056.7 | M38: 1455.3 | N38: 25 | O38: 0.0841 | P38: 0.3342 | Q38: 3.273837757 | R38: =K_dansDir(L38,K38,E38,F38,J38,'A dater'!$B$8,'A dater'!$A$8) -> 1632.827507 | S38: =Q38-AngCritDbl95(R38,D38,'A dater'!$C$8,Nd) -> 2.448474312 | T38: =IF((A38=""),0,Prob_crois_fish(Q38,R38,'A dater'!$C$8)) -> 0.002661715538 | U38: -10 | V38: =probCritDbl(R38,D38,'A dater'!$C$8,'A dater'!$D$8,Q38) -> 3.694956779e-18 | W38: -0.2411707268 | Y38: 0.003710293164 | Z38: -10 | AB38: 0.1234089437 | AC38: 0.1339706256 | AD38: 3.694956779e-18 | AE38: 2.170471123e-17
A39: 870 | B39: 16.4 | C39: 9 | D39: 103.1 | E39: 14.3 | F39: 70.1 | J39: 241.6 | K39: 1020.6 | L39: 2162.6 | M39: 1485 | N39: 25 | O39: 0.0852 | P39: 0.3345 | Q39: 3.161411731 | R39: =K_dansDir(L39,K39,E39,F39,J39,'A dater'!$B$8,'A dater'!$A$8) -> 1680.270096 | S39: =Q39-AngCritDbl95(R39,D39,'A dater'!$C$8,Nd) -> 2.347897669 | T39: =IF((A39=""),0,Prob_crois_fish(Q39,R39,'A dater'!$C$8)) -> 0.003694606338 | U39: -10 | V39: =probCritDbl(R39,D39,'A dater'!$C$8,'A dater'!$D$8,Q39) -> 1.295533156e-17 | W39: -0.3024172839 | Y39: 0.005150089274 | Z39: -10 | AB39: 0.1323061214 | AC39: 0.1436292486 | AD39: 1.295533156e-17 | AE39: 7.610149381e-17
A40: 880 | B40: 17.6 | C40: 9.3 | D40: 107.6 | E40: 14.9 | F40: 69.8 | J40: 233.7 | K40: 890.7 | L40: 1954.8 | M40: 1319.5 | N40: 25 | O40: 0.0904 | P40: 0.3393 | Q40: 2.829012611 | R40: =K_dansDir(L40,K40,E40,F40,J40,'A dater'!$B$8,'A dater'!$A$8) -> 1421.976082 | S40: =Q40-AngCritDbl95(R40,D40,'A dater'!$C$8,Nd) -> 1.956865986 | T40: =IF((A40=""),0,Prob_crois_fish(Q40,R40,'A dater'!$C$8)) -> 0.01544526024 | U40: -10 | V40: =probCritDbl(R40,D40,'A dater'!$C$8,'A dater'!$D$8,Q40) -> 4.442940526e-13 | W40: -0.934467048 | Y40: 0.02152989028 | Z40: -10 | AB40: 0.2384895861 | AC40: 0.2589001906 | AD40: 4.442940526e-13 | AE40: 2.609847609e-12
A41: 890 | B41: 20.8 | C41: 9.7 | D41: 113.8 | E41: 15.9 | F41: 69.1 | J41: 219.4 | K41: 641.6 | L41: 1433.2 | M41: 958.8 | N41: 25 | O41: 0.0995 | P41: 0.3486 | Q41: 2.100331926 | R41: =K_dansDir(L41,K41,E41,F41,J41,'A dater'!$B$8,'A dater'!$A$8) -> 946.1286392 | S41: =Q41-AngCritDbl95(R41,D41,'A dater'!$C$8,Nd) -> 1.055115372 | T41: =IF((A41=""),0,Prob_crois_fish(Q41,R41,'A dater'!$C$8)) -> 0.1381709228 | U41: -10 | V41: =probCritDbl(R41,D41,'A dater'!$C$8,'A dater'!$D$8,Q41) -> 8.276751653e-06 | W41: -2.510963224 | Y41: 0.1926030874 | Z41: 0.05 | AB41: 0.5724127431 | AC41: 0.6214014234 | AD41: 8.276751653e-06 | AE41: 4.861883788e-05
A42: 900 | B42: 24 | C42: 10.1 | D42: 120 | E42: 16.9 | F42: 68.4 | J42: 205.1 | K42: 392.5 | L42: 911.6 | M42: 598.1 | N42: 25 | O42: 0.1086 | P42: 0.3579 | Q42: 1.441012872 | R42: =K_dansDir(L42,K42,E42,F42,J42,'A dater'!$B$8,'A dater'!$A$8) -> 600.088844 | S42: =Q42-AngCritDbl95(R42,D42,'A dater'!$C$8,Nd) -> 0.1493930513 | T42: =IF((A42=""),0,Prob_crois_fish(Q42,R42,'A dater'!$C$8)) -> 0.4394235988 | U42: -10 | V42: =probCritDbl(R42,D42,'A dater'!$C$8,'A dater'!$D$8,Q42) -> 0.0242573545 | W42: -4.346740821 | Y42: 0.6125336655 | Z42: 0.05 | AB42: 0.8427854962 | AC42: 0.9149134315 | AD42: 0.0242573545 | AE42: 0.1424912133
A43: 910 | B43: 20.8 | C43: 9.3 | D43: 110.4 | E43: 17.7 | F43: 67.6 | J43: 196.7 | K43: 378.7 | L43: 841.9 | M43: 564.4 | N43: 25 | O43: 0.1184 | P43: 0.3693 | Q43: 0.8889829048 | R43: =K_dansDir(L43,K43,E43,F43,J43,'A dater'!$B$8,'A dater'!$A$8) -> 759.4236813 | S43: =Q43-AngCritDbl95(R43,D43,'A dater'!$C$8,Nd) -> -0.270124593 | T43: =IF((A43=""),0,Prob_crois_fish(Q43,R43,'A dater'!$C$8)) -> 0.7173868533 | U43: 0.1 | V43: =probCritDbl(R43,D43,'A dater'!$C$8,'A dater'!$D$8,Q43) -> 0.1702375461 | W43: -4.260145397 | Y43: 1 | Z43: 0.05 | AB43: 0.9211641968 | AC43: 1 | AD43: 0.1702375461 | AE43: 1
A44: 920 | B44: 17.6 | C44: 8.5 | D44: 100.8 | E44: 18.6 | F44: 66.8 | J44: 188.4 | K44: 365 | L44: 772.2 | M44: 530.7 | N44: 25 | O44: 0.1281 | P44: 0.3806 | Q44: 1.039416435 | R44: =K_dansDir(L44,K44,E44,F44,J44,'A dater'!$B$8,'A dater'!$A$8) -> 721.3843967 | S44: =Q44-AngCritDbl95(R44,D44,'A dater'!$C$8,Nd) -> -0.152227695 | T44: =IF((A44=""),0,Prob_crois_fish(Q44,R44,'A dater'!$C$8)) -> 0.6390339349 | U44: 0.1 | V44: =probCritDbl(R44,D44,'A dater'!$C$8,'A dater'!$D$8,Q44) -> 0.1016682608 | W44: -4.249585976 | Y44: 0.8907801028 | Z44: 0.05 | AB44: 0.8999205917 | AC44: 0.9769383079 | AD44: 0.1016682608 | AE44: 0.5972140882
A45: 930 | B45: 15.6 | C45: 8.2 | D45: 99.3 | E45: 19 | F45: 66.1 | J45: 179.8 | K45: 408 | L45: 780.9 | M45: 563.2 | N45: 26.4 | O45: 0.1351 | P45: 0.3916 | Q45: 1.494823564 | R45: =K_dansDir(L45,K45,E45,F45,J45,'A dater'!$B$8,'A dater'!$A$8) -> 638.4122311 | S45: =Q45-AngCritDbl95(R45,D45,'A dater'!$C$8,Nd) -> 0.2322888152 | T45: =IF((A45=""),0,Prob_crois_fish(Q45,R45,'A dater'!$C$8)) -> 0.4074288546 | U45: -10 | V45: =probCritDbl(R45,D45,'A dater'!$C$8,'A dater'!$D$8,Q45) -> 0.01532339855 | W45: -4.128710059 | Y45: 0.5679346544 | Z45: 0.05 | AB45: 0.826083943 | AC45: 0.8967825127 | AD45: 0.01532339855 | AE45: 0.09001186228
A46: 940 | B46: 14.7 | C46: 8.4 | D46: 105.9 | E46: 19.1 | F46: 65.4 | J46: 170.9 | K46: 507.9 | L46: 867.9 | M46: 661.7 | N46: 29.3 | O46: 0.1393 | P46: 0.4021 | Q46: 2.030514096 | R46: =K_dansDir(L46,K46,E46,F46,J46,'A dater'!$B$8,'A dater'!$A$8) -> 692.3609506 | S46: =Q46-AngCritDbl95(R46,D46,'A dater'!$C$8,Nd) -> 0.8181396077 | T46: =IF((A46=""),0,Prob_crois_fish(Q46,R46,'A dater'!$C$8)) -> 0.1844205316 | U46: -10 | V46: =probCritDbl(R46,D46,'A dater'!$C$8,'A dater'!$D$8,Q46) -> 0.0002672995339 | W46: -3.365028622 | Y46: 0.2570726391 | Z46: 0.05 | AB46: 0.6848318549 | AC46: 0.7434416767 | AD46: 0.0002672995339 | AE46: 0.001570156173
A47: 950 | B47: 13.9 | C47: 8.6 | D47: 112.5 | E47: 19.1 | F47: 64.8 | J47: 162 | K47: 607.8 | L47: 954.9 | M47: 760.2 | N47: 32.1 | O47: 0.1435 | P47: 0.4126 | Q47: 2.537486461 | R47: =K_dansDir(L47,K47,E47,F47,J47,'A dater'!$B$8,'A dater'!$A$8) -> 790.4776067 | S47: =Q47-AngCritDbl95(R47,D47,'A dater'!$C$8,Nd) -> 1.400743373 | T47: =IF((A47=""),0,Prob_crois_fish(Q47,R47,'A dater'!$C$8)) -> 0.06481947893 | U47: -10 | V47: =probCritDbl(R47,D47,'A dater'!$C$8,'A dater'!$D$8,Q47) -> 6.213837297e-07 | W47: -2.508341122 | Y47: 0.09035498578 | Z47: 0.05 | AB47: 0.5146001008 | AC47: 0.5586410138 | AD47: 6.213837297e-07 | AE47: 3.650098019e-06
A48: 960 | B48: 13 | C48: 8.8 | D48: 119.1 | E48: 19.2 | F48: 64.1 | J48: 153.1 | K48: 707.7 | L48: 1041.9 | M48: 858.7 | N48: 35 | O48: 0.1477 | P48: 0.4231 | Q48: 3.187169814 | R48: =K_dansDir(L48,K48,E48,F48,J48,'A dater'!$B$8,'A dater'!$A$8) -> 903.8041931 | S48: =Q48-AngCritDbl95(R48,D48,'A dater'!$C$8,Nd) -> 2.121713076 | T48: =IF((A48=""),0,Prob_crois_fish(Q48,R48,'A dater'!$C$8)) -> 0.01120393199 | U48: -10 | V48: =probCritDbl(R48,D48,'A dater'!$C$8,'A dater'!$D$8,Q48) -> 1.803046862e-11 | W48: -1.528594154 | Y48: 0.01561769907 | Z48: -10 | AB48: 0.3122738738 | AC48: 0.3389991436 | AD48: 1.803046862e-11 | AE48: 1.059135839e-10
A49: 970 | B49: 14.1 | C49: 8.8 | D49: 117.7 | E49: 19.2 | F49: 64 | J49: 156.5 | K49: 747 | L49: 1084.1 | M49: 899.9 | N49: 35 | O49: 0.1483 | P49: 0.4244 | Q49: 3.27938786 | R49: =K_dansDir(L49,K49,E49,F49,J49,'A dater'!$B$8,'A dater'!$A$8) -> 920.9214877 | S49: =Q49-AngCritDbl95(R49,D49,'A dater'!$C$8,Nd) -> 2.222629428 | T49: =IF((A49=""),0,Prob_crois_fish(Q49,R49,'A dater'!$C$8)) -> 0.008369811924 | U49: -10 | V49: =probCritDbl(R49,D49,'A dater'!$C$8,'A dater'!$D$8,Q49) -> 3.315985325e-12 | W49: -1.392908199 | Y49: 0.01166708295 | Z49: -10 | AB49: 0.2869206148 | AC49: 0.3114760819 | AD49: 3.315985325e-12 | AE49: 1.947857803e-11
A50: 980 | B50: 15.3 | C50: 8.7 | D50: 116.3 | E50: 19.3 | F50: 63.9 | J50: 160 | K50: 786.3 | L50: 1126.3 | M50: 941 | N50: 35 | O50: 0.1488 | P50: 0.4256 | Q50: 3.3885769 | R50: =K_dansDir(L50,K50,E50,F50,J50,'A dater'!$B$8,'A dater'!$A$8) -> 940.6941968 | S50: =Q50-AngCritDbl95(R50,D50,'A dater'!$C$8,Nd) -> 2.341607081 | T50: =IF((A50=""),0,Prob_crois_fish(Q50,R50,'A dater'!$C$8)) -> 0.005849403893 | U50: -10 | V50: =probCritDbl(R50,D50,'A dater'!$C$8,'A dater'!$D$8,Q50) -> 4.197854837e-13 | W50: -1.23492365 | Y50: 0.008153765108 | Z50: -10 | AB50: 0.2593692324 | AC50: 0.2815667753 | AD50: 4.197854837e-13 | AE50: 2.465880726e-12
A51: 990 | B51: 16.4 | C51: 8.6 | D51: 114.9 | E51: 19.3 | F51: 63.8 | J51: 163.4 | K51: 825.6 | L51: 1168.5 | M51: 982.2 | N51: 35 | O51: 0.1494 | P51: 0.4269 | Q51: 3.48126154 | R51: =K_dansDir(L51,K51,E51,F51,J51,'A dater'!$B$8,'A dater'!$A$8) -> 957.5549144 | S51: =Q51-AngCritDbl95(R51,D51,'A dater'!$C$8,Nd) -> 2.442276395 | T51: =IF((A51=""),0,Prob_crois_fish(Q51,R51,'A dater'!$C$8)) -> 0.004264015131 | U51: -10 | V51: =probCritDbl(R51,D51,'A dater'!$C$8,'A dater'!$D$8,Q51) -> 6.933825723e-14 | W51: -1.101936507 | Y51: 0.005943815546 | Z51: -10 | AB51: 0.2374590398 | AC51: 0.2577814473 | AD51: 6.933825723e-14 | AE51: 4.073029648e-13
B52: 25.4 | C52: 9.1 | D52: 107.6 | E52: 17.7 | F52: 67.7 | J52: 197.4 | K52: 371.7 | L52: 851.2 | M52: 562.3 | N52: 25 | O52: 0.1179 | P52: 0.369 | Q52: 0.9583687699 | R52: =K_dansDir(L52,K52,E52,F52,J52,'A dater'!$B$8,'A dater'!$A$8) -> 740.4107265 | S52: =Q52-AngCritDbl95(R52,D52,'A dater'!$C$8,Nd) -> -0.2157627411 | T52: =IF((A52=""),0,Prob_crois_fish(Q52,R52,'A dater'!$C$8)) -> 0 | U52: 0.1 | V52: =probCritDbl(R52,D52,'A dater'!$C$8,'A dater'!$D$8,Q52) -> 0.134826613 | W52: -4.258051574 | Y52: 0 | Z52: -10 | AB52: 0 | AC52: 0 | AD52: 0 | AE52: 0
B53: 25 | C53: 8.6 | D53: 101.4 | E53: 18.6 | F53: 66.9 | J53: 191 | K53: 339.9 | L53: 748.4 | M53: 504.3 | N53: 25 | O53: 0.1274 | P53: 0.3795 | Q53: 1.022813098 | R53: =K_dansDir(L53,K53,E53,F53,J53,'A dater'!$B$8,'A dater'!$A$8) -> 710.202516 | S53: =Q53-AngCritDbl95(R53,D53,'A dater'!$C$8,Nd) -> -0.1772604869 | T53: =IF((A53=""),0,Prob_crois_fish(Q53,R53,'A dater'!$C$8)) -> 0 | U53: 0.1 | V53: =probCritDbl(R53,D53,'A dater'!$C$8,'A dater'!$D$8,Q53) -> 0.1126459559 | W53: -4.30729815 | Y53: 0 | Z53: -10 | AB53: 0 | AC53: 0 | AD53: 0 | AE53: 0
B54: 23.3 | C54: 8.8 | D54: 107.5 | E54: 18.8 | F54: 66.2 | J54: 184.8 | K54: 397.2 | L54: 796.7 | M54: 561.4 | N54: 27.9 | O54: 0.1325 | P54: 0.39 | Q54: 1.369681049 | R54: =K_dansDir(L54,K54,E54,F54,J54,'A dater'!$B$8,'A dater'!$A$8) -> 619.1388603 | S54: =Q54-AngCritDbl95(R54,D54,'A dater'!$C$8,Nd) -> 0.09247334567 | T54: =IF((A54=""),0,Prob_crois_fish(Q54,R54,'A dater'!$C$8)) -> 0 | U54: -10 | V54: =probCritDbl(R54,D54,'A dater'!$C$8,'A dater'!$D$8,Q54) -> 0.0320917943 | W54: -4.335239214 | Y54: 0 | Z54: -10 | AB54: 0 | AC54: 0 | AD54: 0 | AE54: 0
B55: 21.6 | C55: 8.9 | D55: 113.6 | E55: 18.9 | F55: 65.5 | J55: 178.7 | K55: 454.6 | L55: 845.1 | M55: 618.6 | N55: 30.7 | O55: 0.1375 | P55: 0.4005 | Q55: 1.9006878 | R55: =K_dansDir(L55,K55,E55,F55,J55,'A dater'!$B$8,'A dater'!$A$8) -> 601.8562333 | S55: =Q55-AngCritDbl95(R55,D55,'A dater'!$C$8,Nd) -> 0.6086330243 | T55: =IF((A55=""),0,Prob_crois_fish(Q55,R55,'A dater'!$C$8)) -> 0 | U55: -10 | V55: =probCritDbl(R55,D55,'A dater'!$C$8,'A dater'!$D$8,Q55) -> 0.001662668185 | W55: -3.881981706 | Y55: 0 | Z55: -10 | AB55: 0 | AC55: 0 | AD55: 0 | AE55: 0
B56: 19.9 | C56: 9.1 | D56: 119.8 | E56: 19.1 | F56: 64.8 | J56: 172.5 | K56: 511.9 | L56: 893.4 | M56: 675.7 | N56: 33.6 | O56: 0.1426 | P56: 0.411 | Q56: 2.537486461 | R56: =K_dansDir(L56,K56,E56,F56,J56,'A dater'!$B$8,'A dater'!$A$8) -> 643.7518017 | S56: =Q56-AngCritDbl95(R56,D56,'A dater'!$C$8,Nd) -> 1.288206477 | T56: =IF((A56=""),0,Prob_crois_fish(Q56,R56,'A dater'!$C$8)) -> 0 | U56: -10 | V56: =probCritDbl(R56,D56,'A dater'!$C$8,'A dater'!$D$8,Q56) -> 6.38555781e-06 | W56: -3.050475974 | Y56: 0 | Z56: -10 | AB56: 0 | AC56: 0 | AD56: 0 | AE56: 0
B57: 18.7 | C57: 9 | D57: 120.6 | E57: 19.2 | F57: 64.4 | J57: 167.9 | K57: 591.8 | L57: 956 | M57: 751.4 | N57: 34.2 | O57: 0.1456 | P57: 0.4179 | Q57: 2.91359442 | R57: =K_dansDir(L57,K57,E57,F57,J57,'A dater'!$B$8,'A dater'!$A$8) -> 726.8339416 | S57: =Q57-AngCritDbl95(R57,D57,'A dater'!$C$8,Nd) -> 1.734285453 | T57: =IF((A57=""),0,Prob_crois_fish(Q57,R57,'A dater'!$C$8)) -> 0 | U57: -10 | V57: =probCritDbl(R57,D57,'A dater'!$C$8,'A dater'!$D$8,Q57) -> 2.903247762e-08 | W57: -2.344698141 | Y57: 0 | Z57: -10 | AB57: 0 | AC57: 0 | AD57: 0 | AE57: 0
B58: 18 | C58: 8.6 | D58: 116.1 | E58: 19.2 | F58: 64.2 | J58: 165 | K58: 694.3 | L58: 1033 | M58: 845.6 | N58: 32.5 | O58: 0.1467 | P58: 0.4212 | Q58: 3.095434532 | R58: =K_dansDir(L58,K58,E58,F58,J58,'A dater'!$B$8,'A dater'!$A$8) -> 827.4188888 | S58: =Q58-AngCritDbl95(R58,D58,'A dater'!$C$8,Nd) -> 1.984086404 | T58: =IF((A58=""),0,Prob_crois_fish(Q58,R58,'A dater'!$C$8)) -> 0 | U58: -10 | V58: =probCritDbl(R58,D58,'A dater'!$C$8,'A dater'!$D$8,Q58) -> 3.911807937e-10 | W58: -1.83467948 | Y58: 0 | Z58: -10 | AB58: 0 | AC58: 0 | AD58: 0 | AE58: 0
B59: 17.3 | C59: 8.2 | D59: 111.6 | E59: 19.2 | F59: 64 | J59: 162.1 | K59: 796.8 | L59: 1109.9 | M59: 939.8 | N59: 30.8 | O59: 0.1478 | P59: 0.4245 | Q59: 3.27938786 | R59: =K_dansDir(L59,K59,E59,F59,J59,'A dater'!$B$8,'A dater'!$A$8) -> 927.8521035 | S59: =Q59-AngCritDbl95(R59,D59,'A dater'!$C$8,Nd) -> 2.223776484 | T59: =IF((A59=""),0,Prob_crois_fish(Q59,R59,'A dater'!$C$8)) -> 0 | U59: -10 | V59: =probCritDbl(R59,D59,'A dater'!$C$8,'A dater'!$D$8,Q59) -> 3.476642891e-12 | W59: -1.378145516 | Y59: 0 | Z59: -10 | AB59: 0 | AC59: 0 | AD59: 0 | AE59: 0
B60: 17.6 | C60: 8.1 | D60: 108.4 | E60: 19.2 | F60: 63.8 | J60: 161 | K60: 836.2 | L60: 1166.8 | M60: 987.1 | N60: 30.7 | O60: 0.1487 | P60: 0.4278 | Q60: 3.465117866 | R60: =K_dansDir(L60,K60,E60,F60,J60,'A dater'!$B$8,'A dater'!$A$8) -> 973.6688502 | S60: =Q60-AngCritDbl95(R60,D60,'A dater'!$C$8,Nd) -> 2.431227331 | T60: =IF((A60=""),0,Prob_crois_fish(Q60,R60,'A dater'!$C$8)) -> 0 | U60: -10 | V60: =probCritDbl(R60,D60,'A dater'!$C$8,'A dater'!$D$8,Q60) -> 7.908174932e-14 | W60: -1.082972321 | Y60: 0 | Z60: -10 | AB60: 0 | AC60: 0 | AD60: 0 | AE60: 0
B61: 18.7 | C61: 8.1 | D61: 106.6 | E61: 19.2 | F61: 63.6 | J61: 161.5 | K61: 812.3 | L61: 1203.9 | M61: 987.5 | N61: 32.1 | O61: 0.1495 | P61: 0.431 | Q61: 3.652353517 | R61: =K_dansDir(L61,K61,E61,F61,J61,'A dater'!$B$8,'A dater'!$A$8) -> 964.2055804 | S61: =Q61-AngCritDbl95(R61,D61,'A dater'!$C$8,Nd) -> 2.612969694 | T61: =IF((A61=""),0,Prob_crois_fish(Q61,R61,'A dater'!$C$8)) -> 0 | U61: -10 | V61: =probCritDbl(R61,D61,'A dater'!$C$8,'A dater'!$D$8,Q61) -> 5.94673805e-15 | W61: -0.9189123588 | Y61: 0 | Z61: -10 | AB61: 0 | AC61: 0 | AD61: 0 | AE61: 0
B62: 19.9 | C62: 8.2 | D62: 104.7 | E62: 19.1 | F62: 63.4 | J62: 162.1 | K62: 788.4 | L62: 1241 | M62: 988 | N62: 33.6 | O62: 0.1504 | P62: 0.4341 | Q62: 3.826495855 | R62: =K_dansDir(L62,K62,E62,F62,J62,'A dater'!$B$8,'A dater'!$A$8) -> 947.4729124 | S62: =Q62-AngCritDbl95(R62,D62,'A dater'!$C$8,Nd) -> 2.777810672 | T62: =IF((A62=""),0,Prob_crois_fish(Q62,R62,'A dater'!$C$8)) -> 0 | U62: -10 | V62: =probCritDbl(R62,D62,'A dater'!$C$8,'A dater'!$D$8,Q62) -> 6.772951675e-16 | W62: -0.7859723275 | Y62: 0 | Z62: -10 | AB62: 0 | AC62: 0 | AD62: 0 | AE62: 0
B63: 21 | C63: 8.3 | D63: 102.9 | E63: 19.1 | F63: 63.2 | J63: 162.6 | K63: 764.5 | L63: 1278.1 | M63: 988.4 | N63: 35 | O63: 0.1512 | P63: 0.4373 | Q63: 4.016704278 | R63: =K_dansDir(L63,K63,E63,F63,J63,'A dater'!$B$8,'A dater'!$A$8) -> 933.1085257 | S63: =Q63-AngCritDbl95(R63,D63,'A dater'!$C$8,Nd) -> 2.959746981 | T63: =IF((A63=""),0,Prob_crois_fish(Q63,R63,'A dater'!$C$8)) -> 0 | U63: -10 | V63: =probCritDbl(R63,D63,'A dater'!$C$8,'A dater'!$D$8,Q63) -> 5.671996378e-17 | W63: -0.6321318838 | Y63: 0 | Z63: -10 | AB63: 0 | AC63: 0 | AD63: 0 | AE63: 0
B64: 19 | C64: 8.4 | D64: 103.3 | E64: 19.2 | F64: 63.1 | J64: 164.9 | K64: 736.1 | L64: 1271.3 | M64: 966.9 | N64: 36.2 | O64: 0.1528 | P64: 0.4398 | Q64: 4.125680742 | R64: =K_dansDir(L64,K64,E64,F64,J64,'A dater'!$B$8,'A dater'!$A$8) -> 892.7104125 | S64: =Q64-AngCritDbl95(R64,D64,'A dater'!$C$8,Nd) -> 3.04723153 | T64: =IF((A64=""),0,Prob_crois_fish(Q64,R64,'A dater'!$C$8)) -> 0 | U64: -10 | V64: =probCritDbl(R64,D64,'A dater'!$C$8,'A dater'!$D$8,Q64) -> 3.63395236e-17 | W64: -0.6270133236 | Y64: 0 | Z64: -10 | AB64: 0 | AC64: 0 | AD64: 0 | AE64: 0
B65: 17 | C65: 8.5 | D65: 103.7 | E65: 19.2 | F65: 62.9 | J65: 167.2 | K65: 707.8 | L65: 1264.5 | M65: 945.5 | N65: 37.5 | O65: 0.1544 | P65: 0.4422 | Q65: 4.316693351 | R65: =K_dansDir(L65,K65,E65,F65,J65,'A dater'!$B$8,'A dater'!$A$8) -> 843.9946511 | S65: =Q65-AngCritDbl95(R65,D65,'A dater'!$C$8,Nd) -> 3.21017601 | T65: =IF((A65=""),0,Prob_crois_fish(Q65,R65,'A dater'!$C$8)) -> 0 | U65: -10 | V65: =probCritDbl(R65,D65,'A dater'!$C$8,'A dater'!$D$8,Q65) -> 9.823979114e-18 | W65: -0.5710921847 | Y65: 0 | Z65: -10 | AB65: 0 | AC65: 0 | AD65: 0 | AE65: 0
B66: 15 | C66: 8.6 | D66: 104.1 | E66: 19.3 | F66: 62.7 | J66: 169.4 | K66: 679.4 | L66: 1257.7 | M66: 924 | N66: 38.8 | O66: 0.156 | P66: 0.4446 | Q66: 4.521390539 | R66: =K_dansDir(L66,K66,E66,F66,J66,'A dater'!$B$8,'A dater'!$A$8) -> 800.0479474 | S66: =Q66-AngCritDbl95(R66,D66,'A dater'!$C$8,Nd) -> 3.387321221 | T66: =IF((A66=""),0,Prob_crois_fish(Q66,R66,'A dater'!$C$8)) -> 0 | U66: -10 | V66: =probCritDbl(R66,D66,'A dater'!$C$8,'A dater'!$D$8,Q66) -> 2.197842985e-18 | W66: -0.4986938244 | Y66: 0 | Z66: -10 | AB66: 0 | AC66: 0 | AD66: 0 | AE66: 0
B67: 13 | C67: 8.7 | D67: 104.5 | E67: 19.4 | F67: 62.6 | J67: 171.7 | K67: 651.1 | L67: 1250.9 | M67: 902.5 | N67: 40 | O67: 0.1576 | P67: 0.4471 | Q67: 4.630356157 | R67: =K_dansDir(L67,K67,E67,F67,J67,'A dater'!$B$8,'A dater'!$A$8) -> 758.0800046 | S67: =Q67-AngCritDbl95(R67,D67,'A dater'!$C$8,Nd) -> 3.467698721 | T67: =IF((A67=""),0,Prob_crois_fish(Q67,R67,'A dater'!$C$8)) -> 0 | U67: -10 | V67: =probCritDbl(R67,D67,'A dater'!$C$8,'A dater'!$D$8,Q67) -> 2.328063618e-18 | W67: -0.5266679008 | Y67: 0 | Z67: -10 | AB67: 0 | AC67: 0 | AD67: 0 | AE67: 0
B68: 13.6 | C68: 8.6 | D68: 103.4 | E68: 19.3 | F68: 62.4 | J68: 167.6 | K68: 654.4 | L68: 1196.5 | M68: 884.2 | N68: 38.6 | O68: 0.1579 | P68: 0.451 | Q68: 4.809680458 | R68: =K_dansDir(L68,K68,E68,F68,J68,'A dater'!$B$8,'A dater'!$A$8) -> 773.5701332 | S68: =Q68-AngCritDbl95(R68,D68,'A dater'!$C$8,Nd) -> 3.657406053 | T68: =IF((A68=""),0,Prob_crois_fish(Q68,R68,'A dater'!$C$8)) -> 0 | U68: -10 | V68: =probCritDbl(R68,D68,'A dater'!$C$8,'A dater'!$D$8,Q68) -> 8.572597846e-20 | W68: -0.2960716035 | Y68: 0 | Z68: -10 | AB68: 0 | AC68: 0 | AD68: 0 | AE68: 0
B69: 14.1 | C69: 8.4 | D69: 102.4 | E69: 19.2 | F69: 62.1 | J69: 163.5 | K69: 657.7 | L69: 1142.1 | M69: 865.8 | N69: 37.1 | O69: 0.1581 | P69: 0.4549 | Q69: 5.087643258 | R69: =K_dansDir(L69,K69,E69,F69,J69,'A dater'!$B$8,'A dater'!$A$8) -> 784.2452527 | S69: =Q69-AngCritDbl95(R69,D69,'A dater'!$C$8,Nd) -> 3.942204166 | T69: =IF((A69=""),0,Prob_crois_fish(Q69,R69,'A dater'!$C$8)) -> 0 | U69: -10 | V69: =probCritDbl(R69,D69,'A dater'!$C$8,'A dater'!$D$8,Q69) -> 7.658751719e-22 | W69: 0.01617777971 | Y69: 0 | Z69: -10 | AB69: 0 | AC69: 0 | AD69: 0 | AE69: 0
B70: 14.7 | C70: 8.2 | D70: 101.3 | E70: 19.1 | F70: 61.9 | J70: 159.4 | K70: 661 | L70: 1087.7 | M70: 847.5 | N70: 35.7 | O70: 0.1584 | P70: 0.4588 | Q70: 5.270730511 | R70: =K_dansDir(L70,K70,E70,F70,J70,'A dater'!$B$8,'A dater'!$A$8) -> 793.7264756 | S70: =Q70-AngCritDbl95(R70,D70,'A dater'!$C$8,Nd) -> 4.131118931 | T70: =IF((A70=""),0,Prob_crois_fish(Q70,R70,'A dater'!$C$8)) -> 0 | U70: -10 | V70: =probCritDbl(R70,D70,'A dater'!$C$8,'A dater'!$D$8,Q70) -> 2.985786055e-23 | W70: 0.2289900604 | Y70: =T70/$Y$5 -> 0 | Z70: -10 | AB70: 0 | AC70: 0 | AD70: 0 | AE70: 0
B71: 15.3 | C71: 8.2 | D71: 100.8 | E71: 18.8 | F71: 61.7 | J71: 156.7 | K71: 643.5 | L71: 1036.5 | M71: 816.6 | N71: 35 | O71: 0.1576 | P71: 0.4634 | Q71: 5.435450956 | R71: =K_dansDir(L71,K71,E71,F71,J71,'A dater'!$B$8,'A dater'!$A$8) -> 772.308581 | S71: =Q71-AngCritDbl95(R71,D71,'A dater'!$C$8,Nd) -> 4.281037126 | T71: =IF((A71=""),0,Prob_crois_fish(Q71,R71,'A dater'!$C$8)) -> 0 | U71: -10 | V71: =probCritDbl(R71,D71,'A dater'!$C$8,'A dater'!$D$8,Q71) -> 6.791726494e-24 | W71: 0.3239159678 | Y71: 0 | Z71: =IF(Y71>$Z$5,0.05,-10) -> -10 | AB71: =IF((A71=""),0,ProbCrit_Isol(R71,C71,Q71)) -> 0 | AC71: =AB71/$AC$5 -> 0 | AD71: =IF((A71=""),0,V71) -> 0 | AE71: =AD71/$AE$5 -> 0
B72: 15.9 | C72: 8.2 | D72: 100.9 | E72: 18.4 | F72: 61.4 | J72: 155.3 | K72: 605.2 | L72: 988.4 | M72: 773.3 | N72: 35 | O72: 0.1557 | P72: 0.4686 | Q72: 5.695519143 | R72: =K_dansDir(L72,K72,E72,F72,J72,'A dater'!$B$8,'A dater'!$A$8) -> 726.2035619 | S72: =Q72-AngCritDbl95(R72,D72,'A dater'!$C$8,Nd) -> 4.507618067 | T72: =IF((A72=""),0,Prob_crois_fish(Q72,R72,'A dater'!$C$8)) -> 0 | U72: -10 | V72: =probCritDbl(R72,D72,'A dater'!$C$8,'A dater'!$D$8,Q72) -> 1.390881571e-24 | W72: 0.4241733431 | Y72: 0 | Z72: -10 | AB72: 0 | AC72: 0 | AD72: 0 | AE72: 0
B73: 16.4 | C73: 8.3 | D73: 101 | E73: 18 | F73: 61.2 | J73: 153.8 | K73: 566.8 | L73: 940.3 | M73: 730 | N73: 35 | O73: 0.1538 | P73: 0.4739 | Q73: 5.864654293 | R73: =K_dansDir(L73,K73,E73,F73,J73,'A dater'!$B$8,'A dater'!$A$8) -> 682.8030429 | S73: =Q73-AngCritDbl95(R73,D73,'A dater'!$C$8,Nd) -> 4.642102662 | T73: =IF((A73=""),0,Prob_crois_fish(Q73,R73,'A dater'!$C$8)) -> 0 | U73: -10 | V73: =probCritDbl(R73,D73,'A dater'!$C$8,'A dater'!$D$8,Q73) -> 1.320914723e-24 | W73: 0.4283030217 | Y73: 0 | Z73: -10 | AB73: 0 | AC73: 0 | AD73: 0 | AE73: 0
B74: 17 | C74: 8.3 | D74: 101.1 | E74: 17.6 | F74: 60.9 | J74: 152.4 | K74: 528.5 | L74: 892.2 | M74: 686.7 | N74: 35 | O74: 0.1519 | P74: 0.4791 | Q74: 6.139817757 | R74: =K_dansDir(L74,K74,E74,F74,J74,'A dater'!$B$8,'A dater'!$A$8) -> 639.0302755 | S74: =Q74-AngCritDbl95(R74,D74,'A dater'!$C$8,Nd) -> 4.878714254 | T74: =IF((A74=""),0,Prob_crois_fish(Q74,R74,'A dater'!$C$8)) -> 0 | U74: -10 | V74: =probCritDbl(R74,D74,'A dater'!$C$8,'A dater'!$D$8,Q74) -> 3.515836932e-25 | W74: 0.5202809398 | Y74: 0 | Z74: -10 | AB74: 0 | AC74: 0 | AD74: 0 | AE74: 0
B75: 18 | C75: 8.4 | D75: 102.2 | E75: 17.2 | F75: 60.7 | J75: 149.8 | K75: 467.6 | L75: 796.1 | M75: 610.2 | N75: 36.2 | O75: 0.149 | P75: 0.4834 | Q75: 6.321858896 | R75: =K_dansDir(L75,K75,E75,F75,J75,'A dater'!$B$8,'A dater'!$A$8) -> 572.7833523 | S75: =Q75-AngCritDbl95(R75,D75,'A dater'!$C$8,Nd) -> 4.994442988 | T75: =IF((A75=""),0,Prob_crois_fish(Q75,R75,'A dater'!$C$8)) -> 0 | U75: -10 | V75: =probCritDbl(R75,D75,'A dater'!$C$8,'A dater'!$D$8,Q75) -> 2.266965306e-24 | W75: 0.3867580315 | Y75: 0 | Z75: -10 | AB75: 0 | AC75: 0 | AD75: 0 | AE75: 0
B76: 19 | C76: 8.5 | D76: 103.2 | E76: 16.7 | F76: 60.5 | J76: 147.3 | K76: 406.8 | L76: 700.1 | M76: 533.6 | N76: 37.5 | O76: 0.1462 | P76: 0.4876 | Q76: 6.507263645 | R76: =K_dansDir(L76,K76,E76,F76,J76,'A dater'!$B$8,'A dater'!$A$8) -> 503.8419152 | S76: =Q76-AngCritDbl95(R76,D76,'A dater'!$C$8,Nd) -> 5.096906259 | T76: =IF((A76=""),0,Prob_crois_fish(Q76,R76,'A dater'!$C$8)) -> 0 | U76: -10 | V76: =probCritDbl(R76,D76,'A dater'!$C$8,'A dater'!$D$8,Q76) -> 3.217279974e-23 | W76: 0.1794866326 | Y76: 0 | Z76: -10 | AB76: 0 | AC76: 0 | AD76: 0 | AE76: 0
B77: 20 | C77: 8.7 | D77: 104.2 | E77: 16.3 | F77: 60.3 | J77: 144.7 | K77: 345.9 | L77: 604 | M77: 457.1 | N77: 38.8 | O77: 0.1433 | P77: 0.4918 | Q77: 6.701303078 | R77: =K_dansDir(L77,K77,E77,F77,J77,'A dater'!$B$8,'A dater'!$A$8) -> 436.3783642 | S77: =Q77-AngCritDbl95(R77,D77,'A dater'!$C$8,Nd) -> 5.190976896 | T77: =IF((A77=""),0,Prob_crois_fish(Q77,R77,'A dater'!$C$8)) -> 0 | U77: -10 | V77: =probCritDbl(R77,D77,'A dater'!$C$8,'A dater'!$D$8,Q77) -> 7.542977239e-22 | W77: -0.09778114864 | Y77: 0 | Z77: -10 | AB77: 0 | AC77: 0 | AD77: 0 | AE77: 0
B78: 21 | C78: 8.8 | D78: 105.2 | E78: 15.8 | F78: 60.1 | J78: 142.2 | K78: 285 | L78: 507.9 | M78: 380.5 | N78: 40 | O78: 0.1404 | P78: 0.4961 | Q78: 6.900565908 | R78: =K_dansDir(L78,K78,E78,F78,J78,'A dater'!$B$8,'A dater'!$A$8) -> 366.2899461 | S78: =Q78-AngCritDbl95(R78,D78,'A dater'!$C$8,Nd) -> 5.257756679 | T78: =IF((A78=""),0,Prob_crois_fish(Q78,R78,'A dater'!$C$8)) -> 0 | U78: -10 | V78: =probCritDbl(R78,D78,'A dater'!$C$8,'A dater'!$D$8,Q78) -> 4.983274872e-20 | W78: -0.5205485821 | Y78: 0 | Z78: -10 | AB78: 0 | AC78: 0 | AD78: 0 | AE78: 0
B79: 14.6 | C79: 8.5 | D79: 84.9 | E79: 6.1 | F79: 59.5 | J79: -17.3 | K79: 161.7 | L79: 589.4 | M79: 308.1 | N79: 54 | O79: 0.0554 | P79: 0.5227 | Q79: 8.700761487 | R79: =K_dansDir(L79,K79,E79,F79,J79,'A dater'!$B$8,'A dater'!$A$8) -> 172.3161532 | S79: =Q79-AngCritDbl95(R79,D79,'A dater'!$C$8,Nd) -> 6.317899756 | T79: =IF((A79=""),0,Prob_crois_fish(Q79,R79,'A dater'!$C$8)) -> 0 | U79: -10 | V79: =probCritDbl(R79,D79,'A dater'!$C$8,'A dater'!$D$8,Q79) -> 1.454789985e-15 | W79: -2.159042755 | Y79: 0 | Z79: -10 | AB79: 0 | AC79: 0 | AD79: 0 | AE79: 0
B80: 14.2 | C80: 8.4 | D80: 83.6 | E80: 6.7 | F80: 60.6 | J80: -16.5 | K80: 167.4 | L80: 574.5 | M80: 309.2 | N80: 53 | O80: 0.0584 | P80: 0.5041 | Q80: 7.586490842 | R80: =K_dansDir(L80,K80,E80,F80,J80,'A dater'!$B$8,'A dater'!$A$8) -> 185.209525 | S80: =Q80-AngCritDbl95(R80,D80,'A dater'!$C$8,Nd) -> 5.285762338 | T80: =IF((A80=""),0,Prob_crois_fish(Q80,R80,'A dater'!$C$8)) -> 0 | U80: -10 | V80: =probCritDbl(R80,D80,'A dater'!$C$8,'A dater'!$D$8,Q80) -> 3.722945813e-13 | W80: -2.889812739 | Y80: 0 | Z80: -10 | AB80: 0 | AC80: 0 | AD80: 0 | AE80: 0
B81: 13.8 | C81: 8.4 | D81: 82.3 | E81: 7.4 | F81: 61.6 | J81: -15.6 | K81: 173 | L81: 559.6 | M81: 310.4 | N81: 52 | O81: 0.0615 | P81: 0.4856 | Q81: =diff_ang((F81),(E81),Id,Dd,(-1)) -> 6.550126464 | R81: =K_dansDir(L81,K81,E81,F81,J81,'A dater'!$B$8,'A dater'!$A$8) -> 199.6123504 | S81: =Q81-AngCritDbl95(R81,D81,'A dater'!$C$8,Nd) -> 4.331463493 | T81: =IF((A81=""),0,Prob_crois_fish(Q81,R81,'A dater'!$C$8)) -> 0 | U81: =IF(S81<0,0.1,-10) -> -10 | V81: =probCritDbl(R81,D81,'A dater'!$C$8,'A dater'!$D$8,Q81) -> 6.098413933e-11 | W81: =Q81-AngCrit95_isole( R81,D81) -> -3.542532441 | Y81: 0 | Z81: -10 | AB81: 0 | AC81: 0 | AD81: 0 | AE81: 0
B82: 13.4 | C82: 8.3 | D82: 81 | E82: 8 | F82: 62.7 | J82: -14.8 | K82: 178.7 | L82: 544.7 | M82: 311.5 | N82: 51 | O82: 0.0645 | P82: 0.467 | Q82: 5.473100265 | R82: =K_dansDir(L82,K82,E82,F82,J82,'A dater'!$B$8,'A dater'!$A$8) -> 221.3503559 | S82: =Q82-AngCritDbl95(R82,D82,'A dater'!$C$8,Nd) -> 3.36283957 | T82: =IF((A82=""),0,Prob_crois_fish(Q82,R82,'A dater'!$C$8)) -> 0 | U82: -10 | V82: =probCritDbl(R82,D82,'A dater'!$C$8,'A dater'!$D$8,Q82) -> 8.355246999e-09 | W82: -4.112300825 | Y82: 0 | Z82: -10 | AB82: 0 | AC82: 0 | AD82: 0 | AE82: 0
B83: 13 | C83: 8.3 | D83: 79.7 | E83: 8.6 | F83: 63.8 | J83: -13.9 | K83: 184.4 | L83: 529.8 | M83: 312.6 | N83: 50 | O83: 0.0676 | P83: 0.4484 | Q83: 4.436293112 | R83: =K_dansDir(L83,K83,E83,F83,J83,'A dater'!$B$8,'A dater'!$A$8) -> 254.0691169 | S83: =Q83-AngCritDbl95(R83,D83,'A dater'!$C$8,Nd) -> 2.462048364 | T83: =IF((A83=""),0,Prob_crois_fish(Q83,R83,'A dater'!$C$8)) -> 0 | U83: -10 | V83: =probCritDbl(R83,D83,'A dater'!$C$8,'A dater'!$D$8,Q83) -> 6.352039805e-07 | W83: -4.511557087 | Y83: 0 | Z83: -10 | AB83: 0 | AC83: 0 | AD83: 0 | AE83: 0
B84: 13.9 | C84: 8.4 | D84: 101.4 | E84: 18.4 | F84: 61.4 | J84: 153 | K84: 590.4 | L84: 993.5 | M84: 765.9 | N84: 35.6 | O84: 0.1563 | P84: 0.4682 | Q84: 5.695519143 | R84: =K_dansDir(L84,K84,E84,F84,J84,'A dater'!$B$8,'A dater'!$A$8) -> 732.9534821 | S84: =Q84-AngCritDbl95(R84,D84,'A dater'!$C$8,Nd) -> 4.512973269 | T84: =IF((A84=""),0,Prob_crois_fish(Q84,R84,'A dater'!$C$8)) -> 0 | U84: -10 | V84: =probCritDbl(R84,D84,'A dater'!$C$8,'A dater'!$D$8,Q84) -> 8.932565312e-25 | W84: 0.4488435339 | Y84: 0 | Z84: -10 | AB84: 0 | AC84: 0 | AD84: 0 | AE84: 0
B85: 13.6 | C85: 8.5 | D85: 103.6 | E85: 18.1 | F85: 61.2 | J85: 151.7 | K85: 550.3 | L85: 913.9 | M85: 709.1 | N85: 36.9 | O85: 0.1543 | P85: 0.4721 | Q85: 5.871240532 | R85: =K_dansDir(L85,K85,E85,F85,J85,'A dater'!$B$8,'A dater'!$A$8) -> 678.0131788 | S85: =Q85-AngCritDbl95(R85,D85,'A dater'!$C$8,Nd) -> 4.645863523 | T85: =IF((A85=""),0,Prob_crois_fish(Q85,R85,'A dater'!$C$8)) -> 0 | U85: -10 | V85: =probCritDbl(R85,D85,'A dater'!$C$8,'A dater'!$D$8,Q85) -> 1.177861841e-24 | W85: 0.4174193204 | Y85: 0 | Z85: -10 | AB85: 0 | AC85: 0 | AD85: 0 | AE85: 0
B86: 13.4 | C86: 8.7 | D86: 105.9 | E86: 17.7 | F86: 61.1 | J86: 150.4 | K86: 510.1 | L86: 834.4 | M86: 652.4 | N86: 38.1 | O86: 0.1522 | P86: 0.4761 | Q86: 5.946146809 | R86: =K_dansDir(L86,K86,E86,F86,J86,'A dater'!$B$8,'A dater'!$A$8) -> 622.2748919 | S86: =Q86-AngCritDbl95(R86,D86,'A dater'!$C$8,Nd) -> 4.671313717 | T86: =IF((A86=""),0,Prob_crois_fish(Q86,R86,'A dater'!$C$8)) -> 0 | U86: -10 | V86: =probCritDbl(R86,D86,'A dater'!$C$8,'A dater'!$D$8,Q86) -> 1.035524101e-23 | W86: 0.2546211376 | Y86: 0 | Z86: -10 | AB86: 0 | AC86: 0 | AD86: 0 | AE86: 0
B87: 13.1 | C87: 8.9 | D87: 108.1 | E87: 17.4 | F87: 60.9 | J87: 149.1 | K87: 470 | L87: 754.8 | M87: 595.6 | N87: 39.4 | O87: 0.1502 | P87: 0.48 | Q87: 6.130509049 | R87: =K_dansDir(L87,K87,E87,F87,J87,'A dater'!$B$8,'A dater'!$A$8) -> 568.5311601 | S87: =Q87-AngCritDbl95(R87,D87,'A dater'!$C$8,Nd) -> 4.800887053 | T87: =IF((A87=""),0,Prob_crois_fish(Q87,R87,'A dater'!$C$8)) -> 0 | U87: -10 | V87: =probCritDbl(R87,D87,'A dater'!$C$8,'A dater'!$D$8,Q87) -> 2.388205924e-23 | W87: 0.1772551612 | Y87: 0 | Z87: -10 | AB87: 0 | AC87: 0 | AD87: 0 | AE87: 0
B88: 14 | C88: 9 | D88: 110.1 | E88: 17 | F88: 60.6 | J88: 147.5 | K88: 424.1 | L88: 685.3 | M88: 538.9 | N88: 40 | O88: 0.1477 | P88: 0.4849 | Q88: 6.414998589 | R88: =K_dansDir(L88,K88,E88,F88,J88,'A dater'!$B$8,'A dater'!$A$8) -> 514.3385978 | S88: =Q88-AngCritDbl95(R88,D88,'A dater'!$C$8,Nd) -> 5.021187245 | T88: =IF((A88=""),0,Prob_crois_fish(Q88,R88,'A dater'!$C$8)) -> 0 | U88: -10 | V88: =probCritDbl(R88,D88,'A dater'!$C$8,'A dater'!$D$8,Q88) -> 2.435022172e-23 | W88: 0.1569964225 | Y88: 0 | Z88: -10 | AB88: 0 | AC88: 0 | AD88: 0 | AE88: 0
B89: 16 | C89: 9.1 | D89: 111.7 | E89: 16.5 | F89: 60.3 | J89: 145.5 | K89: 372.5 | L89: 626 | M89: 482.4 | N89: 40 | O89: 0.1447 | P89: 0.4907 | Q89: =diff_ang((F89),(E89),Id,Dd,(-1)) -> 6.703619023 | R89: =K_dansDir(L89,K89,E89,F89,J89,'A dater'!$B$8,'A dater'!$A$8) -> 460.8142255 | S89: =Q89-AngCritDbl95(R89,D89,'A dater'!$C$8,Nd) -> 5.235085318 | T89: =IF((A89=""),0,Prob_crois_fish(Q89,R89,'A dater'!$C$8)) -> 0 | U89: =IF(S89<0,0.1,-10) -> -10 | V89: =probCritDbl(R89,D89,'A dater'!$C$8,'A dater'!$D$8,Q89) -> 4.435209003e-23 | W89: =Q89-AngCrit95_isole( R89,D89) -> 0.09285807515 | Y89: 0 | Z89: -10 | AB89: 0 | AC89: 0 | AD89: 0 | AE89: 0
B90: 18 | C90: 9.2 | D90: 113.2 | E90: 16 | F90: 60 | J90: 143.5 | K90: 320.9 | L90: 566.6 | M90: 425.8 | N90: 40 | O90: 0.1418 | P90: 0.4966 | Q90: 7 | R90: =K_dansDir(L90,K90,E90,F90,J90,'A dater'!$B$8,'A dater'!$A$8) -> 407.8321361 | S90: =Q90-AngCritDbl95(R90,D90,'A dater'!$C$8,Nd) -> 5.443053151 | T90: =IF((A90=""),0,Prob_crois_fish(Q90,R90,'A dater'!$C$8)) -> 0 | U90: -10 | V90: =probCritDbl(R90,D90,'A dater'!$C$8,'A dater'!$D$8,Q90) -> 1.461933383e-22 | W90: -0.02652216793 | Y90: 0 | Z90: -10 | AB90: 0 | AC90: 0 | AD90: 0 | AE90: 0
B91: 20 | C91: 9.3 | D91: 114.8 | E91: 15.4 | F91: 59.7 | J91: 141.5 | K91: 269.3 | L91: 507.3 | M91: 369.3 | N91: 40 | O91: 0.1388 | P91: 0.5024 | Q91: 7.304872369 | R91: =K_dansDir(L91,K91,E91,F91,J91,'A dater'!$B$8,'A dater'!$A$8) -> 354.1275894 | S91: =Q91-AngCritDbl95(R91,D91,'A dater'!$C$8,Nd) -> 5.638360944 | T91: =IF((A91=""),0,Prob_crois_fish(Q91,R91,'A dater'!$C$8)) -> 0 | U91: -10 | V91: =probCritDbl(R91,D91,'A dater'!$C$8,'A dater'!$D$8,Q91) -> 1.082228426e-21 | W91: -0.2352031976 | Y91: 0 | Z91: -10 | AB91: 0 | AC91: 0 | AD91: 0 | AE91: 0
B92: 20.5 | C92: 9.2 | D92: 114.7 | E92: 14.9 | F92: 59.4 | J92: 139.9 | K92: 244.9 | L92: 473.3 | M92: 340.4 | N92: 38.3 | O92: 0.1353 | P92: 0.5085 | Q92: 7.615862935 | R92: =K_dansDir(L92,K92,E92,F92,J92,'A dater'!$B$8,'A dater'!$A$8) -> 327.0685768 | S92: =Q92-AngCritDbl95(R92,D92,'A dater'!$C$8,Nd) -> 5.883717152 | T92: =IF((A92=""),0,Prob_crois_fish(Q92,R92,'A dater'!$C$8)) -> 0 | U92: -10 | V92: =probCritDbl(R92,D92,'A dater'!$C$8,'A dater'!$D$8,Q92) -> 8.523879219e-22 | W92: -0.2304703826 | Y92: 0 | Z92: -10 | AB92: 0 | AC92: 0 | AD92: 0 | AE92: 0
B93: 19.5 | C93: 8.9 | D93: 112.7 | E93: 14.3 | F93: 59.1 | J93: 138.8 | K93: 247.7 | L93: 464.8 | M93: 339.2 | N93: 35 | O93: 0.1314 | P93: 0.515 | Q93: 7.936731372 | R93: =K_dansDir(L93,K93,E93,F93,J93,'A dater'!$B$8,'A dater'!$A$8) -> 324.0946312 | S93: =Q93-AngCritDbl95(R93,D93,'A dater'!$C$8,Nd) -> 6.196229025 | T93: =IF((A93=""),0,Prob_crois_fish(Q93,R93,'A dater'!$C$8)) -> 0 | U93: -10 | V93: =probCritDbl(R93,D93,'A dater'!$C$8,'A dater'!$D$8,Q93) -> 4.636415478e-23 | W93: 0.05288044623 | Y93: 0 | Z93: -10 | AB93: 0 | AC93: 0 | AD93: 0 | AE93: 0
B94: 18.5 | C94: 8.7 | D94: 110.8 | E94: 13.8 | F94: 58.9 | J94: 137.6 | K94: 250.5 | L94: 456.2 | M94: 338 | N94: 31.7 | O94: 0.1275 | P94: 0.5216 | Q94: 8.160269701 | R94: =K_dansDir(L94,K94,E94,F94,J94,'A dater'!$B$8,'A dater'!$A$8) -> 322.7106098 | S94: =Q94-AngCritDbl95(R94,D94,'A dater'!$C$8,Nd) -> 6.415510353 | T94: =IF((A94=""),0,Prob_crois_fish(Q94,R94,'A dater'!$C$8)) -> 0 | U94: -10 | V94: =probCritDbl(R94,D94,'A dater'!$C$8,'A dater'!$D$8,Q94) -> 5.921656262e-24 | W94: 0.2579828327 | Y94: 0 | Z94: -10 | AB94: 0 | AC94: 0 | AD94: 0 | AE94: 0
B95: 17.6 | C95: 8.5 | D95: 109.4 | E95: 13.3 | F95: 58.6 | J95: 136.2 | K95: 262.6 | L95: 450.2 | M95: 343.5 | N95: 29 | O95: 0.1239 | P95: 0.5271 | Q95: 8.488178245 | R95: =K_dansDir(L95,K95,E95,F95,J95,'A dater'!$B$8,'A dater'!$A$8) -> 329.4039906 | S95: =Q95-AngCritDbl95(R95,D95,'A dater'!$C$8,Nd) -> 6.760255054 | T95: =IF((A95=""),0,Prob_crois_fish(Q95,R95,'A dater'!$C$8)) -> 0 | U95: -10 | V95: =probCritDbl(R95,D95,'A dater'!$C$8,'A dater'!$D$8,Q95) -> 7.852865962e-26 | W95: 0.6655747947 | Y95: 0 | Z95: -10 | AB95: 0 | AC95: 0 | AD95: 0 | AE95: 0
B96: 16.8 | C96: 8.4 | D96: 108.7 | E96: 12.8 | F96: 58.3 | J96: 134.5 | K96: 284 | L96: 446.7 | M96: 355.7 | N96: 27 | O96: 0.1206 | P96: 0.5318 | Q96: 8.820437818 | R96: =K_dansDir(L96,K96,E96,F96,J96,'A dater'!$B$8,'A dater'!$A$8) -> 343.8082856 | S96: =Q96-AngCritDbl95(R96,D96,'A dater'!$C$8,Nd) -> 7.127782297 | T96: =IF((A96=""),0,Prob_crois_fish(Q96,R96,'A dater'!$C$8)) -> 0 | U96: -10 | V96: =probCritDbl(R96,D96,'A dater'!$C$8,'A dater'!$D$8,Q96) -> 2.831303051e-28 | W96: 1.163140521 | Y96: 0 | Z96: -10 | AB96: 0 | AC96: 0 | AD96: 0 | AE96: 0
B97: 16 | C97: 8.4 | D97: 107.9 | E97: 12.3 | F97: 58.1 | J97: 132.9 | K97: 305.4 | L97: 443.3 | M97: 367.9 | N97: 25 | O97: 0.1173 | P97: 0.5364 | Q97: 9.057996042 | R97: =K_dansDir(L97,K97,E97,F97,J97,'A dater'!$B$8,'A dater'!$A$8) -> 357.3981874 | S97: =Q97-AngCritDbl95(R97,D97,'A dater'!$C$8,Nd) -> 7.396549174 | T97: =IF((A97=""),0,Prob_crois_fish(Q97,R97,'A dater'!$C$8)) -> 0 | U97: -10 | V97: =probCritDbl(R97,D97,'A dater'!$C$8,'A dater'!$D$8,Q97) -> 3.007955922e-30 | W97: 1.547260824 | Y97: 0 | Z97: -10 | AB97: 0 | AC97: 0 | AD97: 0 | AE97: 0
B98: 18.5 | C98: 8.5 | D98: 105.7 | E98: 11.8 | F98: 57.8 | J98: 146.2 | K98: 341.1 | L98: 436.2 | M98: 385 | N98: 22.5 | O98: 0.1142 | P98: 0.5432 | Q98: 9.398264351 | R98: =K_dansDir(L98,K98,E98,F98,J98,'A dater'!$B$8,'A dater'!$A$8) -> 356.4733682 | S98: =Q98-AngCritDbl95(R98,D98,'A dater'!$C$8,Nd) -> 7.733923186 | T98: =IF((A98=""),0,Prob_crois_fish(Q98,R98,'A dater'!$C$8)) -> 0 | U98: -10 | V98: =probCritDbl(R98,D98,'A dater'!$C$8,'A dater'!$D$8,Q98) -> 9.266535694e-32 | W98: 1.875942673 | Y98: 0 | Z98: -10 | AB98: 0 | AC98: 0 | AD98: 0 | AE98: 0
B99: 21 | C99: 8.6 | D99: 103.4 | E99: 11.4 | F99: 57.4 | J99: 159.5 | K99: 376.7 | L99: 429.2 | M99: 402.1 | N99: 20 | O99: 0.1112 | P99: 0.5501 | Q99: 9.830234147 | R99: =K_dansDir(L99,K99,E99,F99,J99,'A dater'!$B$8,'A dater'!$A$8) -> 378.2592741 | S99: =Q99-AngCritDbl95(R99,D99,'A dater'!$C$8,Nd) -> 8.212042754 | T99: =IF((A99=""),0,Prob_crois_fish(Q99,R99,'A dater'!$C$8)) -> 0 | U99: -10 | V99: =probCritDbl(R99,D99,'A dater'!$C$8,'A dater'!$D$8,Q99) -> 3.475433089e-35 | W99: 2.526112765 | Y99: 0 | Z99: -10 | AB99: 0 | AC99: 0 | AD99: 0 | AE99: 0
B100: 19 | C100: 8.6 | D100: 104.3 | E100: 11.3 | F100: 57.2 | J100: 146.8 | K100: 397.2 | L100: 457.1 | M100: 426.1 | N100: 20 | O100: 0.1114 | P100: 0.5544 | Q100: 10.03675357 | R100: =K_dansDir(L100,K100,E100,F100,J100,'A dater'!$B$8,'A dater'!$A$8) -> 406.0568993 | S100: =Q100-AngCritDbl95(R100,D100,'A dater'!$C$8,Nd) -> 8.473274541 | T100: =IF((A100=""),0,Prob_crois_fish(Q100,R100,'A dater'!$C$8)) -> 0 | U100: -10 | V100: =probCritDbl(R100,D100,'A dater'!$C$8,'A dater'!$D$8,Q100) -> 3.887538037e-38 | W100: 2.988152492 | Y100: 0 | Z100: -10 | AB100: 0 | AC100: 0 | AD100: 0 | AE100: 0
B101: 17 | C101: 8.7 | D101: 105.2 | E101: 11.3 | F101: 56.9 | J101: 134.2 | K101: 417.7 | L101: 484.9 | M101: 450 | N101: 20 | O101: 0.1115 | P101: 0.5588 | Q101: 10.33179352 | R101: =K_dansDir(L101,K101,E101,F101,J101,'A dater'!$B$8,'A dater'!$A$8) -> 440.3796067 | S101: =Q101-AngCritDbl95(R101,D101,'A dater'!$C$8,Nd) -> 8.828466152 | T101: =IF((A101=""),0,Prob_crois_fish(Q101,R101,'A dater'!$C$8)) -> 0 | U101: -10 | V101: =probCritDbl(R101,D101,'A dater'!$C$8,'A dater'!$D$8,Q101) -> 5.12343324e-42 | W101: 3.564485426 | Y101: 0 | Z101: -10 | AB101: 0 | AC101: 0 | AD101: 0 | AE101: 0
B102: 19.5 | C102: 8.6 | D102: 112.3 | E102: 10.2 | F102: 56.8 | J102: 128.8 | K102: 393.2 | L102: 495.8 | M102: 441.1 | N102: 20 | O102: 0.1006 | P102: 0.5621 | Q102: 10.54848751 | R102: =K_dansDir(L102,K102,E102,F102,J102,'A dater'!$B$8,'A dater'!$A$8) -> 433.3861389 | S102: =Q102-AngCritDbl95(R102,D102,'A dater'!$C$8,Nd) -> 9.036189607 | T102: =IF((A102=""),0,Prob_crois_fish(Q102,R102,'A dater'!$C$8)) -> 0 | U102: -10 | V102: =probCritDbl(R102,D102,'A dater'!$C$8,'A dater'!$D$8,Q102) -> 1.445020746e-43 | W102: 3.731913492 | Y102: 0 | Z102: -10 | AB102: 0 | AC102: 0 | AD102: 0 | AE102: 0
B103: 22 | C103: 8.6 | D103: 119.4 | E103: 9 | F103: 56.7 | J103: 123.5 | K103: 368.7 | L103: 506.7 | M103: 432.2 | N103: 20 | O103: 0.0896 | P103: 0.5655 | Q103: 10.80037139 | R103: =K_dansDir(L103,K103,E103,F103,J103,'A dater'!$B$8,'A dater'!$A$8) -> 429.9579249 | S103: =Q103-AngCritDbl95(R103,D103,'A dater'!$C$8,Nd) -> 9.284607997 | T103: =IF((A103=""),0,Prob_crois_fish(Q103,R103,'A dater'!$C$8)) -> 0 | U103: -10 | V103: =probCritDbl(R103,D103,'A dater'!$C$8,'A dater'!$D$8,Q103) -> 1.528810125e-45 | W103: 3.961220922 | Y103: 0 | Z103: -10 | AB103: 0 | AC103: 0 | AD103: 0 | AE103: 0
B104: 18.4 | C104: 8.8 | D104: 123.1 | E104: 8.5 | F104: 56.5 | J104: 153.5 | K104: 411.2 | L104: 512.2 | M104: 458.2 | N104: 22 | O104: 0.085 | P104: 0.5703 | Q104: 11.06505094 | R104: =K_dansDir(L104,K104,E104,F104,J104,'A dater'!$B$8,'A dater'!$A$8) -> 414.9364803 | S104: =Q104-AngCritDbl95(R104,D104,'A dater'!$C$8,Nd) -> 9.52413345 | T104: =IF((A104=""),0,Prob_crois_fish(Q104,R104,'A dater'!$C$8)) -> 0 | U104: -10 | V104: =probCritDbl(R104,D104,'A dater'!$C$8,'A dater'!$D$8,Q104) -> 2.248895143e-46 | W104: 4.105267553 | Y104: 0 | Z104: -10 | AB104: 0 | AC104: 0 | AD104: 0 | AE104: 0
B105: 14.8 | C105: 9 | D105: 126.7 | E105: 8 | F105: 56.2 | J105: 183.5 | K105: 453.7 | L105: 517.7 | M105: 484.1 | N105: 24 | O105: 0.0804 | P105: 0.5751 | Q105: 11.42874183 | R105: =K_dansDir(L105,K105,E105,F105,J105,'A dater'!$B$8,'A dater'!$A$8) -> 460.7810855 | S105: =Q105-AngCritDbl95(R105,D105,'A dater'!$C$8,Nd) -> 9.964904321 | T105: =IF((A105=""),0,Prob_crois_fish(Q105,R105,'A dater'!$C$8)) -> 0 | U105: -10 | V105: =probCritDbl(R105,D105,'A dater'!$C$8,'A dater'!$D$8,Q105) -> 2.219732943e-52 | W105: 4.826588246 | Y105: 0 | Z105: -10 | AB105: 0 | AC105: 0 | AD105: 0 | AE105: 0
B106: 13.4 | C106: 9.1 | D106: 124.1 | E106: 7.5 | F106: 56 | J106: 193.3 | K106: 466.7 | L106: 513.8 | M106: 489.6 | N106: 26.4 | O106: 0.0758 | P106: 0.5795 | Q106: 11.69875561 | R106: =K_dansDir(L106,K106,E106,F106,J106,'A dater'!$B$8,'A dater'!$A$8) -> 478.3674197 | S106: =Q106-AngCritDbl95(R106,D106,'A dater'!$C$8,Nd) -> 10.26036687 | T106: =IF((A106=""),0,Prob_crois_fish(Q106,R106,'A dater'!$C$8)) -> 0 | U106: -10 | V106: =probCritDbl(R106,D106,'A dater'!$C$8,'A dater'!$D$8,Q106) -> 5.384105613e-55 | W106: 5.217877816 | Y106: 0 | Z106: -10 | AB106: 0 | AC106: 0 | AD106: 0 | AE106: 0
B107: 14.3 | C107: 9.1 | D107: 115.3 | E107: 7 | F107: 55.8 | J107: 183 | K107: 450 | L107: 500.6 | M107: 474.5 | N107: 29.3 | O107: 0.0713 | P107: 0.5835 | Q107: 11.97140966 | R107: =K_dansDir(L107,K107,E107,F107,J107,'A dater'!$B$8,'A dater'!$A$8) -> 455.9978772 | S107: =Q107-AngCritDbl95(R107,D107,'A dater'!$C$8,Nd) -> 10.49668864 | T107: =IF((A107=""),0,Prob_crois_fish(Q107,R107,'A dater'!$C$8)) -> 0 | U107: -10 | V107: =probCritDbl(R107,D107,'A dater'!$C$8,'A dater'!$D$8,Q107) -> 9.965588684e-54 | W107: 5.328135858 | Y107: 0 | Z107: -10 | AB107: 0 | AC107: 0 | AD107: 0 | AE107: 0
B108: 15.1 | C108: 9 | D108: 106.5 | E108: 6.5 | F108: 55.6 | J108: 172.7 | K108: 433.3 | L108: 487.3 | M108: 459.5 | N108: 32.1 | O108: 0.0668 | P108: 0.5875 | Q108: 12.24659382 | R108: =K_dansDir(L108,K108,E108,F108,J108,'A dater'!$B$8,'A dater'!$A$8) -> 435.0595049 | S108: =Q108-AngCritDbl95(R108,D108,'A dater'!$C$8,Nd) -> 10.73497532 | T108: =IF((A108=""),0,Prob_crois_fish(Q108,R108,'A dater'!$C$8)) -> 0 | U108: -10 | V108: =probCritDbl(R108,D108,'A dater'!$C$8,'A dater'!$D$8,Q108) -> 2.230463466e-52 | W108: 5.438984441 | Y108: 0 | Z108: -10 | AB108: 0 | AC108: 0 | AD108: 0 | AE108: 0
B109: 16 | C109: 8.9 | D109: 97.8 | E109: 6 | F109: 55.4 | J109: 162.4 | K109: 416.6 | L109: 474.1 | M109: 444.4 | N109: 35 | O109: 0.0623 | P109: 0.5915 | Q109: 12.52420554 | R109: =K_dansDir(L109,K109,E109,F109,J109,'A dater'!$B$8,'A dater'!$A$8) -> 416.607022 | S109: =Q109-AngCritDbl95(R109,D109,'A dater'!$C$8,Nd) -> 10.97716507 | T109: =IF((A109=""),0,Prob_crois_fish(Q109,R109,'A dater'!$C$8)) -> 0 | U109: -10 | V109: =probCritDbl(R109,D109,'A dater'!$C$8,'A dater'!$D$8,Q109) -> 4.911842353e-51 | W109: 5.559924926 | Y109: 0 | Z109: -10 | AB109: 0 | AC109: 0 | AD109: 0 | AE109: 0
B110: 15.1 | C110: 8.7 | D110: 96 | E110: 5.6 | F110: 55.5 | J110: 163.5 | K110: 382.8 | L110: 494.2 | M110: 432.6 | N110: 35 | O110: 0.0578 | P110: 0.59 | Q110: 12.50189053 | R110: =K_dansDir(L110,K110,E110,F110,J110,'A dater'!$B$8,'A dater'!$A$8) -> 383.0147212 | S110: =Q110-AngCritDbl95(R110,D110,'A dater'!$C$8,Nd) -> 10.89028254 | T110: =IF((A110=""),0,Prob_crois_fish(Q110,R110,'A dater'!$C$8)) -> 0 | U110: -10 | V110: =probCritDbl(R110,D110,'A dater'!$C$8,'A dater'!$D$8,Q110) -> 4.213844575e-48 | W110: 5.236462314 | Y110: 0 | Z110: -10 | AB110: 0 | AC110: 0 | AD110: 0 | AE110: 0
B111: 14.3 | C111: 8.6 | D111: 94.2 | E111: 5.2 | F111: 55.6 | J111: 164.6 | K111: 349.1 | L111: 514.3 | M111: 420.7 | N111: 35 | O111: 0.0534 | P111: 0.5885 | Q111: 12.48276178 | R111: =K_dansDir(L111,K111,E111,F111,J111,'A dater'!$B$8,'A dater'!$A$8) -> 350.0722002 | S111: =Q111-AngCritDbl95(R111,D111,'A dater'!$C$8,Nd) -> 10.79898288 | T111: =IF((A111=""),0,Prob_crois_fish(Q111,R111,'A dater'!$C$8)) -> 0 | U111: -10 | V111: =probCritDbl(R111,D111,'A dater'!$C$8,'A dater'!$D$8,Q111) -> 3.827431085e-45 | W111: 4.880765706 | Y111: 0 | Z111: -10 | AB111: 0 | AC111: 0 | AD111: 0 | AE111: 0
B112: 13.4 | C112: 8.4 | D112: 92.4 | E112: 4.8 | F112: 55.7 | J112: 165.7 | K112: 315.3 | L112: 534.4 | M112: 408.9 | N112: 35 | O112: 0.0489 | P112: 0.587 | Q112: 12.4668082 | R112: =K_dansDir(L112,K112,E112,F112,J112,'A dater'!$B$8,'A dater'!$A$8) -> 317.9241331 | S112: =Q112-AngCritDbl95(R112,D112,'A dater'!$C$8,Nd) -> 10.70200318 | T112: =IF((A112=""),0,Prob_crois_fish(Q112,R112,'A dater'!$C$8)) -> 0 | U112: -10 | V112: =probCritDbl(R112,D112,'A dater'!$C$8,'A dater'!$D$8,Q112) -> 3.649555334e-42 | W112: 4.487017772 | Y112: 0 | Z112: -10 | AB112: 0 | AC112: 0 | AD112: 0 | AE112: 0
B113: 14.1 | C113: 8.8 | D113: 117.7 | E113: 19.2 | F113: 64 | J113: -23.5 | K113: 747 | L113: 1084.1 | M113: 899.9 | N113: 35 | O113: 0.1483 | P113: 0.4244 | Q113: 3.27938786 | R113: =K_dansDir(L113,K113,E113,F113,J113,'A dater'!$B$8,'A dater'!$A$8) -> 920.9214877 | S113: =Q113-AngCritDbl95(R113,D113,'A dater'!$C$8,Nd) -> 2.222629428 | T113: =IF((A113=""),0,Prob_crois_fish(Q113,R113,'A dater'!$C$8)) -> 0 | U113: -10 | V113: =probCritDbl(R113,D113,'A dater'!$C$8,'A dater'!$D$8,Q113) -> 3.315985325e-12 | W113: -1.392908199 | Y113: 0 | Z113: -10 | AB113: 0 | AC113: 0 | AD113: 0 | AE113: 0
B114: 15.3 | C114: 8.7 | D114: 116.3 | E114: 19.3 | F114: 63.9 | J114: -20 | K114: 786.3 | L114: 1126.3 | M114: 941 | N114: 35 | O114: 0.1488 | P114: 0.4256 | Q114: 3.3885769 | R114: =K_dansDir(L114,K114,E114,F114,J114,'A dater'!$B$8,'A dater'!$A$8) -> 940.6941968 | S114: =Q114-AngCritDbl95(R114,D114,'A dater'!$C$8,Nd) -> 2.341607081 | T114: =IF((A114=""),0,Prob_crois_fish(Q114,R114,'A dater'!$C$8)) -> 0 | U114: -10 | V114: =probCritDbl(R114,D114,'A dater'!$C$8,'A dater'!$D$8,Q114) -> 4.197854837e-13 | W114: -1.23492365 | Y114: 0 | Z114: -10 | AB114: 0 | AC114: 0 | AD114: 0 | AE114: 0
B115: 16.4 | C115: 8.6 | D115: 114.9 | E115: 19.3 | F115: 63.8 | J115: -16.6 | K115: 825.6 | L115: 1168.5 | M115: 982.2 | N115: 35 | O115: 0.1494 | P115: 0.4269 | Q115: 3.48126154 | R115: =K_dansDir(L115,K115,E115,F115,J115,'A dater'!$B$8,'A dater'!$A$8) -> 957.5549144 | S115: =Q115-AngCritDbl95(R115,D115,'A dater'!$C$8,Nd) -> 2.442276395 | T115: =IF((A115=""),0,Prob_crois_fish(Q115,R115,'A dater'!$C$8)) -> 0 | U115: -10 | V115: =probCritDbl(R115,D115,'A dater'!$C$8,'A dater'!$D$8,Q115) -> 6.933825723e-14 | W115: -1.101936507 | Y115: 0 | Z115: -10 | AB115: 0 | AC115: 0 | AD115: 0 | AE115: 0
B116: 17.5 | C116: 8.5 | D116: 113 | E116: 19.3 | F116: 63.7 | J116: -15 | K116: 828.7 | L116: 1207.7 | M116: 999.3 | N116: 35.6 | O116: 0.1501 | P116: 0.4293 | Q116: 3.574340083 | R116: =K_dansDir(L116,K116,E116,F116,J116,'A dater'!$B$8,'A dater'!$A$8) -> 960.5722633 | S116: =Q116-AngCritDbl95(R116,D116,'A dater'!$C$8,Nd) -> 2.536059555 | T116: =IF((A116=""),0,Prob_crois_fish(Q116,R116,'A dater'!$C$8)) -> 0 | U116: -10 | V116: =probCritDbl(R116,D116,'A dater'!$C$8,'A dater'!$D$8,Q116) -> 1.620500833e-14 | W116: -1.002495495 | Y116: 0 | Z116: -10 | AB116: 0 | AC116: 0 | AD116: 0 | AE116: 0
B117: 18.5 | C117: 8.5 | D117: 110.6 | E117: 19.2 | F117: 63.5 | J117: -15.2 | K117: 795.5 | L117: 1243.8 | M117: 992.4 | N117: 36.9 | O117: 0.1508 | P117: 0.4329 | Q117: 3.746465487 | R117: =K_dansDir(L117,K117,E117,F117,J117,'A dater'!$B$8,'A dater'!$A$8) -> 940.7828865 | S117: =Q117-AngCritDbl95(R117,D117,'A dater'!$C$8,Nd) -> 2.697129716 | T117: =IF((A117=""),0,Prob_crois_fish(Q117,R117,'A dater'!$C$8)) -> 0 | U117: -10 | V117: =probCritDbl(R117,D117,'A dater'!$C$8,'A dater'!$D$8,Q117) -> 2.089844956e-15 | W117: -0.879404357 | Y117: 0 | Z117: -10 | AB117: 0 | AC117: 0 | AD117: 0 | AE117: 0
B118: 19.5 | C118: 8.5 | D118: 108.2 | E118: 19.2 | F118: 63.3 | J118: -15.3 | K118: 762.3 | L118: 1280 | M118: 985.4 | N118: 38.1 | O118: 0.1515 | P118: 0.4364 | Q118: =diff_ang((F118),(E118),Id,Dd,(-1)) -> 3.93555955 | R118: =K_dansDir(L118,K118,E118,F118,J118,'A dater'!$B$8,'A dater'!$A$8) -> 922.7538712 | S118: =Q118-AngCritDbl95(R118,D118,'A dater'!$C$8,Nd) -> 2.875741583 | T118: =IF((A118=""),0,Prob_crois_fish(Q118,R118,'A dater'!$C$8)) -> 0 | U118: =IF(S118<0,0.1,-10) -> -10 | V118: =probCritDbl(R118,D118,'A dater'!$C$8,'A dater'!$D$8,Q118) -> 2.034760775e-16 | W118: =Q118-AngCrit95_isole( R118,D118) -> -0.7364909655 | Y118: =T118/$Y$5 -> 0 | Z118: -10 | AB118: 0 | AC118: 0 | AD118: 0 | AE118: 0
B119: 20.5 | C119: 8.4 | D119: 105.8 | E119: 19.1 | F119: 63.1 | J119: -15.5 | K119: 729.1 | L119: 1316.1 | M119: 978.5 | N119: 39.4 | O119: 0.1522 | P119: 0.44 | Q119: 4.112156387 | R119: =K_dansDir(L119,K119,E119,F119,J119,'A dater'!$B$8,'A dater'!$A$8) -> 899.8401734 | S119: =Q119-AngCritDbl95(R119,D119,'A dater'!$C$8,Nd) -> 3.038863918 | T119: =IF((A119=""),0,Prob_crois_fish(Q119,R119,'A dater'!$C$8)) -> 0 | U119: -10 | V119: =probCritDbl(R119,D119,'A dater'!$C$8,'A dater'!$D$8,Q119) -> 2.982830292e-17 | W119: -0.6202924544 | Y119: 0 | Z119: -10 | AB119: 0 | AC119: 0 | AD119: 0 | AE119: 0
B120: 20.4 | C120: 8.4 | D120: 103.6 | E120: 19.1 | F120: 62.9 | J120: -14.8 | K120: 701.7 | L120: 1313.6 | M120: 960.1 | N120: 39.3 | O120: 0.1533 | P120: 0.443 | Q120: 4.303679239 | R120: =K_dansDir(L120,K120,E120,F120,J120,'A dater'!$B$8,'A dater'!$A$8) -> 865.4723875 | S120: =Q120-AngCritDbl95(R120,D120,'A dater'!$C$8,Nd) -> 3.209876737 | T120: =IF((A120=""),0,Prob_crois_fish(Q120,R120,'A dater'!$C$8)) -> 0 | U120: -10 | V120: =probCritDbl(R120,D120,'A dater'!$C$8,'A dater'!$D$8,Q120) -> 5.545940411e-18 | W120: -0.5230969193 | Y120: 0 | Z120: -10 | AB120: 0 | AC120: 0 | AD120: 0 | AE120: 0
B121: 19.3 | C121: 8.3 | D121: 101.7 | E121: 19.2 | F121: 62.7 | J121: -13.3 | K121: 680.2 | L121: 1272.5 | M121: 930.3 | N121: 37.9 | O121: 0.1548 | P121: 0.4455 | Q121: 4.508484077 | R121: =K_dansDir(L121,K121,E121,F121,J121,'A dater'!$B$8,'A dater'!$A$8) -> 823.019535 | S121: =Q121-AngCritDbl95(R121,D121,'A dater'!$C$8,Nd) -> 3.388029001 | T121: =IF((A121=""),0,Prob_crois_fish(Q121,R121,'A dater'!$C$8)) -> 0 | U121: -10 | V121: =probCritDbl(R121,D121,'A dater'!$C$8,'A dater'!$D$8,Q121) -> 1.296085631e-18 | W121: -0.4424192185 | Y121: 0 | Z121: -10 | AB121: 0 | AC121: 0 | AD121: 0 | AE121: 0
B122: 18.1 | C122: 8.2 | D122: 99.7 | E122: 19.2 | F122: 62.6 | J122: -11.8 | K122: 658.6 | L122: 1231.4 | M122: 900.6 | N122: 36.4 | O122: 0.1563 | P122: 0.448 | Q122: 4.604640866 | R122: =K_dansDir(L122,K122,E122,F122,J122,'A dater'!$B$8,'A dater'!$A$8) -> 781.2593679 | S122: =Q122-AngCritDbl95(R122,D122,'A dater'!$C$8,Nd) -> 3.455827213 | T122: =IF((A122=""),0,Prob_crois_fish(Q122,R122,'A dater'!$C$8)) -> 0 | U122: -10 | V122: =probCritDbl(R122,D122,'A dater'!$C$8,'A dater'!$D$8,Q122) -> 1.873813752e-18 | W122: -0.478212407 | Y122: 0 | Z122: -10 | AB122: 0 | AC122: 0 | AD122: 0 | AE122: 0
B123: 17 | C123: 8.1 | D123: 97.7 | E123: 19.3 | F123: 62.4 | J123: -10.3 | K123: 637.1 | L123: 1190.3 | M123: 870.8 | N123: 35 | O123: 0.1578 | P123: 0.4505 | Q123: 4.809680458 | R123: =K_dansDir(L123,K123,E123,F123,J123,'A dater'!$B$8,'A dater'!$A$8) -> 742.347781 | S123: =Q123-AngCritDbl95(R123,D123,'A dater'!$C$8,Nd) -> 3.632264595 | T123: =IF((A123=""),0,Prob_crois_fish(Q123,R123,'A dater'!$C$8)) -> 0 | U123: -10 | V123: =probCritDbl(R123,D123,'A dater'!$C$8,'A dater'!$D$8,Q123) -> 5.529247594e-19 | W123: -0.4061309399 | Y123: 0 | Z123: -10 | AB123: 0 | AC123: 0 | AD123: 0 | AE123: 0
B124: 16.1 | C124: 8.1 | D124: 98.4 | E124: 19.1 | F124: 62.1 | J124: -14.9 | K124: 629.5 | L124: 1145.4 | M124: 848.9 | N124: 35 | O124: 0.1577 | P124: 0.455 | Q124: 5.076301308 | R124: =K_dansDir(L124,K124,E124,F124,J124,'A dater'!$B$8,'A dater'!$A$8) -> 748.5969355 | S124: =Q124-AngCritDbl95(R124,D124,'A dater'!$C$8,Nd) -> 3.903823908 | T124: =IF((A124=""),0,Prob_crois_fish(Q124,R124,'A dater'!$C$8)) -> 0 | U124: -10 | V124: =probCritDbl(R124,D124,'A dater'!$C$8,'A dater'!$D$8,Q124) -> 7.371625595e-21 | W124: -0.1172005271 | Y124: 0 | Z124: -10 | AB124: 0 | AC124: 0 | AD124: 0 | AE124: 0
B125: 15.3 | C125: 8.2 | D125: 99.1 | E125: 18.9 | F125: 61.9 | J125: -19.4 | K125: 621.9 | L125: 1100.6 | M125: 827.1 | N125: 35 | O125: 0.1575 | P125: 0.4595 | Q125: 5.24971846 | R125: =K_dansDir(L125,K125,E125,F125,J125,'A dater'!$B$8,'A dater'!$A$8) -> 755.4059798 | S125: =Q125-AngCritDbl95(R125,D125,'A dater'!$C$8,Nd) -> 4.082520138 | T125: =IF((A125=""),0,Prob_crois_fish(Q125,R125,'A dater'!$C$8)) -> 0 | U125: -10 | V125: =probCritDbl(R125,D125,'A dater'!$C$8,'A dater'!$D$8,Q125) -> 3.51512872e-22 | W125: 0.08016171327 | Y125: 0 | Z125: -10 | AB125: 0 | AC125: 0 | AD125: 0 | AE125: 0
B126: 14.4 | C126: 8.2 | D126: 99.9 | E126: 18.7 | F126: 61.6 | J126: -24 | K126: 614.3 | L126: 1055.7 | M126: 805.2 | N126: 35 | O126: 0.1574 | P126: 0.464 | Q126: 5.5241819 | R126: =K_dansDir(L126,K126,E126,F126,J126,'A dater'!$B$8,'A dater'!$A$8) -> 759.6810729 | S126: =Q126-AngCritDbl95(R126,D126,'A dater'!$C$8,Nd) -> 4.360444395 | T126: =IF((A126=""),0,Prob_crois_fish(Q126,R126,'A dater'!$C$8)) -> 0 | U126: -10 | V126: =probCritDbl(R126,D126,'A dater'!$C$8,'A dater'!$D$8,Q126) -> 3.622042306e-24 | W126: 0.3697282682 | Y126: 0 | Z126: -10 | AB126: 0 | AC126: 0 | AD126: 0 | AE126: 0
B127: 13.9 | C127: 8.4 | D127: 101.4 | E127: 18.4 | F127: 61.4 | J127: -27 | K127: 590.4 | L127: 993.5 | M127: 765.9 | N127: 35.6 | O127: 0.1563 | P127: 0.4682 | Q127: 5.695519143 | R127: =K_dansDir(L127,K127,E127,F127,J127,'A dater'!$B$8,'A dater'!$A$8) -> 732.9534821 | S127: =Q127-AngCritDbl95(R127,D127,'A dater'!$C$8,Nd) -> 4.512973269 | T127: =IF((A127=""),0,Prob_crois_fish(Q127,R127,'A dater'!$C$8)) -> 0 | U127: -10 | V127: =probCritDbl(R127,D127,'A dater'!$C$8,'A dater'!$D$8,Q127) -> 8.932565312e-25 | W127: 0.4488435339 | Y127: 0 | Z127: -10 | AB127: 0 | AC127: 0 | AD127: 0 | AE127: 0
B128: 13.6 | C128: 8.5 | D128: 103.6 | E128: 18.1 | F128: 61.2 | J128: -28.3 | K128: 550.3 | L128: 913.9 | M128: 709.1 | N128: 36.9 | O128: 0.1543 | P128: 0.4721 | Q128: 5.871240532 | R128: =K_dansDir(L128,K128,E128,F128,J128,'A dater'!$B$8,'A dater'!$A$8) -> 678.0131788 | S128: =Q128-AngCritDbl95(R128,D128,'A dater'!$C$8,Nd) -> 4.645863523 | T128: =IF((A128=""),0,Prob_crois_fish(Q128,R128,'A dater'!$C$8)) -> 0 | U128: -10 | V128: =probCritDbl(R128,D128,'A dater'!$C$8,'A dater'!$D$8,Q128) -> 1.177861841e-24 | W128: 0.4174193204 | Y128: 0 | Z128: -10 | AB128: 0 | AC128: 0 | AD128: 0 | AE128: 0
B129: 13.4 | C129: 8.7 | D129: 105.9 | E129: 17.7 | F129: 61.1 | J129: -29.6 | K129: 510.1 | L129: 834.4 | M129: 652.4 | N129: 38.1 | O129: 0.1522 | P129: 0.4761 | Q129: 5.946146809 | R129: =K_dansDir(L129,K129,E129,F129,J129,'A dater'!$B$8,'A dater'!$A$8) -> 622.2748919 | S129: =Q129-AngCritDbl95(R129,D129,'A dater'!$C$8,Nd) -> 4.671313717 | T129: =IF((A129=""),0,Prob_crois_fish(Q129,R129,'A dater'!$C$8)) -> 0 | U129: -10 | V129: =probCritDbl(R129,D129,'A dater'!$C$8,'A dater'!$D$8,Q129) -> 1.035524101e-23 | W129: 0.2546211376 | Y129: 0 | Z129: -10 | AB129: 0 | AC129: 0 | AD129: 0 | AE129: 0
B130: 13.1 | C130: 8.9 | D130: 108.1 | E130: 17.4 | F130: 60.9 | J130: -30.9 | K130: 470 | L130: 754.8 | M130: 595.6 | N130: 39.4 | O130: 0.1502 | P130: 0.48 | Q130: 6.130509049 | R130: =K_dansDir(L130,K130,E130,F130,J130,'A dater'!$B$8,'A dater'!$A$8) -> 568.5311601 | S130: =Q130-AngCritDbl95(R130,D130,'A dater'!$C$8,Nd) -> 4.800887053 | T130: =IF((A130=""),0,Prob_crois_fish(Q130,R130,'A dater'!$C$8)) -> 0 | U130: -10 | V130: =probCritDbl(R130,D130,'A dater'!$C$8,'A dater'!$D$8,Q130) -> 2.388205924e-23 | W130: 0.1772551612 | Y130: 0 | Z130: -10 | AB130: 0 | AC130: 0 | AD130: 0 | AE130: 0
B131: 14 | C131: 9 | D131: 110.1 | E131: 17 | F131: 60.6 | J131: -32.5 | K131: 424.1 | L131: 685.3 | M131: 538.9 | N131: 40 | O131: 0.1477 | P131: 0.4849 | Q131: 6.414998589 | R131: =K_dansDir(L131,K131,E131,F131,J131,'A dater'!$B$8,'A dater'!$A$8) -> 514.3385978 | S131: =Q131-AngCritDbl95(R131,D131,'A dater'!$C$8,Nd) -> 5.021187245 | T131: =IF((A131=""),0,Prob_crois_fish(Q131,R131,'A dater'!$C$8)) -> 0 | U131: -10 | V131: =probCritDbl(R131,D131,'A dater'!$C$8,'A dater'!$D$8,Q131) -> 2.435022172e-23 | W131: 0.1569964225 | Y131: 0 | Z131: -10 | AB131: 0 | AC131: 0 | AD131: 0 | AE131: 0
B132: 16 | C132: 9.1 | D132: 111.7 | E132: 16.5 | F132: 60.3 | J132: -34.5 | K132: 372.5 | L132: 626 | M132: 482.4 | N132: 40 | O132: 0.1447 | P132: 0.4907 | Q132: 6.703619023 | R132: =K_dansDir(L132,K132,E132,F132,J132,'A dater'!$B$8,'A dater'!$A$8) -> 460.8142255 | S132: =Q132-AngCritDbl95(R132,D132,'A dater'!$C$8,Nd) -> 5.235085318 | T132: =IF((A132=""),0,Prob_crois_fish(Q132,R132,'A dater'!$C$8)) -> 0 | U132: -10 | V132: =probCritDbl(R132,D132,'A dater'!$C$8,'A dater'!$D$8,Q132) -> 4.435209003e-23 | W132: 0.09285807515 | Y132: 0 | Z132: -10 | AB132: 0 | AC132: 0 | AD132: 0 | AE132: 0
B133: 18 | C133: 9.2 | D133: 113.2 | E133: 16 | F133: 60 | J133: -36.5 | K133: 320.9 | L133: 566.6 | M133: 425.8 | N133: 40 | O133: 0.1418 | P133: 0.4966 | Q133: 7 | R133: =K_dansDir(L133,K133,E133,F133,J133,'A dater'!$B$8,'A dater'!$A$8) -> 407.8321361 | S133: =Q133-AngCritDbl95(R133,D133,'A dater'!$C$8,Nd) -> 5.443053151 | T133: =IF((A133=""),0,Prob_crois_fish(Q133,R133,'A dater'!$C$8)) -> 0 | U133: -10 | V133: =probCritDbl(R133,D133,'A dater'!$C$8,'A dater'!$D$8,Q133) -> 1.461933383e-22 | W133: -0.02652216793 | Y133: 0 | Z133: -10 | AB133: 0 | AC133: 0 | AD133: 0 | AE133: 0
B134: 20 | C134: 9.3 | D134: 114.8 | E134: 15.4 | F134: 59.7 | J134: -38.5 | K134: 269.3 | L134: 507.3 | M134: 369.3 | N134: 40 | O134: 0.1388 | P134: 0.5024 | Q134: 7.304872369 | R134: =K_dansDir(L134,K134,E134,F134,J134,'A dater'!$B$8,'A dater'!$A$8) -> 354.1275894 | S134: =Q134-AngCritDbl95(R134,D134,'A dater'!$C$8,Nd) -> 5.638360944 | T134: =IF((A134=""),0,Prob_crois_fish(Q134,R134,'A dater'!$C$8)) -> 0 | U134: -10 | V134: =probCritDbl(R134,D134,'A dater'!$C$8,'A dater'!$D$8,Q134) -> 1.082228426e-21 | W134: -0.2352031976 | Y134: 0 | Z134: -10 | AB134: 0 | AC134: 0 | AD134: 0 | AE134: 0
B135: 20.5 | C135: 9.2 | D135: 114.7 | E135: 14.9 | F135: 59.4 | J135: -40.1 | K135: 244.9 | L135: 473.3 | M135: 340.4 | N135: 38.3 | O135: 0.1353 | P135: 0.5085 | Q135: 7.615862935 | R135: =K_dansDir(L135,K135,E135,F135,J135,'A dater'!$B$8,'A dater'!$A$8) -> 327.0685768 | S135: =Q135-AngCritDbl95(R135,D135,'A dater'!$C$8,Nd) -> 5.883717152 | T135: =IF((A135=""),0,Prob_crois_fish(Q135,R135,'A dater'!$C$8)) -> 0 | U135: -10 | V135: =probCritDbl(R135,D135,'A dater'!$C$8,'A dater'!$D$8,Q135) -> 8.523879219e-22 | W135: -0.2304703826 | Y135: 0 | Z135: =IF(Y135>$Z$5,0.05,-10) -> -10 | AB135: =IF((A135=""),0,ProbCrit_Isol(R135,C135,Q135)) -> 0 | AC135: =AB135/$AC$5 -> 0 | AD135: =IF((A135=""),0,V135) -> 0 | AE135: =AD135/$AE$5 -> 0
B136: 19.5 | C136: 8.9 | D136: 112.7 | E136: 14.3 | F136: 59.1 | J136: -41.2 | K136: 247.7 | L136: 464.8 | M136: 339.2 | N136: 35 | O136: 0.1314 | P136: 0.515 | Q136: 7.936731372 | R136: =K_dansDir(L136,K136,E136,F136,J136,'A dater'!$B$8,'A dater'!$A$8) -> 324.0946312 | S136: =Q136-AngCritDbl95(R136,D136,'A dater'!$C$8,Nd) -> 6.196229025 | T136: =IF((A136=""),0,Prob_crois_fish(Q136,R136,'A dater'!$C$8)) -> 0 | U136: -10 | V136: =probCritDbl(R136,D136,'A dater'!$C$8,'A dater'!$D$8,Q136) -> 4.636415478e-23 | W136: 0.05288044623 | Y136: 0 | Z136: -10 | AB136: 0 | AC136: 0 | AD136: 0 | AE136: 0
B137: 18.5 | C137: 8.7 | D137: 110.8 | E137: 13.8 | F137: 58.9 | J137: -42.4 | K137: 250.5 | L137: 456.2 | M137: 338 | N137: 31.7 | O137: 0.1275 | P137: 0.5216 | Q137: 8.160269701 | R137: =K_dansDir(L137,K137,E137,F137,J137,'A dater'!$B$8,'A dater'!$A$8) -> 322.7106098 | S137: =Q137-AngCritDbl95(R137,D137,'A dater'!$C$8,Nd) -> 6.415510353 | T137: =IF((A137=""),0,Prob_crois_fish(Q137,R137,'A dater'!$C$8)) -> 0 | U137: -10 | V137: =probCritDbl(R137,D137,'A dater'!$C$8,'A dater'!$D$8,Q137) -> 5.921656262e-24 | W137: 0.2579828327 | Y137: 0 | Z137: -10 | AB137: 0 | AC137: 0 | AD137: 0 | AE137: 0
B138: 17.6 | C138: 8.5 | D138: 109.4 | E138: 13.3 | F138: 58.6 | J138: -43.8 | K138: 262.6 | L138: 450.2 | M138: 343.5 | N138: 29 | O138: 0.1239 | P138: 0.5271 | Q138: 8.488178245 | R138: =K_dansDir(L138,K138,E138,F138,J138,'A dater'!$B$8,'A dater'!$A$8) -> 329.4039906 | S138: =Q138-AngCritDbl95(R138,D138,'A dater'!$C$8,Nd) -> 6.760255054 | T138: =IF((A138=""),0,Prob_crois_fish(Q138,R138,'A dater'!$C$8)) -> 0 | U138: -10 | V138: =probCritDbl(R138,D138,'A dater'!$C$8,'A dater'!$D$8,Q138) -> 7.852865962e-26 | W138: 0.6655747947 | Y138: 0 | Z138: -10 | AB138: 0 | AC138: 0 | AD138: 0 | AE138: 0
B139: 16.8 | C139: 8.4 | D139: 108.7 | E139: 12.8 | F139: 58.3 | J139: -45.5 | K139: 284 | L139: 446.7 | M139: 355.7 | N139: 27 | O139: 0.1206 | P139: 0.5318 | Q139: 8.820437818 | R139: =K_dansDir(L139,K139,E139,F139,J139,'A dater'!$B$8,'A dater'!$A$8) -> 343.8082856 | S139: =Q139-AngCritDbl95(R139,D139,'A dater'!$C$8,Nd) -> 7.127782297 | T139: =IF((A139=""),0,Prob_crois_fish(Q139,R139,'A dater'!$C$8)) -> 0 | U139: -10 | V139: =probCritDbl(R139,D139,'A dater'!$C$8,'A dater'!$D$8,Q139) -> 2.831303051e-28 | W139: 1.163140521 | Y139: 0 | Z139: -10 | AB139: 0 | AC139: 0 | AD139: 0 | AE139: 0
B140: 16 | C140: 8.4 | D140: 107.9 | E140: 12.3 | F140: 58.1 | J140: -47.1 | K140: 305.4 | L140: 443.3 | M140: 367.9 | N140: 25 | O140: 0.1173 | P140: 0.5364 | Q140: 9.057996042 | R140: =K_dansDir(L140,K140,E140,F140,J140,'A dater'!$B$8,'A dater'!$A$8) -> 357.3981874 | S140: =Q140-AngCritDbl95(R140,D140,'A dater'!$C$8,Nd) -> 7.396549174 | T140: =IF((A140=""),0,Prob_crois_fish(Q140,R140,'A dater'!$C$8)) -> 0 | U140: -10 | V140: =probCritDbl(R140,D140,'A dater'!$C$8,'A dater'!$D$8,Q140) -> 3.007955922e-30 | W140: 1.547260824 | Y140: 0 | Z140: -10 | AB140: 0 | AC140: 0 | AD140: 0 | AE140: 0
B141: 18.5 | C141: 8.5 | D141: 105.7 | E141: 11.8 | F141: 57.8 | J141: -33.8 | K141: 341.1 | L141: 436.2 | M141: 385 | N141: 22.5 | O141: 0.1142 | P141: 0.5432 | Q141: 9.398264351 | R141: =K_dansDir(L141,K141,E141,F141,J141,'A dater'!$B$8,'A dater'!$A$8) -> 356.4733682 | S141: =Q141-AngCritDbl95(R141,D141,'A dater'!$C$8,Nd) -> 7.733923186 | T141: =IF((A141=""),0,Prob_crois_fish(Q141,R141,'A dater'!$C$8)) -> 0 | U141: -10 | V141: =probCritDbl(R141,D141,'A dater'!$C$8,'A dater'!$D$8,Q141) -> 9.266535694e-32 | W141: 1.875942673 | Y141: 0 | Z141: -10 | AB141: 0 | AC141: 0 | AD141: 0 | AE141: 0
B142: 21 | C142: 8.6 | D142: 103.4 | E142: 11.4 | F142: 57.4 | J142: -20.5 | K142: 376.7 | L142: 429.2 | M142: 402.1 | N142: 20 | O142: 0.1112 | P142: 0.5501 | Q142: 9.830234147 | R142: =K_dansDir(L142,K142,E142,F142,J142,'A dater'!$B$8,'A dater'!$A$8) -> 378.2592741 | S142: =Q142-AngCritDbl95(R142,D142,'A dater'!$C$8,Nd) -> 8.212042754 | T142: =IF((A142=""),0,Prob_crois_fish(Q142,R142,'A dater'!$C$8)) -> 0 | U142: -10 | V142: =probCritDbl(R142,D142,'A dater'!$C$8,'A dater'!$D$8,Q142) -> 3.475433089e-35 | W142: 2.526112765 | Y142: 0 | Z142: -10 | AB142: 0 | AC142: 0 | AD142: 0 | AE142: 0
B143: 19 | C143: 8.6 | D143: 104.3 | E143: 11.3 | F143: 57.2 | J143: -33.2 | K143: 397.2 | L143: 457.1 | M143: 426.1 | N143: 20 | O143: 0.1114 | P143: 0.5544 | Q143: 10.03675357 | R143: =K_dansDir(L143,K143,E143,F143,J143,'A dater'!$B$8,'A dater'!$A$8) -> 406.0568993 | S143: =Q143-AngCritDbl95(R143,D143,'A dater'!$C$8,Nd) -> 8.473274541 | T143: =IF((A143=""),0,Prob_crois_fish(Q143,R143,'A dater'!$C$8)) -> 0 | U143: -10 | V143: =probCritDbl(R143,D143,'A dater'!$C$8,'A dater'!$D$8,Q143) -> 3.887538037e-38 | W143: 2.988152492 | Y143: 0 | Z143: -10 | AB143: 0 | AC143: 0 | AD143: 0 | AE143: 0
B144: 17 | C144: 8.7 | D144: 105.2 | E144: 11.3 | F144: 56.9 | J144: -45.8 | K144: 417.7 | L144: 484.9 | M144: 450 | N144: 20 | O144: 0.1115 | P144: 0.5588 | Q144: 10.33179352 | R144: =K_dansDir(L144,K144,E144,F144,J144,'A dater'!$B$8,'A dater'!$A$8) -> 440.3796067 | S144: =Q144-AngCritDbl95(R144,D144,'A dater'!$C$8,Nd) -> 8.828466152 | T144: =IF((A144=""),0,Prob_crois_fish(Q144,R144,'A dater'!$C$8)) -> 0 | U144: -10 | V144: =probCritDbl(R144,D144,'A dater'!$C$8,'A dater'!$D$8,Q144) -> 5.12343324e-42 | W144: 3.564485426 | Y144: 0 | Z144: -10 | AB144: 0 | AC144: 0 | AD144: 0 | AE144: 0
B145: 19.5 | C145: 8.6 | D145: 112.3 | E145: 10.2 | F145: 56.8 | J145: -51.2 | K145: 393.2 | L145: 495.8 | M145: 441.1 | N145: 20 | O145: 0.1006 | P145: 0.5621 | Q145: 10.54848751 | R145: =K_dansDir(L145,K145,E145,F145,J145,'A dater'!$B$8,'A dater'!$A$8) -> 433.3861389 | S145: =Q145-AngCritDbl95(R145,D145,'A dater'!$C$8,Nd) -> 9.036189607 | T145: =IF((A145=""),0,Prob_crois_fish(Q145,R145,'A dater'!$C$8)) -> 0 | U145: -10 | V145: =probCritDbl(R145,D145,'A dater'!$C$8,'A dater'!$D$8,Q145) -> 1.445020746e-43 | W145: 3.731913492 | Y145: 0 | Z145: -10 | AB145: 0 | AC145: 0 | AD145: 0 | AE145: 0
B146: 22 | C146: 8.6 | D146: 119.4 | E146: 9 | F146: 56.7 | J146: -56.5 | K146: 368.7 | L146: 506.7 | M146: 432.2 | N146: 20 | O146: 0.0896 | P146: 0.5655 | Q146: =diff_ang((F146),(E146),Id,Dd,(-1)) -> 10.80037139 | R146: =K_dansDir(L146,K146,E146,F146,J146,'A dater'!$B$8,'A dater'!$A$8) -> 429.9579249 | S146: =Q146-AngCritDbl95(R146,D146,'A dater'!$C$8,Nd) -> 9.284607997 | T146: =IF((A146=""),0,Prob_crois_fish(Q146,R146,'A dater'!$C$8)) -> 0 | U146: =IF(S146<0,0.1,-10) -> -10 | V146: =probCritDbl(R146,D146,'A dater'!$C$8,'A dater'!$D$8,Q146) -> 1.528810125e-45 | W146: =Q146-AngCrit95_isole( R146,D146) -> 3.961220922 | Y146: =T146/$Y$5 -> 0 | Z146: -10 | AB146: 0 | AC146: 0 | AD146: 0 | AE146: 0
B147: 18.4 | C147: 8.8 | D147: 123.1 | E147: 8.5 | F147: 56.5 | J147: -26.5 | K147: 411.2 | L147: 512.2 | M147: 458.2 | N147: 22 | O147: 0.085 | P147: 0.5703 | Q147: 11.06505094 | R147: =K_dansDir(L147,K147,E147,F147,J147,'A dater'!$B$8,'A dater'!$A$8) -> 414.9364803 | S147: =Q147-AngCritDbl95(R147,D147,'A dater'!$C$8,Nd) -> 9.52413345 | T147: =IF((A147=""),0,Prob_crois_fish(Q147,R147,'A dater'!$C$8)) -> 0 | U147: -10 | V147: =probCritDbl(R147,D147,'A dater'!$C$8,'A dater'!$D$8,Q147) -> 2.248895143e-46 | W147: 4.105267553 | Y147: 0 | Z147: -10 | AB147: 0 | AC147: 0 | AD147: 0 | AE147: 0
B148: 14.8 | C148: 9 | D148: 126.7 | E148: 8 | F148: 56.2 | J148: 3.5 | K148: 453.7 | L148: 517.7 | M148: 484.1 | N148: 24 | O148: 0.0804 | P148: 0.5751 | Q148: 11.42874183 | R148: =K_dansDir(L148,K148,E148,F148,J148,'A dater'!$B$8,'A dater'!$A$8) -> 460.7810855 | S148: =Q148-AngCritDbl95(R148,D148,'A dater'!$C$8,Nd) -> 9.964904321 | T148: =IF((A148=""),0,Prob_crois_fish(Q148,R148,'A dater'!$C$8)) -> 0 | U148: -10 | V148: =probCritDbl(R148,D148,'A dater'!$C$8,'A dater'!$D$8,Q148) -> 2.219732943e-52 | W148: 4.826588246 | Y148: 0 | Z148: -10 | AB148: 0 | AC148: 0 | AD148: 0 | AE148: 0
B149: 13.4 | C149: 9.1 | D149: 124.1 | E149: 7.5 | F149: 56 | J149: 13.3 | K149: 466.7 | L149: 513.8 | M149: 489.6 | N149: 26.4 | O149: 0.0758 | P149: 0.5795 | Q149: 11.69875561 | R149: =K_dansDir(L149,K149,E149,F149,J149,'A dater'!$B$8,'A dater'!$A$8) -> 478.3674197 | S149: =Q149-AngCritDbl95(R149,D149,'A dater'!$C$8,Nd) -> 10.26036687 | T149: =IF((A149=""),0,Prob_crois_fish(Q149,R149,'A dater'!$C$8)) -> 0 | U149: -10 | V149: =probCritDbl(R149,D149,'A dater'!$C$8,'A dater'!$D$8,Q149) -> 5.384105613e-55 | W149: 5.217877816 | Y149: 0 | Z149: -10 | AB149: 0 | AC149: 0 | AD149: 0 | AE149: 0
B150: 14.3 | C150: 9.1 | D150: 115.3 | E150: 7 | F150: 55.8 | J150: 3 | K150: 450 | L150: 500.6 | M150: 474.5 | N150: 29.3 | O150: 0.0713 | P150: 0.5835 | Q150: 11.97140966 | R150: =K_dansDir(L150,K150,E150,F150,J150,'A dater'!$B$8,'A dater'!$A$8) -> 455.9978772 | S150: =Q150-AngCritDbl95(R150,D150,'A dater'!$C$8,Nd) -> 10.49668864 | T150: =IF((A150=""),0,Prob_crois_fish(Q150,R150,'A dater'!$C$8)) -> 0 | U150: -10 | V150: =probCritDbl(R150,D150,'A dater'!$C$8,'A dater'!$D$8,Q150) -> 9.965588684e-54 | W150: 5.328135858 | Y150: 0 | Z150: -10 | AB150: 0 | AC150: 0 | AD150: 0 | AE150: 0
B151: 15.1 | C151: 9 | D151: 106.5 | E151: 6.5 | F151: 55.6 | J151: -7.3 | K151: 433.3 | L151: 487.3 | M151: 459.5 | N151: 32.1 | O151: 0.0668 | P151: 0.5875 | Q151: 12.24659382 | R151: =K_dansDir(L151,K151,E151,F151,J151,'A dater'!$B$8,'A dater'!$A$8) -> 435.0595049 | S151: =Q151-AngCritDbl95(R151,D151,'A dater'!$C$8,Nd) -> 10.73497532 | T151: =IF((A151=""),0,Prob_crois_fish(Q151,R151,'A dater'!$C$8)) -> 0 | U151: -10 | V151: =probCritDbl(R151,D151,'A dater'!$C$8,'A dater'!$D$8,Q151) -> 2.230463466e-52 | W151: 5.438984441 | Y151: 0 | Z151: -10 | AB151: 0 | AC151: 0 | AD151: 0 | AE151: 0
B152: 16 | C152: 8.9 | D152: 97.8 | E152: 6 | F152: 55.4 | J152: -17.6 | K152: 416.6 | L152: 474.1 | M152: 444.4 | N152: 35 | O152: 0.0623 | P152: 0.5915 | Q152: 12.52420554 | R152: =K_dansDir(L152,K152,E152,F152,J152,'A dater'!$B$8,'A dater'!$A$8) -> 416.607022 | S152: =Q152-AngCritDbl95(R152,D152,'A dater'!$C$8,Nd) -> 10.97716507 | T152: =IF((A152=""),0,Prob_crois_fish(Q152,R152,'A dater'!$C$8)) -> 0 | U152: -10 | V152: =probCritDbl(R152,D152,'A dater'!$C$8,'A dater'!$D$8,Q152) -> 4.911842353e-51 | W152: 5.559924926 | Y152: 0 | Z152: -10 | AB152: 0 | AC152: 0 | AD152: 0 | AE152: 0
B153: 15.1 | C153: 8.7 | D153: 96 | E153: 5.6 | F153: 55.5 | J153: -16.5 | K153: 382.8 | L153: 494.2 | M153: 432.6 | N153: 35 | O153: 0.0578 | P153: 0.59 | Q153: 12.50189053 | R153: =K_dansDir(L153,K153,E153,F153,J153,'A dater'!$B$8,'A dater'!$A$8) -> 383.0147212 | S153: =Q153-AngCritDbl95(R153,D153,'A dater'!$C$8,Nd) -> 10.89028254 | T153: =IF((A153=""),0,Prob_crois_fish(Q153,R153,'A dater'!$C$8)) -> 0 | U153: -10 | V153: =probCritDbl(R153,D153,'A dater'!$C$8,'A dater'!$D$8,Q153) -> 4.213844575e-48 | W153: 5.236462314 | Y153: 0 | Z153: -10 | AB153: 0 | AC153: 0 | AD153: 0 | AE153: 0
B154: 14.3 | C154: 8.6 | D154: 94.2 | E154: 5.2 | F154: 55.6 | J154: -15.4 | K154: 349.1 | L154: 514.3 | M154: 420.7 | N154: 35 | O154: 0.0534 | P154: 0.5885 | Q154: 12.48276178 | R154: =K_dansDir(L154,K154,E154,F154,J154,'A dater'!$B$8,'A dater'!$A$8) -> 350.0722002 | S154: =Q154-AngCritDbl95(R154,D154,'A dater'!$C$8,Nd) -> 10.79898288 | T154: =IF((A154=""),0,Prob_crois_fish(Q154,R154,'A dater'!$C$8)) -> 0 | U154: -10 | V154: =probCritDbl(R154,D154,'A dater'!$C$8,'A dater'!$D$8,Q154) -> 3.827431085e-45 | W154: 4.880765706 | Y154: 0 | Z154: -10 | AB154: 0 | AC154: 0 | AD154: 0 | AE154: 0
B155: 13.4 | C155: 8.4 | D155: 92.4 | E155: 4.8 | F155: 55.7 | J155: -14.3 | K155: 315.3 | L155: 534.4 | M155: 408.9 | N155: 35 | O155: 0.0489 | P155: 0.587 | Q155: 12.4668082 | R155: =K_dansDir(L155,K155,E155,F155,J155,'A dater'!$B$8,'A dater'!$A$8) -> 317.9241331 | S155: =Q155-AngCritDbl95(R155,D155,'A dater'!$C$8,Nd) -> 10.70200318 | T155: =IF((A155=""),0,Prob_crois_fish(Q155,R155,'A dater'!$C$8)) -> 0 | U155: -10 | V155: =probCritDbl(R155,D155,'A dater'!$C$8,'A dater'!$D$8,Q155) -> 3.649555334e-42 | W155: 4.487017772 | Y155: 0 | Z155: -10 | AB155: 0 | AC155: 0 | AD155: 0 | AE155: 0
B156: 13.5 | C156: 8.3 | D156: 90.9 | E156: 4.7 | F156: 56.1 | J156: -14.1 | K156: 284.3 | L156: 548.5 | M156: 392.8 | N156: 36.8 | O156: 0.0475 | P156: 0.5806 | Q156: 12.11342428 | R156: =K_dansDir(L156,K156,E156,F156,J156,'A dater'!$B$8,'A dater'!$A$8) -> 288.5634791 | S156: =Q156-AngCritDbl95(R156,D156,'A dater'!$C$8,Nd) -> 10.26312207 | T156: =IF((A156=""),0,Prob_crois_fish(Q156,R156,'A dater'!$C$8)) -> 0 | U156: -10 | V156: =probCritDbl(R156,D156,'A dater'!$C$8,'A dater'!$D$8,Q156) -> 6.341772143e-38 | W156: 3.734901566 | Y156: 0 | Z156: -10 | AB156: 0 | AC156: 0 | AD156: 0 | AE156: 0
B157: 14.6 | C157: 8.3 | D157: 89.6 | E157: 5 | F157: 56.8 | J157: -14.9 | K157: 256.1 | L157: 556.6 | M157: 372.3 | N157: 40.5 | O157: 0.0492 | P157: 0.5693 | Q157: 11.40186394 | R157: =K_dansDir(L157,K157,E157,F157,J157,'A dater'!$B$8,'A dater'!$A$8) -> 260.8939223 | S157: =Q157-AngCritDbl95(R157,D157,'A dater'!$C$8,Nd) -> 9.458124228 | T157: =IF((A157=""),0,Prob_crois_fish(Q157,R157,'A dater'!$C$8)) -> 0 | U157: -10 | V157: =probCritDbl(R157,D157,'A dater'!$C$8,'A dater'!$D$8,Q157) -> 1.894613483e-32 | W157: 2.58759861 | Y157: 0 | Z157: -10 | AB157: 0 | AC157: 0 | AD157: 0 | AE157: 0
B158: 15.7 | C158: 8.3 | D158: 88.4 | E158: 5.3 | F158: 57.4 | J158: -15.7 | K158: 227.9 | L158: 564.8 | M158: 351.9 | N158: 44.1 | O158: 0.0508 | P158: 0.5581 | Q158: 10.78515158 | R158: =K_dansDir(L158,K158,E158,F158,J158,'A dater'!$B$8,'A dater'!$A$8) -> 233.0618874 | S158: =Q158-AngCritDbl95(R158,D158,'A dater'!$C$8,Nd) -> 8.731085772 | T158: =IF((A158=""),0,Prob_crois_fish(Q158,R158,'A dater'!$C$8)) -> 0 | U158: -10 | V158: =probCritDbl(R158,D158,'A dater'!$C$8,'A dater'!$D$8,Q158) -> 1.471547607e-27 | W158: 1.456510453 | Y158: 0 | Z158: -10 | AB158: 0 | AC158: 0 | AD158: 0 | AE158: 0
B159: 16.8 | C159: 8.3 | D159: 87.1 | E159: 5.6 | F159: 58.1 | J159: -16.5 | K159: 199.6 | L159: 573 | M159: 331.4 | N159: 47.7 | O159: 0.0524 | P159: 0.5469 | Q159: 10.07888273 | R159: =K_dansDir(L159,K159,E159,F159,J159,'A dater'!$B$8,'A dater'!$A$8) -> 205.5773571 | S159: =Q159-AngCritDbl95(R159,D159,'A dater'!$C$8,Nd) -> 7.894396148 | T159: =IF((A159=""),0,Prob_crois_fish(Q159,R159,'A dater'!$C$8)) -> 0 | U159: -10 | V159: =probCritDbl(R159,D159,'A dater'!$C$8,'A dater'!$D$8,Q159) -> 1.286821593e-22 | W159: 0.1425697786 | Y159: 0 | Z159: -10 | AB159: 0 | AC159: 0 | AD159: 0 | AE159: 0
B160: 17.9 | C160: 8.4 | D160: 85.9 | E160: 5.8 | F160: 58.7 | J160: -17.3 | K160: 171.4 | L160: 581.1 | M160: 311 | N160: 51.4 | O160: 0.0541 | P160: 0.5356 | Q160: 9.48887866 | R160: =K_dansDir(L160,K160,E160,F160,J160,'A dater'!$B$8,'A dater'!$A$8) -> 178.4107823 | S160: =Q160-AngCritDbl95(R160,D160,'A dater'!$C$8,Nd) -> 7.146797263 | T160: =IF((A160=""),0,Prob_crois_fish(Q160,R160,'A dater'!$C$8)) -> 0 | U160: -10 | V160: =probCritDbl(R160,D160,'A dater'!$C$8,'A dater'!$D$8,Q160) -> 2.037684101e-18 | W160: -1.18140375 | Y160: 0 | Z160: -10 | AB160: 0 | AC160: 0 | AD160: 0 | AE160: 0
B161: 19 | C161: 8.4 | D161: 84.6 | E161: 6.1 | F161: 59.4 | J161: -18.1 | K161: 143.2 | L161: 589.3 | M161: 290.5 | N161: 55 | O161: 0.0557 | P161: 0.5244 | Q161: 8.790471407 | R161: =K_dansDir(L161,K161,E161,F161,J161,'A dater'!$B$8,'A dater'!$A$8) -> 151.7921719 | S161: =Q161-AngCritDbl95(R161,D161,'A dater'!$C$8,Nd) -> 6.254290027 | T161: =IF((A161=""),0,Prob_crois_fish(Q161,R161,'A dater'!$C$8)) -> 0 | U161: -10 | V161: =probCritDbl(R161,D161,'A dater'!$C$8,'A dater'!$D$8,Q161) -> 2.734124105e-14 | W161: -2.783266564 | Y161: 0 | Z161: -10 | AB161: 0 | AC161: 0 | AD161: 0 | AE161: 0
B162: 17.9 | C162: 8.4 | D162: 83.4 | E162: 6.7 | F162: 60.5 | J162: -16.6 | K162: 155.6 | L162: 579 | M162: 299 | N162: 52.8 | O162: 0.0582 | P162: 0.5057 | Q162: 7.674459813 | R162: =K_dansDir(L162,K162,E162,F162,J162,'A dater'!$B$8,'A dater'!$A$8) -> 172.7716989 | S162: =Q162-AngCritDbl95(R162,D162,'A dater'!$C$8,Nd) -> 5.293901038 | T162: =IF((A162=""),0,Prob_crois_fish(Q162,R162,'A dater'!$C$8)) -> 0 | U162: -10 | V162: =probCritDbl(R162,D162,'A dater'!$C$8,'A dater'!$D$8,Q162) -> 1.13562238e-12 | W162: -3.173897793 | Y162: 0 | Z162: -10 | AB162: 0 | AC162: 0 | AD162: 0 | AE162: 0
B163: 16.8 | C163: 8.4 | D163: 82.2 | E163: 7.2 | F163: 61.6 | J163: -15.2 | K163: 168 | L163: 568.7 | M163: 307.5 | N163: 50.6 | O163: 0.0607 | P163: 0.487 | Q163: 6.599228545 | R163: =K_dansDir(L163,K163,E163,F163,J163,'A dater'!$B$8,'A dater'!$A$8) -> 198.9702979 | S163: =Q163-AngCritDbl95(R163,D163,'A dater'!$C$8,Nd) -> 4.377015744 | T163: =IF((A163=""),0,Prob_crois_fish(Q163,R163,'A dater'!$C$8)) -> 0 | U163: -10 | V163: =probCritDbl(R163,D163,'A dater'!$C$8,'A dater'!$D$8,Q163) -> 4.773383156e-11 | W163: -3.509934472 | Y163: 0 | Z163: -10 | AB163: 0 | AC163: 0 | AD163: 0 | AE163: 0
B164: 15.7 | C164: 8.4 | D164: 81 | E164: 7.8 | F164: 62.7 | J164: -13.7 | K164: 180.5 | L164: 558.4 | M164: 316 | N164: 48.3 | O164: 0.0632 | P164: 0.4683 | Q164: 5.52579584 | R164: =K_dansDir(L164,K164,E164,F164,J164,'A dater'!$B$8,'A dater'!$A$8) -> 231.9929355 | S164: =Q164-AngCritDbl95(R164,D164,'A dater'!$C$8,Nd) -> 3.4632223 | T164: =IF((A164=""),0,Prob_crois_fish(Q164,R164,'A dater'!$C$8)) -> 0 | U164: -10 | V164: =probCritDbl(R164,D164,'A dater'!$C$8,'A dater'!$D$8,Q164) -> 2.696588862e-09 | W164: -3.836646974 | Y164: 0 | Z164: -10 | AB164: 0 | AC164: 0 | AD164: 0 | AE164: 0
B165: 14.6 | C165: 8.4 | D165: 79.8 | E165: 8.3 | F165: 63.8 | J165: -12.2 | K165: 192.9 | L165: 548.1 | M165: 324.5 | N165: 46.1 | O165: 0.0657 | P165: 0.4496 | Q165: 4.523350673 | R165: =K_dansDir(L165,K165,E165,F165,J165,'A dater'!$B$8,'A dater'!$A$8) -> 278.4560675 | S165: =Q165-AngCritDbl95(R165,D165,'A dater'!$C$8,Nd) -> 2.634844984 | T165: =IF((A165=""),0,Prob_crois_fish(Q165,R165,'A dater'!$C$8)) -> 0 | U165: -10 | V165: =probCritDbl(R165,D165,'A dater'!$C$8,'A dater'!$D$8,Q165) -> 1.056909469e-07 | W165: -4.022749134 | Y165: 0 | Z165: -10 | AB165: 0 | AC165: 0 | AD165: 0 | AE165: 0
B166: 15 | C166: 8.6 | D166: 83.1 | E166: 8.7 | F166: 64.5 | J166: -8.6 | K166: 228.2 | L166: 564.1 | M166: 357.3 | N166: 42.5 | O166: 0.0672 | P166: 0.436 | Q166: 3.899600845 | R166: =K_dansDir(L166,K166,E166,F166,J166,'A dater'!$B$8,'A dater'!$A$8) -> 357.1644759 | S166: =Q166-AngCritDbl95(R166,D166,'A dater'!$C$8,Nd) -> 2.226243162 | T166: =IF((A166=""),0,Prob_crois_fish(Q166,R166,'A dater'!$C$8)) -> 0 | U166: -10 | V166: =probCritDbl(R166,D166,'A dater'!$C$8,'A dater'!$D$8,Q166) -> 2.267811882e-07 | W166: -3.639973154 | Y166: 0 | Z166: -10 | AB166: 0 | AC166: 0 | AD166: 0 | AE166: 0
B167: 17 | C167: 9 | D167: 90.8 | E167: 9 | F167: 65 | J167: -2.7 | K167: 286.4 | L167: 606.5 | M167: 414.5 | N167: 37.5 | O167: 0.0678 | P167: 0.4274 | Q167: 3.476293495 | R167: =K_dansDir(L167,K167,E167,F167,J167,'A dater'!$B$8,'A dater'!$A$8) -> 469.0014316 | S167: =Q167-AngCritDbl95(R167,D167,'A dater'!$C$8,Nd) -> 2.011038704 | T167: =IF((A167=""),0,Prob_crois_fish(Q167,R167,'A dater'!$C$8)) -> 0 | U167: -10 | V167: =probCritDbl(R167,D167,'A dater'!$C$8,'A dater'!$D$8,Q167) -> 1.264353323e-07 | W167: -3.093557209 | Y167: 0 | Z167: -10 | AB167: 0 | AC167: 0 | AD167: 0 | AE167: 0
B168: 19 | C168: 9.5 | D168: 98.6 | E168: 9.3 | F168: 65.5 | J168: 3.2 | K168: 344.5 | L168: 648.8 | M168: 471.7 | N168: 32.5 | O168: 0.0683 | P168: 0.419 | Q168: 3.085056308 | R168: =K_dansDir(L168,K168,E168,F168,J168,'A dater'!$B$8,'A dater'!$A$8) -> 577.6925748 | S168: =Q168-AngCritDbl95(R168,D168,'A dater'!$C$8,Nd) -> 1.761329479 | T168: =IF((A168=""),0,Prob_crois_fish(Q168,R168,'A dater'!$C$8)) -> 0 | U168: -10 | V168: =probCritDbl(R168,D168,'A dater'!$C$8,'A dater'!$D$8,Q168) -> 2.008461139e-07 | W168: -2.827420923 | Y168: 0 | Z168: -10 | AB168: 0 | AC168: 0 | AD168: 0 | AE168: 0
B169: 19.5 | C169: 9.9 | D169: 105 | E169: 9.4 | F169: 65.8 | J169: 7 | K169: 415.2 | L169: 718.4 | M169: 545.9 | N169: 27.5 | O169: 0.0682 | P169: 0.4122 | Q169: 2.90017642 | R169: =K_dansDir(L169,K169,E169,F169,J169,'A dater'!$B$8,'A dater'!$A$8) -> 681.471968 | S169: =Q169-AngCritDbl95(R169,D169,'A dater'!$C$8,Nd) -> 1.678350345 | T169: =IF((A169=""),0,Prob_crois_fish(Q169,R169,'A dater'!$C$8)) -> 0 | U169: -10 | V169: =probCritDbl(R169,D169,'A dater'!$C$8,'A dater'!$D$8,Q169) -> 1.122507375e-07 | W169: -2.538891256 | Y169: 0 | Z169: -10 | AB169: 0 | AC169: 0 | AD169: 0 | AE169: 0
B170: 18.5 | C170: 10.4 | D170: 110.1 | E170: 9.4 | F170: 66.2 | J170: 8.9 | K170: 498.3 | L170: 815.1 | M170: 637.2 | N170: 22.5 | O170: 0.0675 | P170: 0.4073 | Q170: 2.739026791 | R170: =K_dansDir(L170,K170,E170,F170,J170,'A dater'!$B$8,'A dater'!$A$8) -> 803.3915168 | S170: =Q170-AngCritDbl95(R170,D170,'A dater'!$C$8,Nd) -> 1.609847571 | T170: =IF((A170=""),0,Prob_crois_fish(Q170,R170,'A dater'!$C$8)) -> 0 | U170: -10 | V170: =probCritDbl(R170,D170,'A dater'!$C$8,'A dater'!$D$8,Q170) -> 5.580077151e-08 | W170: -2.267281098 | Y170: 0 | Z170: -10 | AB170: 0 | AC170: 0 | AD170: 0 | AE170: 0
B171: 18 | C171: 10.3 | D171: 112.7 | E171: 9.5 | F171: 66.5 | J171: 8.9 | K171: 525.7 | L171: 908.8 | M171: 690.2 | N171: 18.3 | O171: 0.0671 | P171: 0.4021 | Q171: 2.612820248 | R171: =K_dansDir(L171,K171,E171,F171,J171,'A dater'!$B$8,'A dater'!$A$8) -> 905.7703402 | S171: =Q171-AngCritDbl95(R171,D171,'A dater'!$C$8,Nd) -> 1.545870695 | T171: =IF((A171=""),0,Prob_crois_fish(Q171,R171,'A dater'!$C$8)) -> 0 | U171: -10 | V171: =probCritDbl(R171,D171,'A dater'!$C$8,'A dater'!$D$8,Q171) -> 4.058563145e-08 | W171: -2.10065588 | Y171: 0 | Z171: -10 | AB171: 0 | AC171: 0 | AD171: 0 | AE171: 0
B172: 18 | C172: 9.7 | D172: 112.8 | E172: 9.6 | F172: 66.8 | J172: 7 | K172: 497.4 | L172: 999.3 | M172: 705 | N172: 15 | O172: 0.0672 | P172: 0.3967 | Q172: 2.517786785 | R172: =K_dansDir(L172,K172,E172,F172,J172,'A dater'!$B$8,'A dater'!$A$8) -> 999.2628069 | S172: =Q172-AngCritDbl95(R172,D172,'A dater'!$C$8,Nd) -> 1.498103831 | T172: =IF((A172=""),0,Prob_crois_fish(Q172,R172,'A dater'!$C$8)) -> 0 | U172: -10 | V172: =probCritDbl(R172,D172,'A dater'!$C$8,'A dater'!$D$8,Q172) -> 3.108808789e-08 | W172: -1.96961053 | Y172: 0 | Z172: -10 | AB172: 0 | AC172: 0 | AD172: 0 | AE172: 0
B173: 20 | C173: 8.2 | D173: 95.3 | E173: 9.1 | F173: 66.9 | J173: -3.5 | K173: 301.6 | L173: 975.4 | M173: 542.4 | N173: 10 | O173: 0.0634 | P173: 0.3962 | Q173: 2.702049176 | R173: =K_dansDir(L173,K173,E173,F173,J173,'A dater'!$B$8,'A dater'!$A$8) -> 959.6567905 | S173: =Q173-AngCritDbl95(R173,D173,'A dater'!$C$8,Nd) -> 1.654376723 | T173: =IF((A173=""),0,Prob_crois_fish(Q173,R173,'A dater'!$C$8)) -> 0 | U173: -10 | V173: =probCritDbl(R173,D173,'A dater'!$C$8,'A dater'!$D$8,Q173) -> 8.442885601e-09 | W173: -1.886491158 | Y173: 0 | Z173: -10 | AB173: 0 | AC173: 0 | AD173: 0 | AE173: 0
B174: 16.7 | C174: 8.5 | D174: 102.6 | E174: 8.9 | F174: 67 | J174: -2.8 | K174: 319.8 | L174: 935.8 | M174: 546.7 | N174: 13.3 | O174: 0.0616 | P174: 0.3949 | Q174: 2.772686901 | R174: =K_dansDir(L174,K174,E174,F174,J174,'A dater'!$B$8,'A dater'!$A$8) -> 928.9156389 | S174: =Q174-AngCritDbl95(R174,D174,'A dater'!$C$8,Nd) -> 1.713393284 | T174: =IF((A174=""),0,Prob_crois_fish(Q174,R174,'A dater'!$C$8)) -> 0 | U174: -10 | V174: =probCritDbl(R174,D174,'A dater'!$C$8,'A dater'!$D$8,Q174) -> 4.677788574e-09 | W174: -1.886802492 | Y174: 0 | Z174: -10 | AB174: 0 | AC174: 0 | AD174: 0 | AE174: 0
B175: 16.7 | C175: 8.7 | D175: 100 | E175: 8.2 | F175: 67.9 | J175: 4.4 | K175: 384.8 | L175: 1069.9 | M175: 641.7 | N175: 15 | O175: 0.055 | P175: 0.3797 | Q175: 3.121253317 | R175: =K_dansDir(L175,K175,E175,F175,J175,'A dater'!$B$8,'A dater'!$A$8) -> 1007.825739 | S175: =Q175-AngCritDbl95(R175,D175,'A dater'!$C$8,Nd) -> 2.099273482 | T175: =IF((A175=""),0,Prob_crois_fish(Q175,R175,'A dater'!$C$8)) -> 0 | U175: -10 | V175: =probCritDbl(R175,D175,'A dater'!$C$8,'A dater'!$D$8,Q175) -> 9.481714792e-12 | W175: -1.353440232 | Y175: 0 | Z175: -10 | AB175: 0 | AC175: 0 | AD175: 0 | AE175: 0
B176: 20 | C176: 8.7 | D176: 87.5 | E176: 7.1 | F176: 69.7 | J176: 18 | K176: 496.7 | L176: 1377.6 | M176: 827.2 | N176: 15 | O176: 0.0437 | P176: 0.3505 | Q176: 4.24416145 | R176: =K_dansDir(L176,K176,E176,F176,J176,'A dater'!$B$8,'A dater'!$A$8) -> 812.3141715 | S176: =Q176-AngCritDbl95(R176,D176,'A dater'!$C$8,Nd) -> 3.108745183 | T176: =IF((A176=""),0,Prob_crois_fish(Q176,R176,'A dater'!$C$8)) -> 0 | U176: -10 | V176: =probCritDbl(R176,D176,'A dater'!$C$8,'A dater'!$D$8,Q176) -> 3.082250346e-16 | W176: -0.7493520064 | Y176: 0 | Z176: -10 | AB176: 0 | AC176: 0 | AD176: 0 | AE176: 0
B177: 14.7 | C177: 8.7 | D177: 85.6 | E177: 6.2 | F177: 70.4 | J177: 28.7 | K177: 873 | L177: 1525.7 | M177: 1144.3 | N177: 15 | O177: 0.0367 | P177: 0.3394 | Q177: 4.91210939 | R177: =K_dansDir(L177,K177,E177,F177,J177,'A dater'!$B$8,'A dater'!$A$8) -> 966.6497349 | S177: =Q177-AngCritDbl95(R177,D177,'A dater'!$C$8,Nd) -> 3.861480507 | T177: =IF((A177=""),0,Prob_crois_fish(Q177,R177,'A dater'!$C$8)) -> 0 | U177: -10 | V177: =probCritDbl(R177,D177,'A dater'!$C$8,'A dater'!$D$8,Q177) -> 4.715803278e-23 | W177: 0.3333190337 | Y177: 0 | Z177: -10 | AB177: 0 | AC177: 0 | AD177: 0 | AE177: 0
B178: 12.3 | C178: 8.8 | D178: 83.7 | E178: 4.9 | F178: 70.7 | J178: 28.3 | K178: 1072.1 | L178: 1540.5 | M178: 1284.4 | N178: 15 | O178: 0.0286 | P178: 0.3337 | Q178: 5.43777029 | R178: =K_dansDir(L178,K178,E178,F178,J178,'A dater'!$B$8,'A dater'!$A$8) -> 1151.066982 | S178: =Q178-AngCritDbl95(R178,D178,'A dater'!$C$8,Nd) -> 4.464116193 | T178: =IF((A178=""),0,Prob_crois_fish(Q178,R178,'A dater'!$C$8)) -> 0 | U178: -10 | V178: =probCritDbl(R178,D178,'A dater'!$C$8,'A dater'!$D$8,Q178) -> 7.003673144e-30 | W178: 1.240547964 | Y178: 0 | Z178: -10 | AB178: 0 | AC178: 0 | AD178: 0 | AE178: 0
B179: 13 | C179: 9 | D179: 81.7 | E179: 3.3 | F179: 70.8 | J179: 16.8 | K179: 1094.2 | L179: 1422.1 | M179: 1247.4 | N179: 15 | O179: 0.0193 | P179: 0.3336 | Q179: 5.925097283 | R179: =K_dansDir(L179,K179,E179,F179,J179,'A dater'!$B$8,'A dater'!$A$8) -> 1226.977039 | S179: =Q179-AngCritDbl95(R179,D179,'A dater'!$C$8,Nd) -> 4.976564001 | T179: =IF((A179=""),0,Prob_crois_fish(Q179,R179,'A dater'!$C$8)) -> 0 | U179: -10 | V179: =probCritDbl(R179,D179,'A dater'!$C$8,'A dater'!$D$8,Q179) -> 9.401754257e-35 | W179: 1.858334486 | Y179: 0 | Z179: -10 | AB179: 0 | AC179: 0 | AD179: 0 | AE179: 0
B180: 12.3 | C180: 8.6 | D180: 68.4 | E180: 2.3 | F180: 71 | J180: 30.3 | K180: 1136.1 | L180: 1427.6 | M180: 1273.5 | N180: 15 | O180: 0.0134 | P180: 0.3301 | Q180: 6.308416707 | R180: =K_dansDir(L180,K180,E180,F180,J180,'A dater'!$B$8,'A dater'!$A$8) -> 1196.477069 | S180: =Q180-AngCritDbl95(R180,D180,'A dater'!$C$8,Nd) -> 5.335927808 | T180: =IF((A180=""),0,Prob_crois_fish(Q180,R180,'A dater'!$C$8)) -> 0 | U180: -10 | V180: =probCritDbl(R180,D180,'A dater'!$C$8,'A dater'!$D$8,Q180) -> 5.516056074e-35 | W180: 2.177666667 | Y180: 0 | Z180: -10 | AB180: 0 | AC180: 0 | AD180: 0 | AE180: 0
B181: 13 | C181: 9 | D181: 64 | E181: 0.5 | F181: 71.4 | J181: 50.3 | K181: 1101.5 | L181: 1440.9 | M181: 1258.8 | N181: 15 | O181: 0.0034 | P181: 0.3235 | Q181: 7.012231349 | R181: =K_dansDir(L181,K181,E181,F181,J181,'A dater'!$B$8,'A dater'!$A$8) -> 1108.906353 | S181: =Q181-AngCritDbl95(R181,D181,'A dater'!$C$8,Nd) -> 6.002161919 | T181: =IF((A181=""),0,Prob_crois_fish(Q181,R181,'A dater'!$C$8)) -> 0 | U181: -10 | V181: =probCritDbl(R181,D181,'A dater'!$C$8,'A dater'!$D$8,Q181) -> 1.92849093e-37 | W181: 2.715913736 | Y181: 0 | Z181: -10 | AB181: 0 | AC181: 0 | AD181: 0 | AE181: 0
B182: 15 | C182: 10.2 | D182: 68.7 | E182: -2 | F182: 71.9 | J182: 77 | K182: 990.6 | L182: 1462 | M182: 1203.4 | N182: 15 | O182: -0.0107 | P182: 0.314 | Q182: 7.943842972 | R182: =K_dansDir(L182,K182,E182,F182,J182,'A dater'!$B$8,'A dater'!$A$8) -> 1026.90797 | S182: =Q182-AngCritDbl95(R182,D182,'A dater'!$C$8,Nd) -> 6.905726085 | T182: =IF((A182=""),0,Prob_crois_fish(Q182,R182,'A dater'!$C$8)) -> 0 | U182: -10 | V182: =probCritDbl(R182,D182,'A dater'!$C$8,'A dater'!$D$8,Q182) -> 5.72848376e-43 | W182: 3.485268007 | Y182: 0 | Z182: -10 | AB182: 0 | AC182: 0 | AD182: 0 | AE182: 0
B183: 15 | C183: 10.9 | D183: 68.4 | E183: -3 | F183: 72 | J183: 80.9 | K183: 1169.1 | L183: 1799.6 | M183: 1450.5 | N183: 10 | O183: -0.0161 | P183: 0.3126 | Q183: 8.26392981 | R183: =K_dansDir(L183,K183,E183,F183,J183,'A dater'!$B$8,'A dater'!$A$8) -> 1233.534243 | S183: =Q183-AngCritDbl95(R183,D183,'A dater'!$C$8,Nd) -> 7.303929463 | T183: =IF((A183=""),0,Prob_crois_fish(Q183,R183,'A dater'!$C$8)) -> 0 | U183: -10 | V183: =probCritDbl(R183,D183,'A dater'!$C$8,'A dater'!$D$8,Q183) -> 3.939402421e-49 | W183: 4.195726995 | Y183: 0 | Z183: -10 | AB183: 0 | AC183: 0 | AD183: 0 | AE183: 0
B184: 12 | C184: 8.2 | D184: 52.6 | E184: -4.4 | F184: 72.1 | J184: 89.9 | K184: 1240 | L184: 2398 | M184: 1724.4 | N184: 10 | O184: -0.0241 | P184: 0.3107 | Q184: 8.694265354 | R184: =K_dansDir(L184,K184,E184,F184,J184,'A dater'!$B$8,'A dater'!$A$8) -> 1456.341625 | S184: =Q184-AngCritDbl95(R184,D184,'A dater'!$C$8,Nd) -> 7.772489714 | T184: =IF((A184=""),0,Prob_crois_fish(Q184,R184,'A dater'!$C$8)) -> 0 | U184: -10 | V184: =probCritDbl(R184,D184,'A dater'!$C$8,'A dater'!$D$8,Q184) -> 1.827968408e-49 | W184: 4.929292703 | Y184: 0 | Z184: -10 | AB184: 0 | AC184: 0 | AD184: 0 | AE184: 0
B185: 13.5 | C185: 10.1 | D185: 94.2 | E185: -6.8 | F185: 72.3 | J185: 92 | K185: 1636.5 | L185: 2707.3 | M185: 2100.5 | N185: 15 | O185: -0.036 | P185: 0.3057 | Q185: 9.445406503 | R185: =K_dansDir(L185,K185,E185,F185,J185,'A dater'!$B$8,'A dater'!$A$8) -> 1823.234867 | S185: =Q185-AngCritDbl95(R185,D185,'A dater'!$C$8,Nd) -> 8.653579073 | T185: =IF((A185=""),0,Prob_crois_fish(Q185,R185,'A dater'!$C$8)) -> 0 | U185: -10 | V185: =probCritDbl(R185,D185,'A dater'!$C$8,'A dater'!$D$8,Q185) -> 6.435659655e-78 | W185: 6.116340474 | Y185: 0 | Z185: -10 | AB185: 0 | AC185: 0 | AD185: 0 | AE185: 0
B186: 15 | C186: 12 | D186: 135.8 | E186: -9.1 | F186: 72.5 | J186: 94.1 | K186: 2033.1 | L186: 3016.7 | M186: 2476.5 | N186: 20 | O186: -0.048 | P186: 0.3008 | Q186: 10.16584595 | R186: =K_dansDir(L186,K186,E186,F186,J186,'A dater'!$B$8,'A dater'!$A$8) -> 2198.385523 | S186: =Q186-AngCritDbl95(R186,D186,'A dater'!$C$8,Nd) -> 9.456389228 | T186: =IF((A186=""),0,Prob_crois_fish(Q186,R186,'A dater'!$C$8)) -> 0 | U186: -10 | V186: =probCritDbl(R186,D186,'A dater'!$C$8,'A dater'!$D$8,Q186) -> 5.982306005e-109 | W186: 7.146598628 | Y186: 0 | Z186: -10 | AB186: 0 | AC186: 0 | AD186: 0 | AE186: 0
B187: 14.3 | C187: 12 | D187: 145.9 | E187: -10.4 | F187: 72.6 | J187: 147.8 | K187: 3453.4 | L187: 3852.3 | M187: 3636.5 | N187: 16.7 | O187: -0.054 | P187: 0.2967 | Q187: 10.56676459 | R187: =K_dansDir(L187,K187,E187,F187,J187,'A dater'!$B$8,'A dater'!$A$8) -> 3830.461591 | S187: =Q187-AngCritDbl95(R187,D187,'A dater'!$C$8,Nd) -> 10.00663697 | T187: =IF((A187=""),0,Prob_crois_fish(Q187,R187,'A dater'!$C$8)) -> 0 | U187: -10 | V187: =probCritDbl(R187,D187,'A dater'!$C$8,'A dater'!$D$8,Q187) -> 4.414986738e-145 | W187: 8.281036436 | Y187: 0 | Z187: -10 | AB187: 0 | AC187: 0 | AD187: 0 | AE187: 0
B188: 12 | C188: 10.1 | D188: 125.9 | E188: -11.4 | F188: 72.7 | J188: 180.5 | K188: 4197.3 | L188: 4976.6 | M188: 4560.1 | N188: 12.5 | O188: -0.0595 | P188: 0.2944 | Q188: =diff_ang((F188),(E188),Id,Dd,(-1)) -> 10.88128278 | R188: =K_dansDir(L188,K188,E188,F188,J188,'A dater'!$B$8,'A dater'!$A$8) -> 4900.383859 | S188: =Q188-AngCritDbl95(R188,D188,'A dater'!$C$8,Nd) -> 10.36113369 | T188: =IF((A188=""),0,Prob_crois_fish(Q188,R188,'A dater'!$C$8)) -> 0 | U188: =IF(S188<0,0.1,-10) -> -10 | V188: =probCritDbl(R188,D188,'A dater'!$C$8,'A dater'!$D$8,Q188) -> 2.418053194e-146 | W188: =Q188-AngCrit95_isole( R188,D188) -> 8.857684548 | Y188: =T188/$Y$5 -> 0 | Z188: -10 | AB188: 0 | AC188: 0 | AD188: 0 | AE188: 0
B189: 11 | C189: 8.9 | D189: 115 | E189: -13.1 | F189: 72.5 | J189: 171.3 | K189: 4075.6 | L189: 5973.6 | M189: 4924.9 | N189: 11.7 | O189: -0.0688 | P189: 0.2956 | Q189: 11.31449635 | R189: =K_dansDir(L189,K189,E189,F189,J189,'A dater'!$B$8,'A dater'!$A$8) -> 5954.846063 | S189: =Q189-AngCritDbl95(R189,D189,'A dater'!$C$8,Nd) -> 10.82081249 | T189: =IF((A189=""),0,Prob_crois_fish(Q189,R189,'A dater'!$C$8)) -> 0 | U189: -10 | V189: =probCritDbl(R189,D189,'A dater'!$C$8,'A dater'!$D$8,Q189) -> 2.936991054e-149 | W189: 9.477060267 | Y189: 0 | Z189: -10 | AB189: 0 | AC189: 0 | AD189: 0 | AE189: 0
B190: 13 | C190: 10.6 | D190: 143.1 | E190: -15.5 | F190: 72.2 | J190: 141.4 | K190: 3764.7 | L190: 6554.7 | M190: 4967.6 | N190: 15 | O190: -0.0825 | P190: 0.2983 | Q190: 11.96261545 | R190: =K_dansDir(L190,K190,E190,F190,J190,'A dater'!$B$8,'A dater'!$A$8) -> 5913.292658 | S190: =Q190-AngCritDbl95(R190,D190,'A dater'!$C$8,Nd) -> 11.48545657 | T190: =IF((A190=""),0,Prob_crois_fish(Q190,R190,'A dater'!$C$8)) -> 0 | U190: -10 | V190: =probCritDbl(R190,D190,'A dater'!$C$8,'A dater'!$D$8,Q190) -> 1.504400916e-179 | W190: 10.12269738 | Y190: 0 | Z190: -10 | AB190: 0 | AC190: 0 | AD190: 0 | AE190: 0
B191: 10 | C191: 8.1 | D191: 101.2 | E191: -16.7 | F191: 71.9 | J191: 143.3 | K191: 6006.6 | L191: 7288.2 | M191: 6616.4 | N191: 10 | O191: -0.0905 | P191: 0.3018 | Q191: 12.28370013 | R191: =K_dansDir(L191,K191,E191,F191,J191,'A dater'!$B$8,'A dater'!$A$8) -> 6976.862173 | S191: =Q191-AngCritDbl95(R191,D191,'A dater'!$C$8,Nd) -> 11.80182921 | T191: =IF((A191=""),0,Prob_crois_fish(Q191,R191,'A dater'!$C$8)) -> 0 | U191: -10 | V191: =probCritDbl(R191,D191,'A dater'!$C$8,'A dater'!$D$8,Q191) -> 1.194127981e-149 | W191: 10.58363855 | Y191: 0 | Z191: -10 | AB191: 0 | AC191: 0 | AD191: 0 | AE191: 0
B192: 11.3 | C192: 9.6 | D192: 130.8 | E192: -17.6 | F192: 71.6 | J192: 146.6 | K192: 4687.2 | L192: 6908.6 | M192: 5673.4 | N192: 13.3 | O192: -0.0968 | P192: 0.305 | Q192: 12.53267846 | R192: =K_dansDir(L192,K192,E192,F192,J192,'A dater'!$B$8,'A dater'!$A$8) -> 6400.402182 | S192: =Q192-AngCritDbl95(R192,D192,'A dater'!$C$8,Nd) -> 12.06148066 | T192: =IF((A192=""),0,Prob_crois_fish(Q192,R192,'A dater'!$C$8)) -> 0 | U192: -10 | V192: =probCritDbl(R192,D192,'A dater'!$C$8,'A dater'!$D$8,Q192) -> 6.596324909e-178 | W192: 10.76270192 | Y192: 0 | Z192: -10 | AB192: 0 | AC192: 0 | AD192: 0 | AE192: 0
B193: 12 | C193: 10.2 | D193: 153 | E193: -18.7 | F193: 71.1 | J193: 148.4 | K193: 3759.5 | L193: 6332.4 | M193: 4878.9 | N193: 16.2 | O193: -0.1046 | P193: 0.3102 | Q193: 12.85647359 | R193: =K_dansDir(L193,K193,E193,F193,J193,'A dater'!$B$8,'A dater'!$A$8) -> 5684.536231 | S193: =Q193-AngCritDbl95(R193,D193,'A dater'!$C$8,Nd) -> 12.37729254 | T193: =IF((A193=""),0,Prob_crois_fish(Q193,R193,'A dater'!$C$8)) -> 0 | U193: -10 | V193: =probCritDbl(R193,D193,'A dater'!$C$8,'A dater'!$D$8,Q193) -> 1.150002733e-195 | W193: 10.98096414 | Y193: 0 | Z193: -10 | AB193: 0 | AC193: 0 | AD193: 0 | AE193: 0
B194: 12 | C194: 9.9 | D194: 167.8 | E194: -19.7 | F194: 70.6 | J194: 148.6 | K194: 3223.4 | L194: 5559.7 | M194: 4233.1 | N194: 18.8 | O194: -0.114 | P194: 0.3174 | Q194: 13.18519921 | R194: =K_dansDir(L194,K194,E194,F194,J194,'A dater'!$B$8,'A dater'!$A$8) -> 4865.775728 | S194: =Q194-AngCritDbl95(R194,D194,'A dater'!$C$8,Nd) -> 12.68326954 | T194: =IF((A194=""),0,Prob_crois_fish(Q194,R194,'A dater'!$C$8)) -> 0 | U194: -10 | V194: =probCritDbl(R194,D194,'A dater'!$C$8,'A dater'!$D$8,Q194) -> 4.904433936e-203 | W194: 11.15948061 | Y194: 0 | Z194: -10 | AB194: 0 | AC194: 0 | AD194: 0 | AE194: 0
B195: 11.8 | C195: 9.6 | D195: 173.9 | E195: -20.6 | F195: 70 | J195: 150.8 | K195: 3080.3 | L195: 5114.6 | M195: 3965.3 | N195: 20 | O195: -0.1223 | P195: 0.3247 | Q195: 13.52242617 | R195: =K_dansDir(L195,K195,E195,F195,J195,'A dater'!$B$8,'A dater'!$A$8) -> 4474.454572 | S195: =Q195-AngCritDbl95(R195,D195,'A dater'!$C$8,Nd) -> 13.00581877 | T195: =IF((A195=""),0,Prob_crois_fish(Q195,R195,'A dater'!$C$8)) -> 0 | U195: -10 | V195: =probCritDbl(R195,D195,'A dater'!$C$8,'A dater'!$D$8,Q195) -> 1.362451463e-206 | W195: 11.41052808 | Y195: 0 | Z195: -10 | AB195: 0 | AC195: 0 | AD195: 0 | AE195: 0
B196: 11.2 | C196: 9.3 | D196: 171.4 | E196: -21.4 | F196: 69.5 | J196: 155.2 | K196: 3330.2 | L196: 4997.3 | M196: 4075.6 | N196: 20 | O196: -0.1298 | P196: 0.3321 | Q196: 13.85220186 | R196: =K_dansDir(L196,K196,E196,F196,J196,'A dater'!$B$8,'A dater'!$A$8) -> 4518.927781 | S196: =Q196-AngCritDbl95(R196,D196,'A dater'!$C$8,Nd) -> 13.33679719 | T196: =IF((A196=""),0,Prob_crois_fish(Q196,R196,'A dater'!$C$8)) -> 0 | U196: -10 | V196: =probCritDbl(R196,D196,'A dater'!$C$8,'A dater'!$D$8,Q196) -> 6.547481499e-209 | W196: 11.7505012 | Y196: 0 | Z196: -10 | AB196: 0 | AC196: 0 | AD196: 0 | AE196: 0
B197: 11.2 | C197: 9.3 | D197: 171.5 | E197: -21.7 | F197: 68.9 | J197: 162.5 | K197: 3279.7 | L197: 4677.4 | M197: 3916.7 | N197: 20 | O197: -0.135 | P197: 0.3399 | Q197: 14.05021974 | R197: =K_dansDir(L197,K197,E197,F197,J197,'A dater'!$B$8,'A dater'!$A$8) -> 4375.581741 | S197: =Q197-AngCritDbl95(R197,D197,'A dater'!$C$8,Nd) -> 13.52821751 | T197: =IF((A197=""),0,Prob_crois_fish(Q197,R197,'A dater'!$C$8)) -> 0 | U197: -10 | V197: =probCritDbl(R197,D197,'A dater'!$C$8,'A dater'!$D$8,Q197) -> 3.414731028e-209 | W197: 11.91437534 | Y197: 0 | Z197: -10 | AB197: 0 | AC197: 0 | AD197: 0 | AE197: 0
B198: 11.8 | C198: 9.8 | D198: 174.1 | E198: -21.6 | F198: 68.4 | J198: 173 | K198: 2929 | L198: 4155.1 | M198: 3488.6 | N198: 20 | O198: -0.138 | P198: 0.3481 | Q198: 14.11107554 | R198: =K_dansDir(L198,K198,E198,F198,J198,'A dater'!$B$8,'A dater'!$A$8) -> 4024.067761 | S198: =Q198-AngCritDbl95(R198,D198,'A dater'!$C$8,Nd) -> 13.57205162 | T198: =IF((A198=""),0,Prob_crois_fish(Q198,R198,'A dater'!$C$8)) -> 0 | U198: -10 | V198: =probCritDbl(R198,D198,'A dater'!$C$8,'A dater'!$D$8,Q198) -> 1.028224464e-206 | W198: 11.88413027 | Y198: 0 | Z198: -10 | AB198: 0 | AC198: 0 | AD198: 0 | AE198: 0
B199: 12.2 | C199: 9.9 | D199: 174.6 | E199: -21.4 | F199: 67.9 | J199: 184.5 | K199: 2591.7 | L199: 3916.6 | M199: 3180.1 | N199: 20 | O199: -0.1395 | P199: 0.3566 | Q199: 14.15093523 | R199: =K_dansDir(L199,K199,E199,F199,J199,'A dater'!$B$8,'A dater'!$A$8) -> 3881.277271 | S199: =Q199-AngCritDbl95(R199,D199,'A dater'!$C$8,Nd) -> 13.60407763 | T199: =IF((A199=""),0,Prob_crois_fish(Q199,R199,'A dater'!$C$8)) -> 0 | U199: -10 | V199: =probCritDbl(R199,D199,'A dater'!$C$8,'A dater'!$D$8,Q199) -> 2.907826746e-205 | W199: 11.88343736 | Y199: 0 | Z199: =IF(Y199>$Z$5,0.05,-10) -> -10 | AB199: =IF((A199=""),0,ProbCrit_Isol(R199,C199,Q199)) -> 0 | AC199: =AB199/$AC$5 -> 0 | AD199: =IF((A199=""),0,V199) -> 0 | AE199: =AD199/$AE$5 -> 0
B200: 12.8 | C200: 9.7 | D200: 172.9 | E200: -20.9 | F200: 67.4 | J200: 197.2 | K200: 2267.9 | L200: 3962.1 | M200: 2991.3 | N200: 20 | O200: -0.1394 | P200: 0.3655 | Q200: =diff_ang((F200),(E200),Id,Dd,(-1)) -> 14.0941106 | R200: =K_dansDir(L200,K200,E200,F200,J200,'A dater'!$B$8,'A dater'!$A$8) -> 3960.693895 | S200: =Q200-AngCritDbl95(R200,D200,'A dater'!$C$8,Nd) -> 13.55122669 | T200: =IF((A200=""),0,Prob_crois_fish(Q200,R200,'A dater'!$C$8)) -> 0 | U200: =IF(S200<0,0.1,-10) -> -10 | V200: =probCritDbl(R200,D200,'A dater'!$C$8,'A dater'!$D$8,Q200) -> 1.21031961e-204 | W200: =Q200-AngCrit95_isole( R200,D200) -> 11.8493049 | Y200: 0 | Z200: =IF(Y200>$Z$5,0.05,-10) -> -10 | AB200: =IF((A200=""),0,ProbCrit_Isol(R200,C200,Q200)) -> 0 | AC200: =AB200/$AC$5 -> 0 | AD200: =IF((A200=""),0,V200) -> 0 | AE200: =AD200/$AE$5 -> 0
B201: 12.5 | C201: 9.3 | D201: 169.8 | E201: -20.2 | F201: 66.9 | J201: 208.2 | K201: 2119.5 | L201: 4511 | M201: 3079.4 | N201: 20 | O201: -0.1377 | P201: 0.3757 | Q201: 13.97390291 | R201: =K_dansDir(L201,K201,E201,F201,J201,'A dater'!$B$8,'A dater'!$A$8) -> 4422.827104 | S201: =Q201-AngCritDbl95(R201,D201,'A dater'!$C$8,Nd) -> 13.45355787 | T201: =IF((A201=""),0,Prob_crois_fish(Q201,R201,'A dater'!$C$8)) -> 0 | U201: -10 | V201: =probCritDbl(R201,D201,'A dater'!$C$8,'A dater'!$D$8,Q201) -> 1.122400051e-207 | W201: 11.84934225 | Y201: 0 | Z201: -10 | AB201: 0 | AC201: 0 | AD201: 0 | AE201: 0
... 49 more rows

Sheet oval_FR
A1: 0.032 | B1: 0.3544 | C1: 0.0312 | D1: 0.357
A2: 0.0292 | B2: 0.3541 | C2: 0.0296 | D2: 0.357
A3: 0.0263 | B3: 0.3548 | C3: 0.0278 | D3: 0.3578
A4: 0.0232 | B4: 0.3563 | C4: 0.0258 | D4: 0.3594
A5: 0.0201 | B5: 0.3586 | C5: 0.0237 | D5: 0.3618
A6: 0.0172 | B6: 0.3617 | C6: 0.0216 | D6: 0.3648
A7: 0.0144 | B7: 0.3655 | C7: 0.0196 | D7: 0.3684
A8: 0.0118 | B8: 0.3698 | C8: 0.0177 | D8: 0.3724
A9: 0.0096 | B9: 0.3746 | C9: 0.0159 | D9: 0.3769
A10: 0.0079 | B10: 0.3797 | C10: 0.0144 | D10: 0.3815
A11: 0.0065 | B11: 0.3848 | C11: 0.0131 | D11: 0.3862
A12: 0.0057 | B12: 0.39 | C12: 0.0121 | D12: 0.3908
A13: 0.0054 | B13: 0.3949 | C13: 0.0115 | D13: 0.3952
A14: 0.0057 | B14: 0.3995 | C14: 0.0112 | D14: 0.3993
A15: 0.0065 | B15: 0.4037 | C15: 0.0113 | D15: 0.4029
A16: 0.0078 | B16: 0.4072 | C16: 0.0117 | D16: 0.4059
A17: 0.0095 | B17: 0.4101 | C17: 0.0125 | D17: 0.4083
A18: 0.0117 | B18: 0.4121 | C18: 0.0136 | D18: 0.4099
A19: 0.0143 | B19: 0.4133 | C19: 0.015 | D19: 0.4107
A20: 0.0171 | B20: 0.4136 | C20: 0.0167 | D20: 0.4107
A21: 0.02 | B21: 0.413 | C21: 0.0185 | D21: 0.4099
A22: 0.0231 | B22: 0.4115 | C22: 0.0205 | D22: 0.4083
A23: 0.0262 | B23: 0.4091 | C23: 0.0226 | D23: 0.406
A24: 0.0292 | B24: 0.406 | C24: 0.0247 | D24: 0.403
A25: 0.032 | B25: 0.4023 | C25: 0.0267 | D25: 0.3994
A26: 0.0345 | B26: 0.3979 | C26: 0.0286 | D26: 0.3954
A27: 0.0367 | B27: 0.3932 | C27: 0.0304 | D27: 0.3909
A28: 0.0385 | B28: 0.3881 | C28: 0.0319 | D28: 0.3863
A29: 0.0398 | B29: 0.3829 | C29: 0.0332 | D29: 0.3816
A30: 0.0406 | B30: 0.3778 | C30: 0.0342 | D30: 0.377
A31: 0.0409 | B31: 0.3728 | C31: 0.0348 | D31: 0.3726
A32: 0.0406 | B32: 0.3682 | C32: 0.0351 | D32: 0.3685
A33: 0.0398 | B33: 0.364 | C33: 0.035 | D33: 0.3649
A34: 0.0385 | B34: 0.3605 | C34: 0.0345 | D34: 0.3618
A35: 0.0367 | B35: 0.3576 | C35: 0.0337 | D35: 0.3595
A36: 0.0345 | B36: 0.3556 | C36: 0.0326 | D36: 0.3579
A37: 0.032 | B37: 0.3544 | C37: 0.0312 | D37: 0.357
A39: 0.031 | B39: 0.3356 | C39: 0.0306 | D39: 0.3402
A40: 0.0279 | B40: 0.3357 | C40: 0.0286 | D40: 0.3403
A41: 0.0247 | B41: 0.3365 | C41: 0.0267 | D41: 0.341
A42: 0.0217 | B42: 0.338 | C42: 0.0249 | D42: 0.3422
A43: 0.0189 | B43: 0.3401 | C43: 0.0231 | D43: 0.344
A44: 0.0164 | B44: 0.3428 | C44: 0.0215 | D44: 0.3462
A45: 0.0143 | B45: 0.346 | C45: 0.0201 | D45: 0.3488
A46: 0.0125 | B46: 0.3495 | C46: 0.019 | D46: 0.3517
A47: 0.0113 | B47: 0.3534 | C47: 0.0182 | D47: 0.3549
A48: 0.0106 | B48: 0.3575 | C48: 0.0177 | D48: 0.3582
A49: 0.0104 | B49: 0.3616 | C49: 0.0175 | D49: 0.3615
A50: 0.0108 | B50: 0.3656 | C50: 0.0177 | D50: 0.3647
A51: 0.0118 | B51: 0.3695 | C51: 0.0182 | D51: 0.3678
A52: 0.0132 | B52: 0.373 | C52: 0.019 | D52: 0.3706
A53: 0.0151 | B53: 0.3761 | C53: 0.0201 | D53: 0.3731
A54: 0.0175 | B54: 0.3787 | C54: 0.0214 | D54: 0.3751
A55: 0.0201 | B55: 0.3807 | C55: 0.023 | D55: 0.3767
A56: 0.0231 | B56: 0.382 | C56: 0.0248 | D56: 0.3777
A57: 0.0262 | B57: 0.3827 | C57: 0.0266 | D57: 0.3782
A58: 0.0293 | B58: 0.3826 | C58: 0.0286 | D58: 0.3781
A59: 0.0325 | B59: 0.3818 | C59: 0.0305 | D59: 0.3774
A60: 0.0355 | B60: 0.3804 | C60: 0.0324 | D60: 0.3761
A61: 0.0383 | B61: 0.3782 | C61: 0.0341 | D61: 0.3744
A62: 0.0409 | B62: 0.3755 | C62: 0.0357 | D62: 0.3722
A63: 0.043 | B63: 0.3724 | C63: 0.0371 | D63: 0.3695
A64: 0.0447 | B64: 0.3688 | C64: 0.0382 | D64: 0.3666
A65: 0.0459 | B65: 0.3649 | C65: 0.039 | D65: 0.3635
A66: 0.0466 | B66: 0.3608 | C66: 0.0395 | D66: 0.3602
A67: 0.0468 | B67: 0.3567 | C67: 0.0397 | D67: 0.3569
A68: 0.0464 | B68: 0.3527 | C68: 0.0395 | D68: 0.3536
A69: 0.0454 | B69: 0.3488 | C69: 0.039 | D69: 0.3505
A70: 0.044 | B70: 0.3453 | C70: 0.0382 | D70: 0.3477
A71: 0.042 | B71: 0.3422 | C71: 0.0371 | D71: 0.3453
A72: 0.0397 | B72: 0.3396 | C72: 0.0358 | D72: 0.3432
A73: 0.037 | B73: 0.3376 | C73: 0.0342 | D73: 0.3417
A74: 0.0341 | B74: 0.3363 | C74: 0.0324 | D74: 0.3406
A75: 0.031 | B75: 0.3356 | C75: 0.0306 | D75: 0.3402
A77: 0.0379 | B77: 0.3694 | C77: 0.0344 | D77: 0.3641
A78: 0.0405 | B78: 0.3675 | C78: 0.036 | D78: 0.3629
A79: 0.0426 | B79: 0.365 | C79: 0.0373 | D79: 0.3614
A80: 0.0443 | B80: 0.3623 | C80: 0.0382 | D80: 0.3596
A81: 0.0455 | B81: 0.3592 | C81: 0.0388 | D81: 0.3576
A82: 0.0461 | B82: 0.3559 | C82: 0.0391 | D82: 0.3555
A83: 0.0461 | B83: 0.3525 | C83: 0.039 | D83: 0.3533
A84: 0.0456 | B84: 0.3492 | C84: 0.0385 | D84: 0.351
A85: 0.0445 | B85: 0.3459 | C85: 0.0377 | D85: 0.3488
A86: 0.0428 | B86: 0.3429 | C86: 0.0365 | D86: 0.3467
A87: 0.0407 | B87: 0.3401 | C87: 0.0351 | D87: 0.3448
A88: 0.0381 | B88: 0.3377 | C88: 0.0334 | D88: 0.3432
A89: 0.0352 | B89: 0.3358 | C89: 0.0315 | D89: 0.3418
A90: 0.0321 | B90: 0.3344 | C90: 0.0295 | D90: 0.3407
A91: 0.0288 | B91: 0.3335 | C91: 0.0274 | D91: 0.3401
A92: 0.0254 | B92: 0.3333 | C92: 0.0253 | D92: 0.3398
A93: 0.0221 | B93: 0.3336 | C93: 0.0232 | D93: 0.3398
A94: 0.0189 | B94: 0.3344 | C94: 0.0212 | D94: 0.3403
A95: 0.016 | B95: 0.3359 | C95: 0.0194 | D95: 0.3412
A96: 0.0134 | B96: 0.3378 | C96: 0.0179 | D96: 0.3424
A97: 0.0112 | B97: 0.3402 | C97: 0.0166 | D97: 0.3439
A98: 0.0095 | B98: 0.343 | C98: 0.0156 | D98: 0.3457
A99: 0.0084 | B99: 0.3461 | C99: 0.015 | D99: 0.3477
A100: 0.0077 | B100: 0.3493 | C100: 0.0147 | D100: 0.3498
A101: 0.0077 | B101: 0.3527 | C101: 0.0149 | D101: 0.352
A102: 0.0083 | B102: 0.3561 | C102: 0.0153 | D102: 0.3543
A103: 0.0094 | B103: 0.3593 | C103: 0.0161 | D103: 0.3565
A104: 0.011 | B104: 0.3624 | C104: 0.0173 | D104: 0.3586
A105: 0.0132 | B105: 0.3652 | C105: 0.0187 | D105: 0.3605
A106: 0.0157 | B106: 0.3676 | C106: 0.0204 | D106: 0.3621
A107: 0.0186 | B107: 0.3695 | C107: 0.0223 | D107: 0.3635
A108: 0.0218 | B108: 0.3709 | C108: 0.0244 | D108: 0.3646
A109: 0.0251 | B109: 0.3718 | C109: 0.0265 | D109: 0.3653
A110: 0.0284 | B110: 0.3721 | C110: 0.0286 | D110: 0.3656
A111: 0.0318 | B111: 0.3717 | C111: 0.0307 | D111: 0.3655
A112: 0.0349 | B112: 0.3709 | C112: 0.0326 | D112: 0.365
A113: 0.0379 | B113: 0.3694 | C113: 0.0344 | D113: 0.3641
A115: 0.0391 | B115: 0.35 | C115: 0.034 | D115: 0.3503
A116: 0.0386 | B116: 0.3472 | C116: 0.0336 | D116: 0.3486
A117: 0.0375 | B117: 0.3445 | C117: 0.0329 | D117: 0.347
A118: 0.0359 | B118: 0.342 | C118: 0.0316 | D118: 0.3455
A119: 0.0337 | B119: 0.3398 | C119: 0.03 | D119: 0.3442
A120: 0.0311 | B120: 0.3379 | C120: 0.0281 | D120: 0.343
A121: 0.0281 | B121: 0.3364 | C121: 0.0258 | D121: 0.3422
A122: 0.0248 | B122: 0.3353 | C122: 0.0234 | D122: 0.3416
A123: 0.0213 | B123: 0.3348 | C123: 0.0208 | D123: 0.3413
A124: 0.0178 | B124: 0.3347 | C124: 0.0181 | D124: 0.3412
A125: 0.0142 | B125: 0.3352 | C125: 0.0155 | D125: 0.3415
A126: 0.0108 | B126: 0.3361 | C126: 0.0129 | D126: 0.3421
A127: 0.0077 | B127: 0.3374 | C127: 0.0105 | D127: 0.343
A128: 0.0049 | B128: 0.3392 | C128: 0.0084 | D128: 0.3441
A129: 0.0024 | B129: 0.3414 | C129: 0.0065 | D129: 0.3454
A130: 0.0005 | B130: 0.3438 | C130: 0.0051 | D130: 0.3469
A131: -0.0009 | B131: 0.3465 | C131: 0.004 | D131: 0.3485
A132: -0.0016 | B132: 0.3493 | C132: 0.0034 | D132: 0.3502
A133: -0.0018 | B133: 0.3521 | C133: 0.0033 | D133: 0.3519
A134: -0.0014 | B134: 0.355 | C134: 0.0036 | D134: 0.3536
A135: -0.0003 | B135: 0.3577 | C135: 0.0044 | D135: 0.3553
A136: 0.0013 | B136: 0.3602 | C136: 0.0056 | D136: 0.3568
A137: 0.0035 | B137: 0.3625 | C137: 0.0072 | D137: 0.3581
A138: 0.0061 | B138: 0.3644 | C138: 0.0091 | D138: 0.3592
A139: 0.0091 | B139: 0.3659 | C139: 0.0114 | D139: 0.3601
A140: 0.0124 | B140: 0.3669 | C140: 0.0139 | D140: 0.3607
A141: 0.0159 | B141: 0.3675 | C141: 0.0165 | D141: 0.361
A142: 0.0195 | B142: 0.3676 | C142: 0.0191 | D142: 0.361
A143: 0.023 | B143: 0.3671 | C143: 0.0218 | D143: 0.3608
A144: 0.0264 | B144: 0.3662 | C144: 0.0244 | D144: 0.3602
A145: 0.0296 | B145: 0.3648 | C145: 0.0267 | D145: 0.3593
A146: 0.0324 | B146: 0.363 | C146: 0.0289 | D146: 0.3582
A147: 0.0348 | B147: 0.3609 | C147: 0.0307 | D147: 0.3569
A148: 0.0368 | B148: 0.3584 | C148: 0.0322 | D148: 0.3554
A149: 0.0381 | B149: 0.3557 | C149: 0.0332 | D149: 0.3538
A150: 0.0389 | B150: 0.3529 | C150: 0.0338 | D150: 0.3521
A151: 0.0391 | B151: 0.35 | C151: 0.034 | D151: 0.3503
A153: 0.0309 | B153: 0.3471 | C153: 0.0266 | D153: 0.348
A154: 0.0301 | B154: 0.3446 | C154: 0.0261 | D154: 0.3465
A155: 0.0287 | B155: 0.3423 | C155: 0.0251 | D155: 0.3452
A156: 0.0267 | B156: 0.3403 | C156: 0.0236 | D156: 0.3441
A157: 0.0243 | B157: 0.3386 | C157: 0.0218 | D157: 0.3432
A158: 0.0214 | B158: 0.3373 | C158: 0.0197 | D158: 0.3425
A159: 0.0183 | B159: 0.3364 | C159: 0.0173 | D159: 0.3421
A160: 0.0149 | B160: 0.3359 | C160: 0.0147 | D160: 0.3419
A161: 0.0115 | B161: 0.3359 | C161: 0.012 | D161: 0.3421
A162: 0.008 | B162: 0.3364 | C162: 0.0093 | D162: 0.3425
A163: 0.0046 | B163: 0.3373 | C163: 0.0066 | D163: 0.3432
A164: 0.0014 | B164: 0.3386 | C164: 0.0041 | D164: 0.3441
A165: -0.0015 | B165: 0.3403 | C165: 0.0017 | D165: 0.3452
A166: -0.004 | B166: 0.3423 | C166: -0.0003 | D166: 0.3465
A167: -0.0061 | B167: 0.3446 | C167: -0.002 | D167: 0.3479
A168: -0.0077 | B168: 0.3471 | C168: -0.0033 | D168: 0.3495
A169: -0.0086 | B169: 0.3497 | C169: -0.0042 | D169: 0.3511
A170: -0.009 | B170: 0.3524 | C170: -0.0046 | D170: 0.3527
A171: -0.0088 | B171: 0.355 | C171: -0.0045 | D171: 0.3542
A172: -0.0079 | B172: 0.3575 | C172: -0.0039 | D172: 0.3557
A173: -0.0065 | B173: 0.3598 | C173: -0.0029 | D173: 0.357
A174: -0.0046 | B174: 0.3619 | C174: -0.0015 | D174: 0.3581
A175: -0.0021 | B175: 0.3636 | C175: 0.0003 | D175: 0.359
A176: 0.0007 | B176: 0.3649 | C176: 0.0025 | D176: 0.3597
A177: 0.0038 | B177: 0.3659 | C177: 0.0049 | D177: 0.3601
A178: 0.0072 | B178: 0.3663 | C178: 0.0075 | D178: 0.3603
A179: 0.0107 | B179: 0.3663 | C179: 0.0102 | D179: 0.3602
A180: 0.0142 | B180: 0.3659 | C180: 0.0129 | D180: 0.3598
A181: 0.0176 | B181: 0.365 | C181: 0.0156 | D181: 0.3591
A182: 0.0208 | B182: 0.3636 | C182: 0.0181 | D182: 0.3582
A183: 0.0237 | B183: 0.3619 | C183: 0.0204 | D183: 0.357
A184: 0.0262 | B184: 0.3599 | C184: 0.0225 | D184: 0.3557
A185: 0.0283 | B185: 0.3575 | C185: 0.0242 | D185: 0.3543
A186: 0.0298 | B186: 0.355 | C186: 0.0254 | D186: 0.3527
A187: 0.0308 | B187: 0.3524 | C187: 0.0263 | D187: 0.3511
A188: 0.0312 | B188: 0.3497 | C188: 0.0267 | D188: 0.3495
A189: 0.0309 | B189: 0.3471 | C189: 0.0266 | D189: 0.348
A191: 0.027 | B191: 0.3453 | C191: 0.0227 | D191: 0.3464
A192: 0.0259 | B192: 0.3428 | C192: 0.022 | D192: 0.345
A193: 0.0243 | B193: 0.3405 | C193: 0.0209 | D193: 0.3437
A194: 0.0222 | B194: 0.3386 | C194: 0.0194 | D194: 0.3427
A195: 0.0196 | B195: 0.3371 | C195: 0.0175 | D195: 0.3419
A196: 0.0167 | B196: 0.3359 | C196: 0.0152 | D196: 0.3414
A197: 0.0134 | B197: 0.3352 | C197: 0.0128 | D197: 0.3411
A198: 0.01 | B198: 0.335 | C198: 0.0102 | D198: 0.3411
A199: 0.0065 | B199: 0.3352 | C199: 0.0074 | D199: 0.3414
A200: 0.003 | B200: 0.3359 | C200: 0.0047 | D200: 0.342
A201: -0.0004 | B201: 0.3371 | C201: 0.0021 | D201: 0.3429
A202: -0.0036 | B202: 0.3386 | C202: -0.0004 | D202: 0.344
A203: -0.0064 | B203: 0.3405 | C203: -0.0027 | D203: 0.3453
A204: -0.0088 | B204: 0.3428 | C204: -0.0047 | D204: 0.3467
A205: -0.0107 | B205: 0.3452 | C205: -0.0063 | D205: 0.3483
... 503 more rows

Sheet TableS4
A1: DSV PEPI2020 by 25 years
A2: Date | B2: Xtrac | C2: Ytrac
A3: -100 | B3: -0.021 | C3: 0.397
A4: -75 | B4: -0.022 | C4: 0.396
A5: -50 | B5: -0.024 | C5: 0.395
A6: -25 | B6: -0.021 | C6: 0.402
A7: 0 | B7: -0.018 | C7: 0.412
A8: 25 | B8: -0.017 | C8: 0.424
A9: 50 | B9: -0.021 | C9: 0.444
A10: 75 | B10: -0.023 | C10: 0.469
A11: 100 | B11: -0.022 | C11: 0.476
A12: 125 | B12: -0.017 | C12: 0.484
A13: 150 | B13: -0.011 | C13: 0.496
A14: 175 | B14: -0.019 | C14: 0.509
A15: 200 | B15: -0.021 | C15: 0.508
A16: 225 | B16: -0.023 | C16: 0.507
A17: 250 | B17: -0.024 | C17: 0.508
A18: 275 | B18: -0.024 | C18: 0.509
A19: 300 | B19: -0.022 | C19: 0.508
A20: 325 | B20: -0.019 | C20: 0.503
A21: 350 | B21: -0.017 | C21: 0.491
A22: 375 | B22: -0.017 | C22: 0.482
A23: 400 | B23: -0.017 | C23: 0.477
A24: 425 | B24: -0.01 | C24: 0.457
A25: 450 | B25: -0.001 | C25: 0.433
A26: 475 | B26: 0.007 | C26: 0.416
A27: 500 | B27: 0.014 | C27: 0.402
A28: 525 | B28: 0.02 | C28: 0.392
A29: 550 | B29: 0.024 | C29: 0.378
A30: 575 | B30: 0.027 | C30: 0.362
A31: 600 | B31: 0.027 | C31: 0.355
A32: 625 | B32: 0.022 | C32: 0.352
A33: 650 | B33: 0.013 | C33: 0.351
A34: 675 | B34: 0.007 | C34: 0.351
A35: 700 | B35: 0.015 | C35: 0.343
A36: 725 | B36: 0.031 | C36: 0.332
A37: 750 | B37: 0.036 | C37: 0.335
A38: 775 | B38: 0.045 | C38: 0.338
A39: 800 | B39: 0.057 | C39: 0.338
A40: 825 | B40: 0.073 | C40: 0.335
A41: 850 | B41: 0.083 | C41: 0.334
A42: 875 | B42: 0.087 | C42: 0.336
A43: 900 | B43: 0.109 | C43: 0.358
A44: 925 | B44: 0.132 | C44: 0.386
A45: 950 | B45: 0.144 | C45: 0.413
A46: 975 | B46: 0.148 | C46: 0.425
A47: 1000 | B47: 0.15 | C47: 0.429
A48: 1025 | B48: 0.152 | C48: 0.438
A49: 1050 | B49: 0.155 | C49: 0.446
A50: 1075 | B50: 0.158 | C50: 0.453
A51: 1100 | B51: 0.157 | C51: 0.464
A52: 1125 | B52: 0.153 | C52: 0.474
A53: 1150 | B53: 0.148 | C53: 0.485
A54: 1175 | B54: 0.14 | C54: 0.499
A55: 1200 | B55: 0.131 | C55: 0.515
A56: 1225 | B56: 0.122 | C56: 0.53
A57: 1250 | B57: 0.114 | C57: 0.543
A58: 1275 | B58: 0.112 | C58: 0.557
A59: 1300 | B59: 0.09 | C59: 0.566
A60: 1325 | B60: 0.078 | C60: 0.577
A61: 1350 | B61: 0.067 | C61: 0.588
A62: 1375 | B62: 0.056 | C62: 0.589
A63: 1400 | B63: 0.048 | C63: 0.581
A64: 1425 | B64: 0.052 | C64: 0.553
A65: 1450 | B65: 0.056 | C65: 0.524
A66: 1475 | B66: 0.062 | C66: 0.478
A67: 1500 | B67: 0.067 | C67: 0.436
A68: 1525 | B68: 0.068 | C68: 0.415
A69: 1550 | B69: 0.067 | C69: 0.402
A70: 1575 | B70: 0.063 | C70: 0.396
A71: 1600 | B71: 0.044 | C71: 0.35
A72: 1625 | B72: 0.024 | C72: 0.333
A73: 1650 | B73: 0.003 | C73: 0.324
A74: 1675 | B74: -0.019 | C74: 0.312
A75: 1700 | B75: -0.048 | C75: 0.301
A76: 1725 | B76: -0.063 | C76: 0.295
A77: 1750 | B77: -0.09 | C77: 0.302
A78: 1775 | B78: -0.109 | C78: 0.314
A79: 1800 | B79: -0.13 | C79: 0.332
A80: 1825 | B80: -0.139 | C80: 0.352
A81: 1850 | B81: -0.138 | C81: 0.376
A82: 1875 | B82: -0.127 | C82: 0.402
A83: 1900 | B83: -0.111 | C83: 0.419
A84: 1925 | B84: -0.089 | C84: 0.429
A85: 1950 | B85: -0.061 | C85: 0.434

Sheet Diag5_bis
A1: Il suffit de copier le diagramme et d'ajuster les échelles x et y
A4: D | B4: I | C4: XD5_0 | D4: YD5_0 | E4: XD5_5 | F4: YD5_5 | K4: D | L4: I | P4: D | Q4: I
M5: XI5_0 | N5: YI5_0 | R5: XI5_5 | S5: YI5_5
K6: -40 | L6: 0 | M6: -0.909 | N6: 1.0834 | P6: -40 | Q6: 5 | R6: -0.8685 | S6: 1.0351
K7: -38 | L7: 0 | M7: -0.8707 | N7: 1.1144 | P7: -38 | Q7: 5 | R7: -0.8319 | S7: 1.0647
A8: -40 | B8: 0 | C8: -0.909 | D8: 1.0834 | K8: -36 | L8: 0 | M8: -0.8313 | N8: 1.1441 | P8: -36 | Q8: 5 | R8: -0.7942 | S8: 1.0931
A9: -40 | B9: 90 | C9: 0 | D9: 0 | K9: -34 | L9: 0 | M9: -0.7908 | N9: 1.1724 | P9: -34 | Q9: 5 | R9: -0.7556 | S9: 1.1202
K10: -32 | L10: 0 | M10: -0.7494 | N10: 1.1993 | P10: -32 | Q10: 5 | R10: -0.716 | S10: 1.1459
A11: -35 | B11: 0 | E11: -0.8112 | F11: 1.1585 | K11: -30 | L11: 0 | M11: -0.7071 | N11: 1.2247 | P11: -30 | Q11: 5 | R11: -0.6756 | S11: 1.1702
A12: -35 | B12: 90 | E12: 0 | F12: 0 | K12: -28 | L12: 0 | M12: -0.6639 | N12: 1.2487 | P12: -28 | Q12: 5 | R12: -0.6343 | S12: 1.193
K13: -26 | L13: 0 | M13: -0.62 | N13: 1.2711 | P13: -26 | Q13: 5 | R13: -0.5923 | S13: 1.2144
A14: -30 | B14: 0 | C14: -0.7071 | D14: 1.2247 | K14: -24 | L14: 0 | M14: -0.5752 | N14: 1.2919 | P14: -24 | Q14: 5 | R14: -0.5496 | S14: 1.2344
A15: -30 | B15: 90 | C15: 0 | D15: 0 | K15: -22 | L15: 0 | M15: -0.5298 | N15: 1.3112 | P15: -22 | Q15: 5 | R15: -0.5062 | S15: 1.2528
K16: -20 | L16: 0 | M16: -0.4837 | N16: 1.3289 | P16: -20 | Q16: 5 | R16: -0.4621 | S16: 1.2697
A17: -25 | B17: 0 | E17: -0.5977 | F17: 1.2817 | K17: -18 | L17: 0 | M17: -0.437 | N17: 1.345 | P17: -18 | Q17: 5 | R17: -0.4175 | S17: 1.285
A18: -25 | B18: 90 | E18: 0 | F18: 0 | K18: -16 | L18: 0 | M18: -0.3898 | N18: 1.3594 | P18: -16 | Q18: 5 | R18: -0.3724 | S18: 1.2988
K19: -14 | L19: 0 | M19: -0.3421 | N19: 1.3722 | P19: -14 | Q19: 5 | R19: -0.3269 | S19: 1.311
A20: -20 | B20: 0 | C20: -0.4837 | D20: 1.3289 | K20: -12 | L20: 0 | M20: -0.294 | N20: 1.3833 | P20: -12 | Q20: 5 | R20: -0.2809 | S20: 1.3217
A21: -20 | B21: 90 | C21: 0 | D21: 0 | K21: -10 | L21: 0 | M21: -0.2456 | N21: 1.3927 | P21: -10 | Q21: 5 | R21: -0.2346 | S21: 1.3307
K22: -8 | L22: 0 | M22: -0.1968 | N22: 1.4005 | P22: -8 | Q22: 5 | R22: -0.188 | S22: 1.338
A23: -15 | B23: 0 | E23: -0.366 | F23: 1.366 | K23: -6 | L23: 0 | M23: -0.1478 | N23: 1.4065 | P23: -6 | Q23: 5 | R23: -0.1412 | S23: 1.3438
A24: -15 | B24: 90 | E24: 0 | F24: 0 | K24: -4 | L24: 0 | M24: -0.0987 | N24: 1.4108 | P24: -4 | Q24: 5 | R24: -0.0943 | S24: 1.3479
K25: -2 | L25: 0 | M25: -0.0494 | N25: 1.4134 | P25: -2 | Q25: 5 | R25: -0.0472 | S25: 1.3504
A26: -10 | B26: 0 | C26: -0.2456 | D26: 1.3927 | K26: 0 | L26: 0 | M26: 0 | N26: 1.4142 | P26: 0 | Q26: 5 | R26: 0 | S26: 1.3512
A27: -10 | B27: 90 | C27: 0 | D27: 0 | K27: 2 | L27: 0 | M27: 0.0494 | N27: 1.4134 | P27: 2 | Q27: 5 | R27: 0.0472 | S27: 1.3504
K28: 4 | L28: 0 | M28: 0.0987 | N28: 1.4108 | P28: 4 | Q28: 5 | R28: 0.0943 | S28: 1.3479
A29: -5 | B29: 0 | E29: -0.1233 | F29: 1.4088 | K29: 6 | L29: 0 | M29: 0.1478 | N29: 1.4065 | P29: 6 | Q29: 5 | R29: 0.1412 | S29: 1.3438
A30: -5 | B30: 90 | E30: 0 | F30: 0 | K30: 8 | L30: 0 | M30: 0.1968 | N30: 1.4005 | P30: 8 | Q30: 5 | R30: 0.188 | S30: 1.338
K31: 10 | L31: 0 | M31: 0.2456 | N31: 1.3927 | P31: 10 | Q31: 5 | R31: 0.2346 | S31: 1.3307
A32: 0 | B32: 0 | C32: 0 | D32: 1.4142 | K32: 12 | L32: 0 | M32: 0.294 | N32: 1.3833 | P32: 12 | Q32: 5 | R32: 0.2809 | S32: 1.3217
A33: 0 | B33: 90 | C33: 0 | D33: 0 | K33: 14 | L33: 0 | M33: 0.3421 | N33: 1.3722 | P33: 14 | Q33: 5 | R33: 0.3269 | S33: 1.311
K34: 16 | L34: 0 | M34: 0.3898 | N34: 1.3594 | P34: 16 | Q34: 5 | R34: 0.3724 | S34: 1.2988
A35: 5 | B35: 0 | E35: 0.1233 | F35: 1.4088 | K35: 18 | L35: 0 | M35: 0.437 | N35: 1.345 | P35: 18 | Q35: 5 | R35: 0.4175 | S35: 1.285
A36: 5 | B36: 90 | E36: 0 | F36: 0 | K36: 20 | L36: 0 | M36: 0.4837 | N36: 1.3289 | P36: 20 | Q36: 5 | R36: 0.4621 | S36: 1.2697
K37: 22 | L37: 0 | M37: 0.5298 | N37: 1.3112 | P37: 22 | Q37: 5 | R37: 0.5062 | S37: 1.2528
A38: 10 | B38: 0 | C38: 0.2456 | D38: 1.3927 | K38: 24 | L38: 0 | M38: 0.5752 | N38: 1.2919 | P38: 24 | Q38: 5 | R38: 0.5496 | S38: 1.2344
A39: 10 | B39: 90 | C39: 0 | D39: 0 | K39: 26 | L39: 0 | M39: 0.62 | N39: 1.2711 | P39: 26 | Q39: 5 | R39: 0.5923 | S39: 1.2144
K40: 28 | L40: 0 | M40: 0.6639 | N40: 1.2487 | P40: 28 | Q40: 5 | R40: 0.6343 | S40: 1.193
A41: 15 | B41: 0 | E41: 0.366 | F41: 1.366 | K41: 30 | L41: 0 | M41: 0.7071 | N41: 1.2247 | P41: 30 | Q41: 5 | R41: 0.6756 | S41: 1.1702
A42: 15 | B42: 90 | E42: 0 | F42: 0 | K42: 32 | L42: 0 | M42: 0.7494 | N42: 1.1993 | P42: 32 | Q42: 5 | R42: 0.716 | S42: 1.1459
K43: 34 | L43: 0 | M43: 0.7908 | N43: 1.1724 | P43: 34 | Q43: 5 | R43: 0.7556 | S43: 1.1202
A44: 20 | B44: 0 | C44: 0.4837 | D44: 1.3289 | K44: 36 | L44: 0 | M44: 0.8313 | N44: 1.1441 | P44: 36 | Q44: 5 | R44: 0.7942 | S44: 1.0931
A45: 20 | B45: 90 | C45: 0 | D45: 0 | K45: 38 | L45: 0 | M45: 0.8707 | N45: 1.1144 | P45: 38 | Q45: 5 | R45: 0.8319 | S45: 1.0647
K46: 40 | L46: 0 | M46: 0.909 | N46: 1.0834 | P46: 40 | Q46: 5 | R46: 0.8685 | S46: 1.0351
A47: 25 | B47: 0 | E47: 0.5977 | F47: 1.2817
A48: 25 | B48: 90 | E48: 0 | F48: 0 | K48: -40 | L48: 10 | M48: -0.8264 | N48: 0.9848 | P48: -40 | Q48: 15 | R48: -0.7826 | S48: 0.9327
K49: -38 | L49: 10 | M49: -0.7915 | N49: 1.013 | P49: -38 | Q49: 15 | R49: -0.7496 | S49: 0.9594
A50: 30 | B50: 0 | C50: 0.7071 | D50: 1.2247 | K50: -36 | L50: 10 | M50: -0.7556 | N50: 1.0401 | P50: -36 | Q50: 15 | R50: -0.7156 | S50: 0.985
A51: 30 | B51: 90 | C51: 0 | D51: 0 | K51: -34 | L51: 10 | M51: -0.7189 | N51: 1.0658 | P51: -34 | Q51: 15 | R51: -0.6808 | S51: 1.0094
K52: -32 | L52: 10 | M52: -0.6813 | N52: 1.0902 | P52: -32 | Q52: 15 | R52: -0.6452 | S52: 1.0325
A53: 35 | B53: 0 | E53: 0.8112 | F53: 1.1585 | K53: -30 | L53: 10 | M53: -0.6428 | N53: 1.1133 | P53: -30 | Q53: 15 | R53: -0.6088 | S53: 1.0544
A54: 35 | B54: 90 | E54: 0 | F54: 0 | K54: -28 | L54: 10 | M54: -0.6035 | N54: 1.1351 | P54: -28 | Q54: 15 | R54: -0.5716 | S54: 1.075
K55: -26 | L55: 10 | M55: -0.5636 | N55: 1.1555 | P55: -26 | Q55: 15 | R55: -0.5337 | S55: 1.0943
C56: 0.909 | D56: 1.0834 | K56: -24 | L56: 10 | M56: -0.5229 | N56: 1.1744 | P56: -24 | Q56: 15 | R56: -0.4952 | S56: 1.1123
C57: 0 | D57: 0 | K57: -22 | L57: 10 | M57: -0.4816 | N57: 1.192 | P57: -22 | Q57: 15 | R57: -0.4561 | S57: 1.1289
K58: -20 | L58: 10 | M58: -0.4397 | N58: 1.208 | P58: -20 | Q58: 15 | R58: -0.4164 | S58: 1.1441
K59: -18 | L59: 10 | M59: -0.3973 | N59: 1.2227 | P59: -18 | Q59: 15 | R59: -0.3762 | S59: 1.1579
K60: -16 | L60: 10 | M60: -0.3544 | N60: 1.2358 | P60: -16 | Q60: 15 | R60: -0.3356 | S60: 1.1704
K61: -14 | L61: 10 | M61: -0.311 | N61: 1.2474 | P61: -14 | Q61: 15 | R61: -0.2945 | S61: 1.1814
K62: -12 | L62: 10 | M62: -0.2673 | N62: 1.2575 | P62: -12 | Q62: 15 | R62: -0.2531 | S62: 1.1909
K63: -10 | L63: 10 | M63: -0.2232 | N63: 1.266 | P63: -10 | Q63: 15 | R63: -0.2114 | S63: 1.199
K64: -8 | L64: 10 | M64: -0.1789 | N64: 1.2731 | P64: -8 | Q64: 15 | R64: -0.1694 | S64: 1.2057
K65: -6 | L65: 10 | M65: -0.1344 | N65: 1.2785 | P65: -6 | Q65: 15 | R65: -0.1273 | S65: 1.2109
K66: -4 | L66: 10 | M66: -0.0897 | N66: 1.2824 | P66: -4 | Q66: 15 | R66: -0.0849 | S66: 1.2146
K67: -2 | L67: 10 | M67: -0.0449 | N67: 1.2848 | P67: -2 | Q67: 15 | R67: -0.0425 | S67: 1.2168
K68: 0 | L68: 10 | M68: 0 | N68: 1.2856 | P68: 0 | Q68: 15 | R68: 0 | S68: 1.2175
K69: 2 | L69: 10 | M69: 0.0449 | N69: 1.2848 | P69: 2 | Q69: 15 | R69: 0.0425 | S69: 1.2168
K70: 4 | L70: 10 | M70: 0.0897 | N70: 1.2824 | P70: 4 | Q70: 15 | R70: 0.0849 | S70: 1.2146
K71: 6 | L71: 10 | M71: 0.1344 | N71: 1.2785 | P71: 6 | Q71: 15 | R71: 0.1273 | S71: 1.2109
K72: 8 | L72: 10 | M72: 0.1789 | N72: 1.2731 | P72: 8 | Q72: 15 | R72: 0.1694 | S72: 1.2057
K73: 10 | L73: 10 | M73: 0.2232 | N73: 1.266 | P73: 10 | Q73: 15 | R73: 0.2114 | S73: 1.199
K74: 12 | L74: 10 | M74: 0.2673 | N74: 1.2575 | P74: 12 | Q74: 15 | R74: 0.2531 | S74: 1.1909
K75: 14 | L75: 10 | M75: 0.311 | N75: 1.2474 | P75: 14 | Q75: 15 | R75: 0.2945 | S75: 1.1814
K76: 16 | L76: 10 | M76: 0.3544 | N76: 1.2358 | P76: 16 | Q76: 15 | R76: 0.3356 | S76: 1.1704
K77: 18 | L77: 10 | M77: 0.3973 | N77: 1.2227 | P77: 18 | Q77: 15 | R77: 0.3762 | S77: 1.1579
K78: 20 | L78: 10 | M78: 0.4397 | N78: 1.208 | P78: 20 | Q78: 15 | R78: 0.4164 | S78: 1.1441
K79: 22 | L79: 10 | M79: 0.4816 | N79: 1.192 | P79: 22 | Q79: 15 | R79: 0.4561 | S79: 1.1289
K80: 24 | L80: 10 | M80: 0.5229 | N80: 1.1744 | P80: 24 | Q80: 15 | R80: 0.4952 | S80: 1.1123
K81: 26 | L81: 10 | M81: 0.5636 | N81: 1.1555 | P81: 26 | Q81: 15 | R81: 0.5337 | S81: 1.0943
K82: 28 | L82: 10 | M82: 0.6035 | N82: 1.1351 | P82: 28 | Q82: 15 | R82: 0.5716 | S82: 1.075
K83: 30 | L83: 10 | M83: 0.6428 | N83: 1.1133 | P83: 30 | Q83: 15 | R83: 0.6088 | S83: 1.0544
K84: 32 | L84: 10 | M84: 0.6813 | N84: 1.0902 | P84: 32 | Q84: 15 | R84: 0.6452 | S84: 1.0325
K85: 34 | L85: 10 | M85: 0.7189 | N85: 1.0658 | P85: 34 | Q85: 15 | R85: 0.6808 | S85: 1.0094
K86: 36 | L86: 10 | M86: 0.7556 | N86: 1.0401 | P86: 36 | Q86: 15 | R86: 0.7156 | S86: 0.985
K87: 38 | L87: 10 | M87: 0.7915 | N87: 1.013 | P87: 38 | Q87: 15 | R87: 0.7496 | S87: 0.9594
K88: 40 | L88: 10 | M88: 0.8264 | N88: 0.9848 | P88: 40 | Q88: 15 | R88: 0.7826 | S88: 0.9327
K90: -40 | L90: 20 | M90: -0.7374 | N90: 0.8788 | P90: -40 | Q90: 25 | R90: -0.6907 | S90: 0.8232
K91: -38 | L91: 20 | M91: -0.7063 | N91: 0.904 | P91: -38 | Q91: 25 | R91: -0.6616 | S91: 0.8468
K92: -36 | L92: 20 | M92: -0.6743 | N92: 0.9281 | P92: -36 | Q92: 25 | R92: -0.6316 | S92: 0.8694
K93: -34 | L93: 20 | M93: -0.6415 | N93: 0.951 | P93: -34 | Q93: 25 | R93: -0.6009 | S93: 0.8909
K94: -32 | L94: 20 | M94: -0.6079 | N94: 0.9728 | P94: -32 | Q94: 25 | R94: -0.5695 | S94: 0.9113
K95: -30 | L95: 20 | M95: -0.5736 | N95: 0.9935 | P95: -30 | Q95: 25 | R95: -0.5373 | S95: 0.9306
K96: -28 | L96: 20 | M96: -0.5386 | N96: 1.0129 | P96: -28 | Q96: 25 | R96: -0.5045 | S96: 0.9488
K97: -26 | L97: 20 | M97: -0.5029 | N97: 1.0311 | P97: -26 | Q97: 25 | R97: -0.4711 | S97: 0.9658
K98: -24 | L98: 20 | M98: -0.4666 | N98: 1.048 | P98: -24 | Q98: 25 | R98: -0.4371 | S98: 0.9817
K99: -22 | L99: 20 | M99: -0.4297 | N99: 1.0636 | P99: -22 | Q99: 25 | R99: -0.4026 | S99: 0.9964
K100: -20 | L100: 20 | M100: -0.3923 | N100: 1.078 | P100: -20 | Q100: 25 | R100: -0.3675 | S100: 1.0098
K101: -18 | L101: 20 | M101: -0.3545 | N101: 1.091 | P101: -18 | Q101: 25 | R101: -0.3321 | S101: 1.022
K102: -16 | L102: 20 | M102: -0.3162 | N102: 1.1027 | P102: -16 | Q102: 25 | R102: -0.2962 | S102: 1.033
K103: -14 | L103: 20 | M103: -0.2775 | N103: 1.1131 | P103: -14 | Q103: 25 | R103: -0.26 | S103: 1.0427
K104: -12 | L104: 20 | M104: -0.2385 | N104: 1.1221 | P104: -12 | Q104: 25 | R104: -0.2234 | S104: 1.0511
K105: -10 | L105: 20 | M105: -0.1992 | N105: 1.1297 | P105: -10 | Q105: 25 | R105: -0.1866 | S105: 1.0583
K106: -8 | L106: 20 | M106: -0.1597 | N106: 1.136 | P106: -8 | Q106: 25 | R106: -0.1496 | S106: 1.0641
K107: -6 | L107: 20 | M107: -0.1199 | N107: 1.1409 | P107: -6 | Q107: 25 | R107: -0.1123 | S107: 1.0687
K108: -4 | L108: 20 | M108: -0.08 | N108: 1.1444 | P108: -4 | Q108: 25 | R108: -0.075 | S108: 1.072
K109: -2 | L109: 20 | M109: -0.04 | N109: 1.1465 | P109: -2 | Q109: 25 | R109: -0.0375 | S109: 1.0739
K110: 0 | L110: 20 | M110: 0 | N110: 1.1472 | P110: 0 | Q110: 25 | R110: 0 | S110: 1.0746
K111: 2 | L111: 20 | M111: 0.04 | N111: 1.1465 | P111: 2 | Q111: 25 | R111: 0.0375 | S111: 1.0739
K112: 4 | L112: 20 | M112: 0.08 | N112: 1.1444 | P112: 4 | Q112: 25 | R112: 0.075 | S112: 1.072
K113: 6 | L113: 20 | M113: 0.1199 | N113: 1.1409 | P113: 6 | Q113: 25 | R113: 0.1123 | S113: 1.0687
K114: 8 | L114: 20 | M114: 0.1597 | N114: 1.136 | P114: 8 | Q114: 25 | R114: 0.1496 | S114: 1.0641
K115: 10 | L115: 20 | M115: 0.1992 | N115: 1.1297 | P115: 10 | Q115: 25 | R115: 0.1866 | S115: 1.0583
K116: 12 | L116: 20 | M116: 0.2385 | N116: 1.1221 | P116: 12 | Q116: 25 | R116: 0.2234 | S116: 1.0511
K117: 14 | L117: 20 | M117: 0.2775 | N117: 1.1131 | P117: 14 | Q117: 25 | R117: 0.26 | S117: 1.0427
K118: 16 | L118: 20 | M118: 0.3162 | N118: 1.1027 | P118: 16 | Q118: 25 | R118: 0.2962 | S118: 1.033
K119: 18 | L119: 20 | M119: 0.3545 | N119: 1.091 | P119: 18 | Q119: 25 | R119: 0.3321 | S119: 1.022
K120: 20 | L120: 20 | M120: 0.3923 | N120: 1.078 | P120: 20 | Q120: 25 | R120: 0.3675 | S120: 1.0098
K121: 22 | L121: 20 | M121: 0.4297 | N121: 1.0636 | P121: 22 | Q121: 25 | R121: 0.4026 | S121: 0.9964
K122: 24 | L122: 20 | M122: 0.4666 | N122: 1.048 | P122: 24 | Q122: 25 | R122: 0.4371 | S122: 0.9817
K123: 26 | L123: 20 | M123: 0.5029 | N123: 1.0311 | P123: 26 | Q123: 25 | R123: 0.4711 | S123: 0.9658
K124: 28 | L124: 20 | M124: 0.5386 | N124: 1.0129 | P124: 28 | Q124: 25 | R124: 0.5045 | S124: 0.9488
K125: 30 | L125: 20 | M125: 0.5736 | N125: 0.9935 | P125: 30 | Q125: 25 | R125: 0.5373 | S125: 0.9306
K126: 32 | L126: 20 | M126: 0.6079 | N126: 0.9728 | P126: 32 | Q126: 25 | R126: 0.5695 | S126: 0.9113
K127: 34 | L127: 20 | M127: 0.6415 | N127: 0.951 | P127: 34 | Q127: 25 | R127: 0.6009 | S127: 0.8909
K128: 36 | L128: 20 | M128: 0.6743 | N128: 0.9281 | P128: 36 | Q128: 25 | R128: 0.6316 | S128: 0.8694
K129: 38 | L129: 20 | M129: 0.7063 | N129: 0.904 | P129: 38 | Q129: 25 | R129: 0.6616 | S129: 0.8468
K130: 40 | L130: 20 | M130: 0.7374 | N130: 0.8788 | P130: 40 | Q130: 25 | R130: 0.6907 | S130: 0.8232
K132: -40 | L132: 30 | M132: -0.6428 | N132: 0.766 | P132: -40 | Q132: 35 | R132: -0.5936 | S132: 0.7074
K133: -38 | L133: 30 | M133: -0.6157 | N133: 0.788 | P133: -38 | Q133: 35 | R133: -0.5686 | S133: 0.7277
K134: -36 | L134: 30 | M134: -0.5878 | N134: 0.809 | P134: -36 | Q134: 35 | R134: -0.5428 | S134: 0.7471
K135: -34 | L135: 30 | M135: -0.5592 | N135: 0.829 | P135: -34 | Q135: 35 | R135: -0.5164 | S135: 0.7656
K136: -32 | L136: 30 | M136: -0.5299 | N136: 0.848 | P136: -32 | Q136: 35 | R136: -0.4894 | S136: 0.7832
K137: -30 | L137: 30 | M137: -0.5 | N137: 0.866 | P137: -30 | Q137: 35 | R137: -0.4617 | S137: 0.7998
K138: -28 | L138: 30 | M138: -0.4695 | N138: 0.8829 | P138: -28 | Q138: 35 | R138: -0.4336 | S138: 0.8154
K139: -26 | L139: 30 | M139: -0.4384 | N139: 0.8988 | P139: -26 | Q139: 35 | R139: -0.4048 | S139: 0.83
K140: -24 | L140: 30 | M140: -0.4067 | N140: 0.9135 | P140: -24 | Q140: 35 | R140: -0.3756 | S140: 0.8437
K141: -22 | L141: 30 | M141: -0.3746 | N141: 0.9272 | P141: -22 | Q141: 35 | R141: -0.3459 | S141: 0.8563
K142: -20 | L142: 30 | M142: -0.342 | N142: 0.9397 | P142: -20 | Q142: 35 | R142: -0.3159 | S142: 0.8678
K143: -18 | L143: 30 | M143: -0.309 | N143: 0.9511 | P143: -18 | Q143: 35 | R143: -0.2854 | S143: 0.8783
K144: -16 | L144: 30 | M144: -0.2756 | N144: 0.9613 | P144: -16 | Q144: 35 | R144: -0.2546 | S144: 0.8877
K145: -14 | L145: 30 | M145: -0.2419 | N145: 0.9703 | P145: -14 | Q145: 35 | R145: -0.2234 | S145: 0.8961
K146: -12 | L146: 30 | M146: -0.2079 | N146: 0.9781 | P146: -12 | Q146: 35 | R146: -0.192 | S146: 0.9033
K147: -10 | L147: 30 | M147: -0.1736 | N147: 0.9848 | P147: -10 | Q147: 35 | R147: -0.1604 | S147: 0.9095
K148: -8 | L148: 30 | M148: -0.1392 | N148: 0.9903 | P148: -8 | Q148: 35 | R148: -0.1285 | S148: 0.9145
K149: -6 | L149: 30 | M149: -0.1045 | N149: 0.9945 | P149: -6 | Q149: 35 | R149: -0.0965 | S149: 0.9184
K150: -4 | L150: 30 | M150: -0.0698 | N150: 0.9976 | P150: -4 | Q150: 35 | R150: -0.0644 | S150: 0.9212
K151: -2 | L151: 30 | M151: -0.0349 | N151: 0.9994 | P151: -2 | Q151: 35 | R151: -0.0322 | S151: 0.9229
K152: 0 | L152: 30 | M152: 0 | N152: 1 | P152: 0 | Q152: 35 | R152: 0 | S152: 0.9235
K153: 2 | L153: 30 | M153: 0.0349 | N153: 0.9994 | P153: 2 | Q153: 35 | R153: 0.0322 | S153: 0.9229
K154: 4 | L154: 30 | M154: 0.0698 | N154: 0.9976 | P154: 4 | Q154: 35 | R154: 0.0644 | S154: 0.9212
K155: 6 | L155: 30 | M155: 0.1045 | N155: 0.9945 | P155: 6 | Q155: 35 | R155: 0.0965 | S155: 0.9184
K156: 8 | L156: 30 | M156: 0.1392 | N156: 0.9903 | P156: 8 | Q156: 35 | R156: 0.1285 | S156: 0.9145
K157: 10 | L157: 30 | M157: 0.1736 | N157: 0.9848 | P157: 10 | Q157: 35 | R157: 0.1604 | S157: 0.9095
K158: 12 | L158: 30 | M158: 0.2079 | N158: 0.9781 | P158: 12 | Q158: 35 | R158: 0.192 | S158: 0.9033
K159: 14 | L159: 30 | M159: 0.2419 | N159: 0.9703 | P159: 14 | Q159: 35 | R159: 0.2234 | S159: 0.8961
K160: 16 | L160: 30 | M160: 0.2756 | N160: 0.9613 | P160: 16 | Q160: 35 | R160: 0.2546 | S160: 0.8877
K161: 18 | L161: 30 | M161: 0.309 | N161: 0.9511 | P161: 18 | Q161: 35 | R161: 0.2854 | S161: 0.8783
K162: 20 | L162: 30 | M162: 0.342 | N162: 0.9397 | P162: 20 | Q162: 35 | R162: 0.3159 | S162: 0.8678
K163: 22 | L163: 30 | M163: 0.3746 | N163: 0.9272 | P163: 22 | Q163: 35 | R163: 0.3459 | S163: 0.8563
K164: 24 | L164: 30 | M164: 0.4067 | N164: 0.9135 | P164: 24 | Q164: 35 | R164: 0.3756 | S164: 0.8437
K165: 26 | L165: 30 | M165: 0.4384 | N165: 0.8988 | P165: 26 | Q165: 35 | R165: 0.4048 | S165: 0.83
K166: 28 | L166: 30 | M166: 0.4695 | N166: 0.8829 | P166: 28 | Q166: 35 | R166: 0.4336 | S166: 0.8154
K167: 30 | L167: 30 | M167: 0.5 | N167: 0.866 | P167: 30 | Q167: 35 | R167: 0.4617 | S167: 0.7998
K168: 32 | L168: 30 | M168: 0.5299 | N168: 0.848 | P168: 32 | Q168: 35 | R168: 0.4894 | S168: 0.7832
K169: 34 | L169: 30 | M169: 0.5592 | N169: 0.829 | P169: 34 | Q169: 35 | R169: 0.5164 | S169: 0.7656
K170: 36 | L170: 30 | M170: 0.5878 | N170: 0.809 | P170: 36 | Q170: 35 | R170: 0.5428 | S170: 0.7471
K171: 38 | L171: 30 | M171: 0.6157 | N171: 0.788 | P171: 38 | Q171: 35 | R171: 0.5686 | S171: 0.7277
K172: 40 | L172: 30 | M172: 0.6428 | N172: 0.766 | P172: 40 | Q172: 35 | R172: 0.5936 | S172: 0.7074
K174: -40 | L174: 40 | M174: -0.5433 | N174: 0.6475 | P174: -40 | Q174: 45 | R174: -0.492 | S174: 0.5863
K175: -38 | L175: 40 | M175: -0.5204 | N175: 0.6661 | P175: -38 | Q175: 45 | R175: -0.4712 | S175: 0.6031
K176: -36 | L176: 40 | M176: -0.4968 | N176: 0.6838 | P176: -36 | Q176: 45 | R176: -0.4499 | S176: 0.6192
K177: -34 | L177: 40 | M177: -0.4727 | N177: 0.7007 | P177: -34 | Q177: 45 | R177: -0.428 | S177: 0.6345
K178: -32 | L178: 40 | M178: -0.4479 | N178: 0.7168 | P178: -32 | Q178: 45 | R178: -0.4056 | S178: 0.6491
K179: -30 | L179: 40 | M179: -0.4226 | N179: 0.732 | P179: -30 | Q179: 45 | R179: -0.3827 | S179: 0.6628
K180: -28 | L180: 40 | M180: -0.3968 | N180: 0.7463 | P180: -28 | Q180: 45 | R180: -0.3593 | S180: 0.6758
K181: -26 | L181: 40 | M181: -0.3705 | N181: 0.7597 | P181: -26 | Q181: 45 | R181: -0.3355 | S181: 0.6879
K182: -24 | L182: 40 | M182: -0.3438 | N182: 0.7722 | P182: -24 | Q182: 45 | R182: -0.3113 | S182: 0.6992
K183: -22 | L183: 40 | M183: -0.3166 | N183: 0.7837 | P183: -22 | Q183: 45 | R183: -0.2867 | S183: 0.7096
K184: -20 | L184: 40 | M184: -0.2891 | N184: 0.7943 | P184: -20 | Q184: 45 | R184: -0.2618 | S184: 0.7192
K185: -18 | L185: 40 | M185: -0.2612 | N185: 0.8039 | P185: -18 | Q185: 45 | R185: -0.2365 | S185: 0.7279
K186: -16 | L186: 40 | M186: -0.233 | N186: 0.8125 | P186: -16 | Q186: 45 | R186: -0.211 | S186: 0.7357
K187: -14 | L187: 40 | M187: -0.2045 | N187: 0.8201 | P187: -14 | Q187: 45 | R187: -0.1852 | S187: 0.7426
K188: -12 | L188: 40 | M188: -0.1757 | N188: 0.8268 | P188: -12 | Q188: 45 | R188: -0.1591 | S188: 0.7486
K189: -10 | L189: 40 | M189: -0.1468 | N189: 0.8324 | P189: -10 | Q189: 45 | R189: -0.1329 | S189: 0.7537
K190: -8 | L190: 40 | M190: -0.1176 | N190: 0.837 | P190: -8 | Q190: 45 | R190: -0.1065 | S190: 0.7579
K191: -6 | L191: 40 | M191: -0.0884 | N191: 0.8406 | P191: -6 | Q191: 45 | R191: -0.08 | S191: 0.7612
K192: -4 | L192: 40 | M192: -0.059 | N192: 0.8432 | P192: -4 | Q192: 45 | R192: -0.0534 | S192: 0.7635
K193: -2 | L193: 40 | M193: -0.0295 | N193: 0.8447 | P193: -2 | Q193: 45 | R193: -0.0267 | S193: 0.7649
K194: 0 | L194: 40 | M194: 0 | N194: 0.8452 | P194: 0 | Q194: 45 | R194: 0 | S194: 0.7654
K195: 2 | L195: 40 | M195: 0.0295 | N195: 0.8447 | P195: 2 | Q195: 45 | R195: 0.0267 | S195: 0.7649
K196: 4 | L196: 40 | M196: 0.059 | N196: 0.8432 | P196: 4 | Q196: 45 | R196: 0.0534 | S196: 0.7635
K197: 6 | L197: 40 | M197: 0.0884 | N197: 0.8406 | P197: 6 | Q197: 45 | R197: 0.08 | S197: 0.7612
K198: 8 | L198: 40 | M198: 0.1176 | N198: 0.837 | P198: 8 | Q198: 45 | R198: 0.1065 | S198: 0.7579
K199: 10 | L199: 40 | M199: 0.1468 | N199: 0.8324 | P199: 10 | Q199: 45 | R199: 0.1329 | S199: 0.7537
K200: 12 | L200: 40 | M200: 0.1757 | N200: 0.8268 | P200: 12 | Q200: 45 | R200: 0.1591 | S200: 0.7486
K201: 14 | L201: 40 | M201: 0.2045 | N201: 0.8201 | P201: 14 | Q201: 45 | R201: 0.1852 | S201: 0.7426
K202: 16 | L202: 40 | M202: 0.233 | N202: 0.8125 | P202: 16 | Q202: 45 | R202: 0.211 | S202: 0.7357
K203: 18 | L203: 40 | M203: 0.2612 | N203: 0.8039 | P203: 18 | Q203: 45 | R203: 0.2365 | S203: 0.7279
K204: 20 | L204: 40 | M204: 0.2891 | N204: 0.7943 | P204: 20 | Q204: 45 | R204: 0.2618 | S204: 0.7192
K205: 22 | L205: 40 | M205: 0.3166 | N205: 0.7837 | P205: 22 | Q205: 45 | R205: 0.2867 | S205: 0.7096
... 173 more rows
